Directorate,Department,Expenditure Type,Ref.Doc.1,Vendor Name,Expenditure Amount (exc VAT),Payment Date,,
Assurance,Assurance,Employee Expenses,60079041,THE BARNETGROUP LIMITED,"10,023.78",15/05/2017,,
Assurance,Assurance,Equipment and Materials Purcha,80010343,REDACTED - PERSONAL DATA,"1,180.00",23/05/2017,,
Assurance,Assurance,Postage,60079603,ROYAL MAIL GROUP LIMITED,1.41,23/05/2017,,
Assurance,Assurance,Postage,60079648,ROYAL MAIL GROUP LIMITED,124.38,25/05/2017,,
Assurance,Assurance,Printing-Contract,60078917,ELECTORAL REFORM SERVICES,690.07,12/05/2017,,
Assurance,Assurance,Publications,60079870,THOMAS FATTORINI LTD,34.31,26/05/2017,,
Assurance,Assurance,Rents,60079360,ARTS DEPOT PRODUCTIONS LTD,"1,737.50",19/05/2017,,
Assurance,Assurance,Rents,80010121,CASABLANCA MARQUEES LTD,800.00,16/05/2017,,
Assurance,Assurance,Subscriptions,60078442,INTEC FOR BUSINESS LIMITED,"10,471.65",05/05/2017,,
Assurance,Assurance,Subscriptions,60078982,INTEC FOR BUSINESS LIMITED,600.00,12/05/2017,,
Assurance,Assurance,Subscriptions,60076964,LONDON BOROUGH FRAUD INVESTIGATORS GROUP,360.00,02/05/2017,,
Assurance,Assurance,Subscriptions,60079619,TAMESIDE METROPOLITAN BOROUGH COUNC,262.40,23/05/2017,,
Central Expenses,Central Expenses,Insurance Claims,80009964,ADDINGTON MEDICAL CENTRE,50.00,04/05/2017,,
Central Expenses,Central Expenses,Insurance Claims,80010131,ARMSTRONGS SOLICITORS,"3,785.00",11/05/2017,,
Central Expenses,Central Expenses,Insurance Claims,80009965,BROWNE JACOBSON SOLS.,"26,100.00",11/05/2017,,
Central Expenses,Central Expenses,Insurance Claims,80010454,CENTRAL LONDON COMMUNITY HEALT,10.00,26/05/2017,,
Central Expenses,Central Expenses,Insurance Claims,60078939,CHARLES DUKES ASSESSORS,60.00,12/05/2017,,
Central Expenses,Central Expenses,Insurance Claims,60079242,CHARLES DUKES ASSESSORS,150.00,19/05/2017,,
Central Expenses,Central Expenses,Insurance Claims,60079286,CHARLES DUKES ASSESSORS,60.00,19/05/2017,,
Central Expenses,Central Expenses,Insurance Claims,60079330,CHARLES DUKES ASSESSORS,60.00,23/05/2017,,
Central Expenses,Central Expenses,Insurance Claims,60079338,CHARLES DUKES ASSESSORS,60.00,23/05/2017,,
Central Expenses,Central Expenses,Insurance Claims,60079340,CHARLES DUKES ASSESSORS,150.00,23/05/2017,,
Central Expenses,Central Expenses,Insurance Claims,60079341,CHARLES DUKES ASSESSORS,60.00,23/05/2017,,
Central Expenses,Central Expenses,Insurance Claims,60079342,CHARLES DUKES ASSESSORS,60.00,23/05/2017,,
Central Expenses,Central Expenses,Insurance Claims,60079345,CHARLES DUKES ASSESSORS,60.00,23/05/2017,,
Central Expenses,Central Expenses,Insurance Claims,60079348,CHARLES DUKES ASSESSORS,60.00,23/05/2017,,
Central Expenses,Central Expenses,Insurance Claims,60079352,CHARLES DUKES ASSESSORS,60.00,23/05/2017,,
Central Expenses,Central Expenses,Insurance Claims,60079354,CHARLES DUKES ASSESSORS,60.00,23/05/2017,,
Central Expenses,Central Expenses,Insurance Claims,60079359,CHARLES DUKES ASSESSORS,60.00,23/05/2017,,
Central Expenses,Central Expenses,Insurance Claims,60079361,CHARLES DUKES ASSESSORS,60.00,23/05/2017,,
Central Expenses,Central Expenses,Insurance Claims,60079366,CHARLES DUKES ASSESSORS,60.00,23/05/2017,,
Central Expenses,Central Expenses,Insurance Claims,60079367,CHARLES DUKES ASSESSORS,60.00,23/05/2017,,
Central Expenses,Central Expenses,Insurance Claims,60079368,CHARLES DUKES ASSESSORS,60.00,23/05/2017,,
Central Expenses,Central Expenses,Insurance Claims,60079441,CHARLES DUKES ASSESSORS,150.00,23/05/2017,,
Central Expenses,Central Expenses,Insurance Claims,60079445,CHARLES DUKES ASSESSORS,60.00,23/05/2017,,
Central Expenses,Central Expenses,Insurance Claims,60079446,CHARLES DUKES ASSESSORS,60.00,23/05/2017,,
Central Expenses,Central Expenses,Insurance Claims,60079447,CHARLES DUKES ASSESSORS,60.00,23/05/2017,,
Central Expenses,Central Expenses,Insurance Claims,60079458,CHARLES DUKES ASSESSORS,60.00,23/05/2017,,
Central Expenses,Central Expenses,Insurance Claims,60079463,CHARLES DUKES ASSESSORS,60.00,23/05/2017,,
Central Expenses,Central Expenses,Insurance Claims,60079468,CHARLES DUKES ASSESSORS,60.00,23/05/2017,,
Central Expenses,Central Expenses,Insurance Claims,60079469,CHARLES DUKES ASSESSORS,200.00,23/05/2017,,
Central Expenses,Central Expenses,Insurance Claims,60079471,CHARLES DUKES ASSESSORS,150.00,23/05/2017,,
Central Expenses,Central Expenses,Insurance Claims,60079472,CHARLES DUKES ASSESSORS,60.00,23/05/2017,,
Central Expenses,Central Expenses,Insurance Claims,60079475,CHARLES DUKES ASSESSORS,60.00,23/05/2017,,
Central Expenses,Central Expenses,Insurance Claims,60079478,CHARLES DUKES ASSESSORS,60.00,23/05/2017,,
Central Expenses,Central Expenses,Insurance Claims,80010344,CLEAR LAW LLP,"7,160.00",23/05/2017,,
Central Expenses,Central Expenses,Insurance Claims,60079243,CLYDE & CO LLP,735.00,19/05/2017,,
Central Expenses,Central Expenses,Insurance Claims,60079287,CLYDE & CO LLP,"11,630.00",19/05/2017,,
Central Expenses,Central Expenses,Insurance Claims,80010413,COGENT LAW,"3,500.00",25/05/2017,,
Central Expenses,Central Expenses,Insurance Claims,80010410,DAC BEACHCROFT,"30,000.00",30/05/2017,,
Central Expenses,Central Expenses,Insurance Claims,80009934,DWP COMPENSATION RECOVERY UNIT,842.00,04/05/2017,,
Central Expenses,Central Expenses,Insurance Claims,80010067,DWP COMPENSATION RECOVERY UNIT,918.00,11/05/2017,,
Central Expenses,Central Expenses,Insurance Claims,80010473,DWP COMPENSATION RECOVERY UNIT,647.00,31/05/2017,,
Central Expenses,Central Expenses,Insurance Claims,80010289,GOLDENS SOLICITORS,405.00,19/05/2017,,
Central Expenses,Central Expenses,Insurance Claims,80010050,HELPHIRE LTD,200.00,08/05/2017,,
Central Expenses,Central Expenses,Insurance Claims,80010240,IRWIN MITCHELL SOLICITORS,"45,000.00",22/05/2017,,
Central Expenses,Central Expenses,Insurance Claims,80010470,IRWIN MITCHELL SOLICITORS,"12,282.47",31/05/2017,,
Central Expenses,Central Expenses,Insurance Claims,60072101,JOHNSON AUSTIN PARTNERSHIP LLP,75.00,05/05/2017,,
Central Expenses,Central Expenses,Insurance Claims,60072132,JOHNSON AUSTIN PARTNERSHIP LLP,375.00,05/05/2017,,
Central Expenses,Central Expenses,Insurance Claims,60072790,JOHNSON AUSTIN PARTNERSHIP LLP,75.00,05/05/2017,,
Central Expenses,Central Expenses,Insurance Claims,60073294,JOHNSON AUSTIN PARTNERSHIP LLP,75.00,05/05/2017,,
Central Expenses,Central Expenses,Insurance Claims,60073307,JOHNSON AUSTIN PARTNERSHIP LLP,375.00,05/05/2017,,
Central Expenses,Central Expenses,Insurance Claims,60079343,JOHNSON AUSTIN PARTNERSHIP LLP,375.00,23/05/2017,,
Central Expenses,Central Expenses,Insurance Claims,60079456,JOHNSON AUSTIN PARTNERSHIP LLP,500.00,23/05/2017,,
Central Expenses,Central Expenses,Insurance Claims,60079462,JOHNSON AUSTIN PARTNERSHIP LLP,375.00,23/05/2017,,
Central Expenses,Central Expenses,Insurance Claims,80010028,KENNEDYS LAW LLP,"12,500.00",05/05/2017,,
Central Expenses,Central Expenses,Insurance Claims,60079949,LEGAL COSTS NEGOTIATORS,462.61,30/05/2017,,
Central Expenses,Central Expenses,Insurance Claims,80010042,LONGROVE SURGERY,50.00,08/05/2017,,
Central Expenses,Central Expenses,Insurance Claims,80010215,LV=,"1,272.14",18/05/2017,,
Central Expenses,Central Expenses,Insurance Claims,80010196,OGR STOCK DENTON,"1,000.00",16/05/2017,,
Central Expenses,Central Expenses,Insurance Claims,80010207,OSBORNES SOLICITORS LLP CLIENT,"7,000.00",16/05/2017,,
Central Expenses,Central Expenses,Insurance Claims,80010209,OSBORNES SOLICITORS LLP CLIENT,"1,600.00",16/05/2017,,
Central Expenses,Central Expenses,Insurance Claims,80009970,REDACTED - PERSONAL DATA,50.00,04/05/2017,,
Central Expenses,Central Expenses,Insurance Claims,80010230,ROMAIN COLEMAN SOLICITORS,"19,039.20",17/05/2017,,
Central Expenses,Central Expenses,Insurance Claims,80009929,ROYAL FREE LONDON NHS TRUST,25.00,02/05/2017,,
Central Expenses,Central Expenses,Insurance Claims,80009963,ROYAL FREE LONDON NHS TRUST,25.00,04/05/2017,,
Central Expenses,Central Expenses,Insurance Claims,80009974,ROYAL FREE LONDON NHS TRUST,50.00,04/05/2017,,
Central Expenses,Central Expenses,Insurance Claims,80010053,SCOTT REES & CO SOLICITORS,"20,000.00",08/05/2017,,
Central Expenses,Central Expenses,Insurance Claims,80010217,SHOOSMITHS LLP,"10,800.00",16/05/2017,,
Central Expenses,Central Expenses,Insurance Claims,80009914,SLATER & GORDON SOLICITORS,796.00,02/05/2017,,
Central Expenses,Central Expenses,Insurance Claims,80009933,SLATER & GORDON SOLICITORS,"4,562.55",04/05/2017,,
Central Expenses,Central Expenses,Insurance Claims,80010329,SLATER AND GORDON SOLICITORS,"21,000.00",23/05/2017,,
Central Expenses,Central Expenses,Insurance Claims,80010031,SLATER GORDON SOLUTIONS,"7,827.00",17/05/2017,,
Central Expenses,Central Expenses,Insurance Claims,60076934,WEIGHTMANS LLP,"1,224.00",17/05/2017,,
Central Expenses,Central Expenses,Joint Authorities - Third Part,60077079,LONDON BOROUGH OF HARINGEY,"39,006.13",26/05/2017,,
Central Expenses,Central Expenses,Other Establishments - Third P,EBX0170649,LEE VALLEY REGIONAL PARK AUTH.,"30,430.52",17/05/2017,,
Central Expenses,Central Expenses,Other Establishments - Third P,EBX0171732,LONDON PENSIONS FUND AUTHORITY,"49,828.80",24/05/2017,,
Commercial,Births Deaths & Marriages,Cleaning and domestic material,60078523,CHURCHILL CONTRACT SERVICES,664.48,30/05/2017,,
Commercial,Customer Support Group,Bank Charges,20033822,GREATER LONDON AUTHORITY,742.45,03/05/2017,,
Commercial,Customer Support Group,Bank Charges,20033823,LONDON PENSIONS FUND AUTHORITY,6.14,03/05/2017,,
Commercial,Customer Support Group,Building Repairs & Maintenance,60077537,ADAMS ENVIRONMENTAL LTD,500.00,04/05/2017,,
Commercial,Customer Support Group,Building Repairs & Maintenance,60078397,AJS LTD,31.36,24/05/2017,,
Commercial,Customer Support Group,Building Repairs & Maintenance,60078411,AJS LTD,23.52,24/05/2017,,
Commercial,Customer Support Group,Building Repairs & Maintenance,60078451,AJS LTD,86.24,24/05/2017,,
Commercial,Customer Support Group,Building Repairs & Maintenance,60079384,AJS LTD,78.40,19/05/2017,,
Commercial,Customer Support Group,Building Repairs & Maintenance,60078508,CHARLES WILSON ENGINEERS LTD,253.00,10/05/2017,,
Commercial,Customer Support Group,Building Repairs & Maintenance,60078517,CHARLES WILSON ENGINEERS LTD,220.00,26/05/2017,,
Commercial,Customer Support Group,Building Repairs & Maintenance,60078525,CHARLES WILSON ENGINEERS LTD,920.00,10/05/2017,,
Commercial,Customer Support Group,Building Repairs & Maintenance,60078529,CHARLES WILSON ENGINEERS LTD,800.00,26/05/2017,,
Commercial,Customer Support Group,Building Repairs & Maintenance,60078549,CHARLES WILSON ENGINEERS LTD,920.00,10/05/2017,,
Commercial,Customer Support Group,Building Repairs & Maintenance,60078553,CHARLES WILSON ENGINEERS LTD,800.00,26/05/2017,,
Commercial,Customer Support Group,Building Repairs & Maintenance,60078559,CHARLES WILSON ENGINEERS LTD,548.00,26/05/2017,,
Commercial,Customer Support Group,Building Repairs & Maintenance,60078609,COLT INTERNATIONAL LTD,"1,072.00",23/05/2017,,
Commercial,Customer Support Group,Building Repairs & Maintenance,60078678,HERTEL (UK) LTD,104.74,25/05/2017,,
Commercial,Customer Support Group,Building Repairs & Maintenance,60078680,HERTEL (UK) LTD,104.74,25/05/2017,,
Commercial,Customer Support Group,Building Repairs & Maintenance,60078685,HERTEL (UK) LTD,104.74,25/05/2017,,
Commercial,Customer Support Group,Building Repairs & Maintenance,60078704,HERTEL (UK) LTD,104.74,25/05/2017,,
Commercial,Customer Support Group,Building Repairs & Maintenance,60078737,HERTEL (UK) LTD,104.74,25/05/2017,,
Commercial,Customer Support Group,Building Repairs & Maintenance,60078739,HERTEL (UK) LTD,104.74,25/05/2017,,
Commercial,Customer Support Group,Building Repairs & Maintenance,60078746,HERTEL (UK) LTD,119.70,25/05/2017,,
Commercial,Customer Support Group,Building Repairs & Maintenance,60078752,HERTEL (UK) LTD,104.74,25/05/2017,,
Commercial,Customer Support Group,Building Repairs & Maintenance,60078753,HERTEL (UK) LTD,104.74,25/05/2017,,
Commercial,Customer Support Group,Building Repairs & Maintenance,60078773,HERTEL (UK) LTD,"1,455.51",25/05/2017,,
Commercial,Customer Support Group,Building Repairs & Maintenance,60078789,HERTEL (UK) LTD,104.74,25/05/2017,,
Commercial,Customer Support Group,Building Repairs & Maintenance,60078796,HERTEL (UK) LTD,34.91,31/05/2017,,
Commercial,Customer Support Group,Building Repairs & Maintenance,60078809,HERTEL (UK) LTD,150.00,25/05/2017,,
Commercial,Customer Support Group,Building Repairs & Maintenance,60078817,HERTEL (UK) LTD,34.91,11/05/2017,,
Commercial,Customer Support Group,Building Repairs & Maintenance,60078826,HERTEL (UK) LTD,104.74,25/05/2017,,
Commercial,Customer Support Group,Building Repairs & Maintenance,60078827,HERTEL (UK) LTD,150.00,25/05/2017,,
Commercial,Customer Support Group,Building Repairs & Maintenance,60078835,HERTEL (UK) LTD,150.00,25/05/2017,,
Commercial,Customer Support Group,Building Repairs & Maintenance,60078836,HERTEL (UK) LTD,104.74,25/05/2017,,
Commercial,Customer Support Group,Building Repairs & Maintenance,60078851,HERTEL (UK) LTD,225.00,25/05/2017,,
Commercial,Customer Support Group,Building Repairs & Maintenance,60078854,HERTEL (UK) LTD,104.74,25/05/2017,,
Commercial,Customer Support Group,Building Repairs & Maintenance,60079380,HERTEL (UK) LTD,199.50,25/05/2017,,
Commercial,Customer Support Group,Building Repairs & Maintenance,60079403,HERTEL (UK) LTD,104.74,25/05/2017,,
Commercial,Customer Support Group,Building Repairs & Maintenance,60079404,HERTEL (UK) LTD,104.74,25/05/2017,,
Commercial,Customer Support Group,Building Repairs & Maintenance,60079408,HERTEL (UK) LTD,104.74,25/05/2017,,
Commercial,Customer Support Group,Building Repairs & Maintenance,60079410,HERTEL (UK) LTD,104.74,25/05/2017,,
Commercial,Customer Support Group,Building Repairs & Maintenance,60079414,HERTEL (UK) LTD,104.74,25/05/2017,,
Commercial,Customer Support Group,Building Repairs & Maintenance,60079425,HERTEL (UK) LTD,104.74,25/05/2017,,
Commercial,Customer Support Group,Building Repairs & Maintenance,60079483,HERTEL (UK) LTD,104.74,22/05/2017,,
Commercial,Customer Support Group,Building Repairs & Maintenance,60079497,HERTEL (UK) LTD,199.50,22/05/2017,,
Commercial,Customer Support Group,Building Repairs & Maintenance,60079501,HERTEL (UK) LTD,104.74,22/05/2017,,
Commercial,Customer Support Group,Building Repairs & Maintenance,60079505,HERTEL (UK) LTD,120.00,22/05/2017,,
Commercial,Customer Support Group,Building Repairs & Maintenance,60079512,HERTEL (UK) LTD,199.50,22/05/2017,,
Commercial,Customer Support Group,Building Repairs & Maintenance,60079521,HERTEL (UK) LTD,195.00,22/05/2017,,
Commercial,Customer Support Group,Building Repairs & Maintenance,60079526,HERTEL (UK) LTD,75.00,22/05/2017,,
Commercial,Customer Support Group,Building Repairs & Maintenance,60079540,HERTEL (UK) LTD,116.38,22/05/2017,,
Commercial,Customer Support Group,Building Repairs & Maintenance,60079541,HERTEL (UK) LTD,116.38,22/05/2017,,
Commercial,Customer Support Group,Building Repairs & Maintenance,60079547,HERTEL (UK) LTD,116.38,22/05/2017,,
Commercial,Customer Support Group,Building Repairs & Maintenance,60079559,HERTEL (UK) LTD,104.74,22/05/2017,,
Commercial,Customer Support Group,Building Repairs & Maintenance,60079571,HERTEL (UK) LTD,45.00,22/05/2017,,
Commercial,Customer Support Group,Building Repairs & Maintenance,60079573,HERTEL (UK) LTD,116.38,22/05/2017,,
Commercial,Customer Support Group,Building Repairs & Maintenance,60077356,LEE SECURITY LONDON LIMITED,83.00,04/05/2017,,
Commercial,Customer Support Group,Building Repairs & Maintenance,60078468,LEE SECURITY LONDON LIMITED,437.00,24/05/2017,,
Commercial,Customer Support Group,Building Repairs & Maintenance,60077815,OAKRAY LIMITED,96.00,19/05/2017,,
Commercial,Customer Support Group,Building Repairs & Maintenance,60077816,OAKRAY LIMITED,56.00,10/05/2017,,
Commercial,Customer Support Group,Building Repairs & Maintenance,60077820,OAKRAY LIMITED,96.00,11/05/2017,,
Commercial,Customer Support Group,Building Repairs & Maintenance,60077824,OAKRAY LIMITED,96.00,19/05/2017,,
Commercial,Customer Support Group,Building Repairs & Maintenance,60077833,OAKRAY LIMITED,80.00,10/05/2017,,
Commercial,Customer Support Group,Building Repairs & Maintenance,60077834,OAKRAY LIMITED,64.00,10/05/2017,,
Commercial,Customer Support Group,Building Repairs & Maintenance,60077835,OAKRAY LIMITED,96.00,11/05/2017,,
Commercial,Customer Support Group,Building Repairs & Maintenance,60077837,OAKRAY LIMITED,105.98,19/05/2017,,
Commercial,Customer Support Group,Building Repairs & Maintenance,60077847,OAKRAY LIMITED,80.00,10/05/2017,,
Commercial,Customer Support Group,Building Repairs & Maintenance,60077848,OAKRAY LIMITED,80.00,10/05/2017,,
Commercial,Customer Support Group,Building Repairs & Maintenance,60077849,OAKRAY LIMITED,64.00,19/05/2017,,
Commercial,Customer Support Group,Building Repairs & Maintenance,60077851,OAKRAY LIMITED,64.00,19/05/2017,,
Commercial,Customer Support Group,Building Repairs & Maintenance,60077858,OAKRAY LIMITED,249.12,19/05/2017,,
Commercial,Customer Support Group,Building Repairs & Maintenance,60077861,OAKRAY LIMITED,160.00,10/05/2017,,
Commercial,Customer Support Group,Building Repairs & Maintenance,60077864,OAKRAY LIMITED,80.00,19/05/2017,,
Commercial,Customer Support Group,Building Repairs & Maintenance,60077869,OAKRAY LIMITED,196.11,10/05/2017,,
Commercial,Customer Support Group,Building Repairs & Maintenance,60077870,OAKRAY LIMITED,64.00,19/05/2017,,
Commercial,Customer Support Group,Building Repairs & Maintenance,60077871,OAKRAY LIMITED,88.00,10/05/2017,,
Commercial,Customer Support Group,Building Repairs & Maintenance,60077872,OAKRAY LIMITED,96.00,10/05/2017,,
Commercial,Customer Support Group,Building Repairs & Maintenance,60077873,OAKRAY LIMITED,274.00,19/05/2017,,
Commercial,Customer Support Group,Building Repairs & Maintenance,60077876,OAKRAY LIMITED,80.00,19/05/2017,,
Commercial,Customer Support Group,Building Repairs & Maintenance,60077878,OAKRAY LIMITED,80.00,10/05/2017,,
Commercial,Customer Support Group,Building Repairs & Maintenance,60077884,OAKRAY LIMITED,238.13,19/05/2017,,
Commercial,Customer Support Group,Building Repairs & Maintenance,60077888,OAKRAY LIMITED,88.00,19/05/2017,,
Commercial,Customer Support Group,Building Repairs & Maintenance,60077889,OAKRAY LIMITED,126.92,11/05/2017,,
Commercial,Customer Support Group,Building Repairs & Maintenance,60077891,OAKRAY LIMITED,72.00,19/05/2017,,
Commercial,Customer Support Group,Building Repairs & Maintenance,60077892,OAKRAY LIMITED,80.00,19/05/2017,,
Commercial,Customer Support Group,Building Repairs & Maintenance,60077902,OAKRAY LIMITED,72.00,10/05/2017,,
Commercial,Customer Support Group,Building Repairs & Maintenance,60077903,OAKRAY LIMITED,96.00,10/05/2017,,
Commercial,Customer Support Group,Building Repairs & Maintenance,60077905,OAKRAY LIMITED,80.00,10/05/2017,,
Commercial,Customer Support Group,Building Repairs & Maintenance,60077911,OAKRAY LIMITED,88.00,10/05/2017,,
Commercial,Customer Support Group,Building Repairs & Maintenance,60077913,OAKRAY LIMITED,205.62,19/05/2017,,
Commercial,Customer Support Group,Building Repairs & Maintenance,60078481,OAKRAY LIMITED,553.48,25/05/2017,,
Commercial,Customer Support Group,Building Repairs & Maintenance,60075670,RGE SERVICES,192.39,22/05/2017,,
Commercial,Customer Support Group,Building Repairs & Maintenance,60077112,RGE SERVICES,62.00,02/05/2017,,
Commercial,Customer Support Group,Building Repairs & Maintenance,60077294,RGE SERVICES,153.90,11/05/2017,,
Commercial,Customer Support Group,Building Repairs & Maintenance,60078763,RGE SERVICES,62.00,11/05/2017,,
Commercial,Customer Support Group,Building Repairs & Maintenance,60078771,RGE SERVICES,62.00,11/05/2017,,
Commercial,Customer Support Group,Building Repairs & Maintenance,60078772,RGE SERVICES,48.36,11/05/2017,,
Commercial,Customer Support Group,Building Repairs & Maintenance,60078778,RGE SERVICES,87.08,11/05/2017,,
Commercial,Customer Support Group,Building Repairs & Maintenance,60078786,RGE SERVICES,62.00,11/05/2017,,
Commercial,Customer Support Group,Building Repairs & Maintenance,60078793,RGE SERVICES,505.56,11/05/2017,,
Commercial,Customer Support Group,Building Repairs & Maintenance,60078799,RGE SERVICES,223.33,11/05/2017,,
Commercial,Customer Support Group,Building Repairs & Maintenance,60078800,RGE SERVICES,150.66,11/05/2017,,
Commercial,Customer Support Group,Building Repairs & Maintenance,60078819,RGE SERVICES,62.00,11/05/2017,,
Commercial,Customer Support Group,Building Repairs & Maintenance,60078823,RGE SERVICES,390.60,11/05/2017,,
Commercial,Customer Support Group,Building Repairs & Maintenance,60078841,RGE SERVICES,144.98,11/05/2017,,
Commercial,Customer Support Group,Building Repairs & Maintenance,60078847,RGE SERVICES,96.12,11/05/2017,,
Commercial,Customer Support Group,Building Repairs & Maintenance,60078850,RGE SERVICES,112.17,11/05/2017,,
Commercial,Customer Support Group,Building Repairs & Maintenance,60078886,RGE SERVICES,663.56,12/05/2017,,
Commercial,Customer Support Group,Building Repairs & Maintenance,60078891,RGE SERVICES,329.59,12/05/2017,,
Commercial,Customer Support Group,Building Repairs & Maintenance,60078902,RGE SERVICES,725.50,12/05/2017,,
Commercial,Customer Support Group,Building Repairs & Maintenance,60078930,RGE SERVICES,311.85,12/05/2017,,
Commercial,Customer Support Group,Building Repairs & Maintenance,60078950,RGE SERVICES,172.86,12/05/2017,,
Commercial,Customer Support Group,Building Repairs & Maintenance,60078959,RGE SERVICES,544.42,12/05/2017,,
Commercial,Customer Support Group,Building Repairs & Maintenance,60078986,RGE SERVICES,405.63,12/05/2017,,
Commercial,Customer Support Group,Building Repairs & Maintenance,60078993,RGE SERVICES,"2,288.65",12/05/2017,,
Commercial,Customer Support Group,Building Repairs & Maintenance,60055135,S W BRUCE & CO LTD,66.56,15/05/2017,,
Commercial,Customer Support Group,Building Repairs & Maintenance,60057571,S W BRUCE & CO LTD,224.31,15/05/2017,,
Commercial,Customer Support Group,Building Repairs & Maintenance,60075816,S W BRUCE & CO LTD,89.26,11/05/2017,,
Commercial,Customer Support Group,Building Repairs & Maintenance,60077458,S W BRUCE & CO LTD,57.00,09/05/2017,,
Commercial,Customer Support Group,Building Repairs & Maintenance,60077459,S W BRUCE & CO LTD,250.00,09/05/2017,,
Commercial,Customer Support Group,Building Repairs & Maintenance,60078032,S W BRUCE & CO LTD,91.71,24/05/2017,,
Commercial,Customer Support Group,Building Repairs & Maintenance,60078038,S W BRUCE & CO LTD,632.25,24/05/2017,,
Commercial,Customer Support Group,Building Repairs & Maintenance,60078052,S W BRUCE & CO LTD,85.50,24/05/2017,,
Commercial,Customer Support Group,Building Repairs & Maintenance,60078105,S W BRUCE & CO LTD,25.00,24/05/2017,,
Commercial,Customer Support Group,Building Repairs & Maintenance,60078121,S W BRUCE & CO LTD,57.00,24/05/2017,,
Commercial,Customer Support Group,Building Repairs & Maintenance,60078143,S W BRUCE & CO LTD,448.50,24/05/2017,,
Commercial,Customer Support Group,Building Repairs & Maintenance,60078147,S W BRUCE & CO LTD,318.54,24/05/2017,,
Commercial,Customer Support Group,Building Repairs & Maintenance,60078158,S W BRUCE & CO LTD,184.00,24/05/2017,,
Commercial,Customer Support Group,Building Repairs & Maintenance,60078168,S W BRUCE & CO LTD,66.56,24/05/2017,,
Commercial,Customer Support Group,Building Repairs & Maintenance,60078178,S W BRUCE & CO LTD,57.00,24/05/2017,,
Commercial,Customer Support Group,Building Repairs & Maintenance,60078179,S W BRUCE & CO LTD,81.79,24/05/2017,,
Commercial,Customer Support Group,Building Repairs & Maintenance,60078182,S W BRUCE & CO LTD,57.00,24/05/2017,,
Commercial,Customer Support Group,Building Repairs & Maintenance,60078188,S W BRUCE & CO LTD,57.00,24/05/2017,,
Commercial,Customer Support Group,Building Repairs & Maintenance,60078198,S W BRUCE & CO LTD,66.56,24/05/2017,,
Commercial,Customer Support Group,Building Repairs & Maintenance,60078383,S W BRUCE & CO LTD,293.25,24/05/2017,,
Commercial,Customer Support Group,Building Repairs & Maintenance,60078387,S W BRUCE & CO LTD,66.56,24/05/2017,,
Commercial,Customer Support Group,Building Repairs & Maintenance,60078394,S W BRUCE & CO LTD,57.00,24/05/2017,,
Commercial,Customer Support Group,Building Repairs & Maintenance,60078402,S W BRUCE & CO LTD,57.00,09/05/2017,,
Commercial,Customer Support Group,Building Repairs & Maintenance,60078407,S W BRUCE & CO LTD,31.13,24/05/2017,,
Commercial,Customer Support Group,Building Repairs & Maintenance,60078409,S W BRUCE & CO LTD,31.13,24/05/2017,,
Commercial,Customer Support Group,Building Repairs & Maintenance,60078480,S W BRUCE & CO LTD,139.02,24/05/2017,,
Commercial,Customer Support Group,Building Repairs & Maintenance,60078484,S W BRUCE & CO LTD,152.67,24/05/2017,,
Commercial,Customer Support Group,Building Repairs & Maintenance,60078487,S W BRUCE & CO LTD,"12,592.75",11/05/2017,,
Commercial,Customer Support Group,Building Repairs & Maintenance,60078492,S W BRUCE & CO LTD,96.75,24/05/2017,,
Commercial,Customer Support Group,Building Repairs & Maintenance,60078577,S W BRUCE & CO LTD,230.35,24/05/2017,,
Commercial,Customer Support Group,Building Repairs & Maintenance,60078579,S W BRUCE & CO LTD,189.82,24/05/2017,,
Commercial,Customer Support Group,Building Repairs & Maintenance,60078589,S W BRUCE & CO LTD,189.52,24/05/2017,,
Commercial,Customer Support Group,Building Repairs & Maintenance,60078591,S W BRUCE & CO LTD,25.00,24/05/2017,,
Commercial,Customer Support Group,Building Repairs & Maintenance,60078600,S W BRUCE & CO LTD,25.00,24/05/2017,,
Commercial,Customer Support Group,Building Repairs & Maintenance,60078616,S W BRUCE & CO LTD,57.00,24/05/2017,,
Commercial,Customer Support Group,Building Repairs & Maintenance,60078631,S W BRUCE & CO LTD,25.00,24/05/2017,,
Commercial,Customer Support Group,Building Repairs & Maintenance,60078637,S W BRUCE & CO LTD,25.00,24/05/2017,,
Commercial,Customer Support Group,Building Repairs & Maintenance,60078644,S W BRUCE & CO LTD,402.50,24/05/2017,,
Commercial,Customer Support Group,Building Repairs & Maintenance,60078645,S W BRUCE & CO LTD,114.68,24/05/2017,,
Commercial,Customer Support Group,Building Repairs & Maintenance,60078656,S W BRUCE & CO LTD,281.75,25/05/2017,,
Commercial,Customer Support Group,Building Repairs & Maintenance,60078658,S W BRUCE & CO LTD,57.00,24/05/2017,,
Commercial,Customer Support Group,Building Repairs & Maintenance,60079002,S W BRUCE & CO LTD,66.56,24/05/2017,,
Commercial,Customer Support Group,Building Repairs & Maintenance,60079008,S W BRUCE & CO LTD,66.56,24/05/2017,,
Commercial,Customer Support Group,Building Repairs & Maintenance,60079042,S W BRUCE & CO LTD,226.56,15/05/2017,,
Commercial,Customer Support Group,Building Repairs & Maintenance,60079068,S W BRUCE & CO LTD,57.00,24/05/2017,,
Commercial,Customer Support Group,Building Repairs & Maintenance,60079069,S W BRUCE & CO LTD,42.75,24/05/2017,,
Commercial,Customer Support Group,Building Repairs & Maintenance,60079091,S W BRUCE & CO LTD,25.00,24/05/2017,,
Commercial,Customer Support Group,Building Repairs & Maintenance,60079119,S W BRUCE & CO LTD,57.00,24/05/2017,,
Commercial,Customer Support Group,Building Repairs & Maintenance,60079121,S W BRUCE & CO LTD,402.50,24/05/2017,,
Commercial,Customer Support Group,Building Repairs & Maintenance,60079172,S W BRUCE & CO LTD,148.06,24/05/2017,,
Commercial,Customer Support Group,Building Repairs & Maintenance,60079184,S W BRUCE & CO LTD,134.90,24/05/2017,,
Commercial,Customer Support Group,Building Repairs & Maintenance,60079221,S W BRUCE & CO LTD,171.00,24/05/2017,,
Commercial,Customer Support Group,Building Repairs & Maintenance,60079489,S W BRUCE & CO LTD,25.00,24/05/2017,,
Commercial,Customer Support Group,Building Repairs & Maintenance,60079508,S W BRUCE & CO LTD,147.95,24/05/2017,,
Commercial,Customer Support Group,Building Repairs & Maintenance,60078427,WMF,120.00,05/05/2017,,
Commercial,Customer Support Group,Building Repairs & Maintenance,60078428,WMF,"2,150.00",05/05/2017,,
Commercial,Customer Support Group,Building Repairs & Maintenance,60078501,WMF,120.00,05/05/2017,,
Commercial,Customer Support Group,Cleaning and domestic material,60078515,CHURCHILL CONTRACT SERVICES,"1,133.45",30/05/2017,,
Commercial,Customer Support Group,Cleaning and domestic material,60078541,CHURCHILL CONTRACT SERVICES,"11,562.54",30/05/2017,,
Commercial,Customer Support Group,Cleaning and domestic material,60078558,CHURCHILL CONTRACT SERVICES,661.80,30/05/2017,,
Commercial,Customer Support Group,Cleaning and domestic material,60078562,CHURCHILL CONTRACT SERVICES,"1,032.37",30/05/2017,,
Commercial,Customer Support Group,Cleaning and domestic material,60078564,CHURCHILL CONTRACT SERVICES,294.16,30/05/2017,,
Commercial,Customer Support Group,Cleaning and domestic material,60078816,HERTFORDSHIRE COUNTY COUNCIL,165.10,11/05/2017,,
Commercial,Customer Support Group,Cleaning and domestic material,60048783,HERTFORDSHIRE SUPPLIES   COUNTY CO,-0.07,09/05/2017,,
Commercial,Customer Support Group,Cleaning and domestic material,60056775,HERTFORDSHIRE SUPPLIES   COUNTY CO,-80.00,09/05/2017,,
Commercial,Customer Support Group,Cleaning and domestic material,60056787,HERTFORDSHIRE SUPPLIES   COUNTY CO,-16.00,09/05/2017,,
Commercial,Customer Support Group,Cleaning and domestic material,60058674,HERTFORDSHIRE SUPPLIES   COUNTY CO,-64.00,09/05/2017,,
Commercial,Customer Support Group,Cleaning and domestic material,60071778,HERTFORDSHIRE SUPPLIES   COUNTY CO,-50.00,09/05/2017,,
Commercial,Customer Support Group,Cleaning and domestic material,60078820,HERTFORDSHIRE SUPPLIES   COUNTY CO,"2,124.26",11/05/2017,,
Commercial,Customer Support Group,Cleaning and domestic material,60078845,HERTFORDSHIRE SUPPLIES   COUNTY CO,319.36,11/05/2017,,
Commercial,Customer Support Group,Cleaning and domestic material,60078857,HERTFORDSHIRE SUPPLIES   COUNTY CO,"1,813.36",11/05/2017,,
Commercial,Customer Support Group,CSG Services Contract Payment,60064070,CAPITA BUSINESS SERVICES LTD,"500,000.00",19/05/2017,,
Commercial,Customer Support Group,CSG Services Contract Payment,60077617,CAPITA BUSINESS SERVICES LTD,"338,400.50",02/05/2017,,
Commercial,Customer Support Group,CSG Services Contract Payment,60077667,CAPITA BUSINESS SERVICES LTD,"20,960.66",30/05/2017,,
Commercial,Customer Support Group,CSG Services Contract Payment,60078051,CAPITA BUSINESS SERVICES LTD,"144,474.93",09/05/2017,,
Commercial,Customer Support Group,CSG Services Contract Payment,60078862,CAPITA BUSINESS SERVICES LTD,"46,787.58",22/05/2017,,
Commercial,Customer Support Group,CSG Services Contract Payment,60079096,CAPITA BUSINESS SERVICES LTD,"20,960.66",24/05/2017,,
Commercial,Customer Support Group,CSG Services Contract Payment,60079406,CAPITA BUSINESS SERVICES LTD,"35,381.25",19/05/2017,,
Commercial,Customer Support Group,CSG Services Contract Payment,60079422,CAPITA BUSINESS SERVICES LTD,"21,828.23",19/05/2017,,
Commercial,Customer Support Group,CSG Services Contract Payment,60079539,CAPITA BUSINESS SERVICES LTD,"769,445.67",31/05/2017,,
Commercial,Customer Support Group,Electricity,60078709,BRITISH GAS BUSINESS,"1,061.72",15/05/2017,,
Commercial,Customer Support Group,Electricity,60077335,BRITISH GAS BUSINESS(ELEC),830.51,05/05/2017,,
Commercial,Customer Support Group,Electricity,10013718,EDF ENERGY 1 LTD,307.52,05/05/2017,,
Commercial,Customer Support Group,Electricity,60079917,E-ON ENERGY,23.60,26/05/2017,,
Commercial,Customer Support Group,Electricity,60077819,KENT COUNTY COUNCIL (KCS),"1,978.44",09/05/2017,,
Commercial,Customer Support Group,Electricity,60077880,KENT COUNTY COUNCIL (KCS),"7,202.41",02/05/2017,,
Commercial,Customer Support Group,Electricity,60077901,KENT COUNTY COUNCIL (KCS),"1,506.99",08/05/2017,,
Commercial,Customer Support Group,Electricity,60077918,KENT COUNTY COUNCIL (KCS),603.84,08/05/2017,,
Commercial,Customer Support Group,Electricity,60078049,KENT COUNTY COUNCIL (KCS),"5,943.86",02/05/2017,,
Commercial,Customer Support Group,Electricity,60078085,KENT COUNTY COUNCIL (KCS),437.02,02/05/2017,,
Commercial,Customer Support Group,Electricity,60078108,KENT COUNTY COUNCIL (KCS),106.55,08/05/2017,,
Commercial,Customer Support Group,Electricity,60078120,KENT COUNTY COUNCIL (KCS),259.01,08/05/2017,,
Commercial,Customer Support Group,Electricity,60079023,KENT COUNTY COUNCIL (KCS),"6,207.95",26/05/2017,,
Commercial,Customer Support Group,Electricity,60079369,KENT COUNTY COUNCIL (KCS),354.47,31/05/2017,,
Commercial,Customer Support Group,Electricity,60079378,KENT COUNTY COUNCIL (KCS),"7,369.38",31/05/2017,,
Commercial,Customer Support Group,Electricity,60079387,KENT COUNTY COUNCIL (KCS),"5,042.20",26/05/2017,,
Commercial,Customer Support Group,Electricity,60079589,KENT COUNTY COUNCIL (KCS),696.25,23/05/2017,,
Commercial,Customer Support Group,Electricity,60079595,KENT COUNTY COUNCIL (KCS),348.46,26/05/2017,,
Commercial,Customer Support Group,Electricity,60079606,KENT COUNTY COUNCIL (KCS),876.66,23/05/2017,,
Commercial,Customer Support Group,Electricity,60079610,KENT COUNTY COUNCIL (KCS),776.87,23/05/2017,,
Commercial,Customer Support Group,Electricity,60079614,KENT COUNTY COUNCIL (KCS),818.13,23/05/2017,,
Commercial,Customer Support Group,Electricity,60079629,KENT COUNTY COUNCIL (KCS),559.22,23/05/2017,,
Commercial,Customer Support Group,Electricity,60079646,KENT COUNTY COUNCIL (KCS),60.37,23/05/2017,,
Commercial,Customer Support Group,Electricity,60079659,KENT COUNTY COUNCIL (KCS),865.33,23/05/2017,,
Commercial,Customer Support Group,Electricity,60079674,KENT COUNTY COUNCIL (KCS),984.46,23/05/2017,,
Commercial,Customer Support Group,Electricity,60079697,KENT COUNTY COUNCIL (KCS),701.35,23/05/2017,,
Commercial,Customer Support Group,Electricity,60079699,KENT COUNTY COUNCIL (KCS),869.49,23/05/2017,,
Commercial,Customer Support Group,Electricity,60078729,MIDDLESEX UNIVERSITY,"1,379.34",11/05/2017,,
Commercial,Customer Support Group,Electricity,60077653,NPOWER,813.57,05/05/2017,,
Commercial,Customer Support Group,Electricity,60078632,NPOWER,"1,426.58",09/05/2017,,
Commercial,Customer Support Group,Electricity,10013728,OPUS ENERGY LTD,10.64,24/05/2017,,
Commercial,Customer Support Group,Electricity,60078286,OPUS ENERGY LTD,3.55,25/05/2017,,
Commercial,Customer Support Group,Furniture-Purchase-Repair,60077399,SCREWFIX DIRECT LTD,47.81,05/05/2017,,
Commercial,Customer Support Group,Gas,60078037,KENT COUNTY COUNCIL (KCS),531.17,02/05/2017,,
Commercial,Customer Support Group,Gas,60078040,KENT COUNTY COUNCIL (KCS),"8,412.79",02/05/2017,,
Commercial,Customer Support Group,Gas,60078056,KENT COUNTY COUNCIL (KCS),"4,192.61",02/05/2017,,
Commercial,Customer Support Group,Gas,60078057,KENT COUNTY COUNCIL (KCS),460.52,02/05/2017,,
Commercial,Customer Support Group,Gas,60078818,KENT COUNTY COUNCIL (KCS),143.80,11/05/2017,,
Commercial,Customer Support Group,Gas,60079370,KENT COUNTY COUNCIL (KCS),402.35,31/05/2017,,
Commercial,Customer Support Group,Gas,60079419,KENT COUNTY COUNCIL (KCS),"2,463.55",31/05/2017,,
Commercial,Customer Support Group,Gas,60079597,KENT COUNTY COUNCIL (KCS),526.24,23/05/2017,,
Commercial,Customer Support Group,Gas,60079602,KENT COUNTY COUNCIL (KCS),642.55,23/05/2017,,
Commercial,Customer Support Group,Gas,60079615,KENT COUNTY COUNCIL (KCS),517.94,23/05/2017,,
Commercial,Customer Support Group,Gas,60079630,KENT COUNTY COUNCIL (KCS),543.27,23/05/2017,,
Commercial,Customer Support Group,Gas,60079637,KENT COUNTY COUNCIL (KCS),373.97,23/05/2017,,
Commercial,Customer Support Group,Gas,60079665,KENT COUNTY COUNCIL (KCS),579.91,23/05/2017,,
Commercial,Customer Support Group,Gas,60079676,KENT COUNTY COUNCIL (KCS),525.82,23/05/2017,,
Commercial,Customer Support Group,Gas,60079688,KENT COUNTY COUNCIL (KCS),631.77,23/05/2017,,
Commercial,Customer Support Group,Gas,60079696,KENT COUNTY COUNCIL (KCS),272.98,23/05/2017,,
Commercial,Customer Support Group,Gas,60078745,MIDDLESEX UNIVERSITY,571.85,11/05/2017,,
Commercial,Customer Support Group,Gas,60077217,TOTAL GAS & POWER LTD,"1,703.64",04/05/2017,,
Commercial,Customer Support Group,Gas,60077248,TOTAL GAS & POWER LTD,"1,334.66",09/05/2017,,
Commercial,Customer Support Group,Grounds maintenance,60078472,RIBBEX UK LTD,590.38,17/05/2017,,
Commercial,Customer Support Group,Other Energy,60078041,EDF ENERGY CUSTOMER FIELD SERVICES,143.80,05/05/2017,,
Commercial,Customer Support Group,Other Energy,60078053,EDF ENERGY CUSTOMER FIELD SERVICES,143.80,05/05/2017,,
Commercial,Customer Support Group,Other Energy,60078083,EDF ENERGY CUSTOMER FIELD SERVICES,143.80,05/05/2017,,
Commercial,Customer Support Group,Other Services,60078519,BLUE 9 SECURITY LIMITED,"4,929.66",10/05/2017,,
Commercial,Customer Support Group,Other Services,60078543,BLUE 9 SECURITY LIMITED,"11,210.40",10/05/2017,,
Commercial,Customer Support Group,Other Services,60078544,BLUE 9 SECURITY LIMITED,"16,121.67",10/05/2017,,
Commercial,Customer Support Group,Other Services,60078545,BLUE 9 SECURITY LIMITED,"22,039.20",10/05/2017,,
Commercial,Customer Support Group,Other Services,60078563,BLUE 9 SECURITY LIMITED,132.35,11/05/2017,,
Commercial,Customer Support Group,Other Services,60078767,BLUE 9 SECURITY LIMITED,201.45,11/05/2017,,
Commercial,Customer Support Group,Other Services,60078849,BLUE 9 SECURITY LIMITED,402.90,11/05/2017,,
Commercial,Customer Support Group,Other Services,60078920,BLUE 9 SECURITY LIMITED,653.94,12/05/2017,,
Commercial,Customer Support Group,Other Services,20033996,DAVID HARRIS & CO,25.00,19/05/2017,,
Commercial,Customer Support Group,Postage,60078787,ROYAL MAIL GROUP LIMITED,"6,329.67",12/05/2017,,
Commercial,Customer Support Group,Professional Services,60077577,EQUITA LTD HIGH COURT ENFORCEMENT,135.00,18/05/2017,,
Commercial,Customer Support Group,Professional Services,60077579,EQUITA LTD HIGH COURT ENFORCEMENT,592.75,18/05/2017,,
Commercial,Customer Support Group,Professional Services,60077623,EQUITA LTD HIGH COURT ENFORCEMENT,141.00,18/05/2017,,
Commercial,Customer Support Group,Professional Services,60079106,LAZARI INVESTMENTS LTD,94.50,15/05/2017,,
Commercial,Customer Support Group,Professional Services,60079123,LAZARI INVESTMENTS LTD,"17,754.04",15/05/2017,,
Commercial,Customer Support Group,Publications,60077216,PHONOGRAPHIC PERFORMANCE LTD,133.12,04/05/2017,,
Commercial,Customer Support Group,Rents,60079426,NETWORK RAIL ACCOUNTS RECEIVABLE,"20,375.00",19/05/2017,,
Commercial,Customer Support Group,Rubbish Collection,60078432,PEARCE RECYCLING CO. LTD,25.00,30/05/2017,,
Commercial,Customer Support Group,Rubbish Collection,60078467,PEARCE RECYCLING CO. LTD,25.00,30/05/2017,,
Commercial,Customer Support Group,Rubbish Collection,60079371,PEARCE RECYCLING CO. LTD,27.00,26/05/2017,,
Commercial,Customer Support Group,Service Charges,60078995,BARNET & SOUTHGATE COLLEGE,"18,827.20",30/05/2017,,
Commercial,Customer Support Group,Subscriptions,60078675,CIPFA BUSINESS LIMITED,375.00,10/05/2017,,
Commercial,Customer Support Group,Subscriptions,60079190,CIPFA BUSINESS LIMITED,750.00,25/05/2017,,
Commercial,Customer Support Group,Telephones Calls,10013729,BRITISH TELECOM PLC,595.22,25/05/2017,,
Commercial,Customer Support Group,Telephones Calls,10013730,BRITISH TELECOM PLC,426.68,25/05/2017,,
Commercial,Customer Support Group,Telephones Calls,10013731,BRITISH TELECOM PLC,408.28,25/05/2017,,
Commercial,Customer Support Group,Telephones Calls,10013732,BRITISH TELECOM PLC,311.29,25/05/2017,,
Commercial,Customer Support Group,Telephones Calls,60079938,BRITISH TELECOM PLC,141.40,26/05/2017,,
Commercial,Customer Support Group,Training,60079946,SKILLS TRAINING CENTRE LTD,750.00,26/05/2017,,
Commercial,Customer Support Group,Ttl IT & Comms,60078682,TELEFONICA UK LTD,"1,226.43",10/05/2017,,
Commercial,Customer Support Group,Ttl IT & Comms,60078728,TELEFONICA UK LTD,"13,928.35",26/05/2017,,
Commercial,Customer Support Group,Water Services,60078698,AFFINITY WATER LIMITED,"2,063.13",10/05/2017,,
Commercial,Customer Support Group,Water Services,60078738,ANGEL SPRINGS LTD,100.00,26/05/2017,,
Commercial,Customer Support Group,Water Services,60078977,ANGEL SPRINGS LTD,46.00,26/05/2017,,
Commercial,Customer Support Group,Water Services,60078693,MIDDLESEX UNIVERSITY,687.91,11/05/2017,,
Commercial,Customer Support Group,Water Services,60079888,THAMES WATER UTILITIES LIMITED,303.80,26/05/2017,,
Commercial,Housing Needs Resources,Miscellaneous Expenses,60077300,THE BARNETGROUP LIMITED,"2,540.78",25/05/2017,,
Commercial,Housing Needs Resources,Other Agencies - Third Party P,60079670,THE BARNETGROUP LIMITED,"3,695.79",26/05/2017,,
Commercial,Housing Needs Resources,Other Services,60065715,THE BARNETGROUP LIMITED,"7,813.00",25/05/2017,,
Commercial,Housing Needs Resources,Other Services,60077853,THE BARNETGROUP LIMITED,"12,642.54",03/05/2017,,
Commercial,Housing Needs Resources,Other Services,60077863,THE BARNETGROUP LIMITED,"23,800.61",03/05/2017,,
Commercial,Housing Needs Resources,Other Services,60078283,THE BARNETGROUP LIMITED,"30,000.00",12/05/2017,,
Commercial,Housing Needs Resources,Other Services,60079618,THE BARNETGROUP LIMITED,"12,642.54",26/05/2017,,
Commercial,Housing Needs Resources,Other Services,60079678,THE BARNETGROUP LIMITED,"23,800.61",26/05/2017,,
Commercial,Housing Needs Resources,Private Contractors - Third Pa,60079182,THE BARNETGROUP LIMITED,"11,955.88",17/05/2017,,
Commercial,Housing Needs Resources,Private Contractors - Third Pa,60079681,THE BARNETGROUP LIMITED,"1,853,222.33",26/05/2017,,
Commercial,HRA,Consultants Fees,60078245,CONSULTCIH (T/A CIH CONSULTANCY),"4,200.00",11/05/2017,,
Commercial,HRA,Consultants Fees,60079689,P P C R ASSOCIATES LTD,367.01,23/05/2017,,
Commercial,HRA,Consultants Fees,60079693,P P C R ASSOCIATES LTD,"1,155.05",23/05/2017,,
Commercial,HRA,Consultants Fees,60077524,PRIORITY ESTATES PROJECT LTD,"2,305.05",04/05/2017,,
Commercial,HRA,Consultants Fees,60078363,PRIORITY ESTATES PROJECT LTD,"2,514.60",25/05/2017,,
Commercial,HRA,Consultants Fees,60077601,STRATEGIC URBAN FUTURES LIMITED,453.31,16/05/2017,,
Commercial,HRA,Consultants Fees,60077604,STRATEGIC URBAN FUTURES LIMITED,399.98,16/05/2017,,
Commercial,HRA,Consultants Fees,60078348,THE BARNETGROUP LIMITED,"6,015.58",04/05/2017,,
Commercial,HRA,Consultants Fees,60078643,THE BARNETGROUP LIMITED,"3,242.40",09/05/2017,,
Commercial,HRA,Consultants Fees,60078648,THE BARNETGROUP LIMITED,989.90,09/05/2017,,
Commercial,HRA,Consultants Fees,60078659,THE BARNETGROUP LIMITED,"3,478.36",09/05/2017,,
Commercial,HRA,Miscellaneous Expenses,60079223,CENTERPLATE UK,"2,035.05",30/05/2017,,
Commercial,HRA,Other Services,60079692,THE BARNETGROUP LIMITED,"2,048,526.26",26/05/2017,,
Commercial,Parking & Infrastructure,Electricity,60078217,BARNET LIGHTING SERVICES LTD,"459,110.30",04/05/2017,,
Commercial,Parking & Infrastructure,Equipment and Materials Purcha,60079199,ACCESS INNOVATIONS UK LTD,585.00,25/05/2017,,
Commercial,Parking & Infrastructure,Equipment and Materials Purcha,60076914,GREENHAM TRADING LIMITED,"1,665.78",02/05/2017,,
Commercial,Parking & Infrastructure,Equipment and Materials Purcha,60077412,GREENHAM TRADING LIMITED,181.98,04/05/2017,,
Commercial,Parking & Infrastructure,Equipment and Materials Purcha,60077493,GREENHAM TRADING LIMITED,141.80,10/05/2017,,
Commercial,Parking & Infrastructure,Equipment and Materials Purcha,60077912,GREENHAM TRADING LIMITED,389.76,03/05/2017,,
Commercial,Parking & Infrastructure,Equipment and Materials Purcha,60078421,GREENHAM TRADING LIMITED,468.60,25/05/2017,,
Commercial,Parking & Infrastructure,Equipment and Materials Purcha,60078861,INSTARMAC GROUP PLC,"5,522.40",12/05/2017,,
Commercial,Parking & Infrastructure,Equipment and Materials Purcha,60077894,LAFARGE TARMAC TRADING LIMITED,216.67,04/05/2017,,
Commercial,Parking & Infrastructure,Equipment and Materials Purcha,60077915,LAFARGE TARMAC TRADING LIMITED,126.88,02/05/2017,,
Commercial,Parking & Infrastructure,Equipment and Materials Purcha,60078450,LAFARGE TARMAC TRADING LIMITED,240.10,11/05/2017,,
Commercial,Parking & Infrastructure,Equipment and Materials Purcha,60078455,LAFARGE TARMAC TRADING LIMITED,121.02,09/05/2017,,
Commercial,Parking & Infrastructure,Equipment and Materials Purcha,60078869,LAFARGE TARMAC TRADING LIMITED,95.65,18/05/2017,,
Commercial,Parking & Infrastructure,Equipment and Materials Purcha,60078883,LAFARGE TARMAC TRADING LIMITED,124.93,12/05/2017,,
Commercial,Parking & Infrastructure,Equipment and Materials Purcha,60078905,LAFARGE TARMAC TRADING LIMITED,109.31,18/05/2017,,
Commercial,Parking & Infrastructure,Equipment and Materials Purcha,60078952,LAFARGE TARMAC TRADING LIMITED,341.60,25/05/2017,,
Commercial,Parking & Infrastructure,Equipment and Materials Purcha,60074339,PREMIER PEOPLE SOLUTIONS LTD,900.00,05/05/2017,,
Commercial,Parking & Infrastructure,Equipment and Materials Purcha,60078058,RM COUNTRYSIDE SERVICES LTD,565.00,04/05/2017,,
Commercial,Parking & Infrastructure,Equipment and Materials Purcha,60077632,TOWNSCAPE PRODUCTS LTD,"2,498.00",17/05/2017,,
Commercial,Parking & Infrastructure,Equipment and Materials Purcha,60078990,W. FAYERS & SONS,761.60,12/05/2017,,
Commercial,Parking & Infrastructure,Equipment and Materials Purcha,60077922,WM SMITH & SONS LIMITED,91.31,03/05/2017,,
Commercial,Parking & Infrastructure,Equipment and Materials Purcha,60078980,WM SMITH & SONS LIMITED,783.72,12/05/2017,,
Commercial,Parking & Infrastructure,Other Services,60077680,NSL LTD,"2,114.40",25/05/2017,,
Commercial,Parking & Infrastructure,Other Services,60044593,PARKEON LIMITED,-630.00,18/05/2017,,
Commercial,Parking & Infrastructure,Other Services,60077857,PARKEON LIMITED,"2,581.52",18/05/2017,,
Commercial,Parking & Infrastructure,Other Services,60077862,PARKEON LIMITED,810.00,18/05/2017,,
Commercial,Parking & Infrastructure,Professional Services,60077643,NSL LTD,"4,589.89",25/05/2017,,
Commercial,Parking & Infrastructure,Professional Services,60077689,NSL LTD,"5,474.66",25/05/2017,,
Commercial,Parking & Infrastructure,Professional Services,60079152,NSL LTD,"16,390.20",17/05/2017,,
Commercial,Parking & Infrastructure,Professional Services,60079200,NSL LTD,"2,294.95",17/05/2017,,
Commercial,Parking & Infrastructure,Software Licences & Support,60077684,NSL LTD,"7,939.63",02/05/2017,,
Commercial,Public Health,Health authorities - Third Par,60079784,LONDON BOROUGH OF HARROW,"1,904,263.00",26/05/2017,,
Commercial,Public Health,Other Transfer Payments to Soc,60078135,CENTRAL LONDONCOMMUNITY HEALTHCARE,"356,000.00",08/05/2017,,
Commercial,Public Health,Other Transfer Payments to Soc,60078138,CENTRAL LONDONCOMMUNITY HEALTHCARE,"29,167.00",08/05/2017,,
Commercial,Public Health,Other Transfer Payments to Soc,60079791,CENTRAL LONDONCOMMUNITY HEALTHCARE,"356,000.00",31/05/2017,,
Commercial,Public Health,Other Transfer Payments to Soc,60079792,CENTRAL LONDONCOMMUNITY HEALTHCARE,"29,167.00",31/05/2017,,
Commercial,Public Health,Professional Services,60078157,CENTRAL LONDONCOMMUNITY HEALTHCARE,"85,834.00",08/05/2017,,
Commercial,Public Health,Professional Services,60078167,CENTRAL LONDONCOMMUNITY HEALTHCARE,"4,917.00",08/05/2017,,
Commercial,Public Health,Professional Services,60078192,CENTRAL LONDONCOMMUNITY HEALTHCARE,"9,583.00",08/05/2017,,
Commercial,Public Health,Professional Services,60079793,CENTRAL LONDONCOMMUNITY HEALTHCARE,"85,834.00",31/05/2017,,
Commercial,Public Health,Professional Services,60079832,CENTRAL LONDONCOMMUNITY HEALTHCARE,"4,917.00",31/05/2017,,
Commercial,Public Health,Professional Services,60079851,CENTRAL LONDONCOMMUNITY HEALTHCARE,"9,583.00",31/05/2017,,
Commercial,Regional Enterprise,Advertising,60077754,TMP (UK) LTD,112.08,12/05/2017,,
Commercial,Regional Enterprise,Advertising,60077766,TMP (UK) LTD,119.20,12/05/2017,,
Commercial,Regional Enterprise,Advertising,60077776,TMP (UK) LTD,112.08,12/05/2017,,
Commercial,Regional Enterprise,Advertising,60078197,TMP (UK) LTD,112.08,12/05/2017,,
Commercial,Regional Enterprise,Advertising,60078314,TMP (UK) LTD,108.51,12/05/2017,,
Commercial,Regional Enterprise,Advertising,60078343,TMP (UK) LTD,32.08,12/05/2017,,
Commercial,Regional Enterprise,Advertising,60078347,TMP (UK) LTD,32.08,12/05/2017,,
Commercial,Regional Enterprise,Advertising,60078361,TMP (UK) LTD,32.08,12/05/2017,,
Commercial,Regional Enterprise,Advertising,60078372,TMP (UK) LTD,39.20,12/05/2017,,
Commercial,Regional Enterprise,Advertising,60078683,TMP (UK) LTD,112.08,22/05/2017,,
Commercial,Regional Enterprise,Advertising,60078699,TMP (UK) LTD,28.51,12/05/2017,,
Commercial,Regional Enterprise,Advertising,60078741,TMP (UK) LTD,112.08,22/05/2017,,
Commercial,Regional Enterprise,Advertising,60078747,TMP (UK) LTD,112.08,22/05/2017,,
Commercial,Regional Enterprise,Advertising,60079258,TMP (UK) LTD,112.08,26/05/2017,,
Commercial,Regional Enterprise,Advertising,60079269,TMP (UK) LTD,32.08,22/05/2017,,
Commercial,Regional Enterprise,Advertising,60079288,TMP (UK) LTD,32.08,22/05/2017,,
Commercial,Regional Enterprise,Advertising,60079300,TMP (UK) LTD,119.20,26/05/2017,,
Commercial,Regional Enterprise,Advertising,60079310,TMP (UK) LTD,32.08,22/05/2017,,
Commercial,Regional Enterprise,Advertising,60079722,TMP (UK) LTD,39.20,25/05/2017,,
Commercial,Regional Enterprise,Advertising,60079775,TMP (UK) LTD,32.08,25/05/2017,,
Commercial,Regional Enterprise,Advertising,60079822,TMP (UK) LTD,32.08,25/05/2017,,
Commercial,Regional Enterprise,Advertising,60079853,TMP (UK) LTD,172.66,25/05/2017,,
Commercial,Regional Enterprise,Cleaning and domestic material,60078542,CHURCHILL CONTRACT SERVICES,488.56,30/05/2017,,
Commercial,Regional Enterprise,Consultants Fees,60079873,KNIGHT FRANK LLP,"9,000.00",26/05/2017,,
Commercial,Regional Enterprise,Consultants Fees,60079424,NETWORK RAIL INFRASTRUCTURE LTD,"32,192.51",19/05/2017,,
Commercial,Regional Enterprise,Consultants Fees,60078691,RAILFREIGHT CONSULTING LTD,"7,425.00",25/05/2017,,
Commercial,Regional Enterprise,Consultants Fees,60075637,SAPIENS CONSULTANCY,"1,159.50",09/05/2017,,
Commercial,Regional Enterprise,Equipment and Materials Purcha,60079918,HEMMING GROUP LTD,329.00,26/05/2017,,
Commercial,Regional Enterprise,Grant Payments,80010206,ACCESS & AUTOMATION LTD,"2,700.00",17/05/2017,,
Commercial,Regional Enterprise,Grant Payments,80010091,AMWELL CONSTRUCTION LTD,"11,441.75",16/05/2017,,
Commercial,Regional Enterprise,Grant Payments,80010096,AMWELL CONSTRUCTION LTD,"8,533.00",15/05/2017,,
Commercial,Regional Enterprise,Grant Payments,80010354,AMWELL CONSTRUCTION LTD,"5,310.00",23/05/2017,,
Commercial,Regional Enterprise,Grant Payments,80002402,ARTHUR J. FERRYMAN ASSOCIATES,360.00,18/05/2017,,
Commercial,Regional Enterprise,Grant Payments,80009885,ARTHUR J. FERRYMAN ASSOCIATES,"1,272.24",03/05/2017,,
Commercial,Regional Enterprise,Grant Payments,80009904,ARTHUR J. FERRYMAN ASSOCIATES,"1,306.80",25/05/2017,,
Commercial,Regional Enterprise,Grant Payments,80010002,ARTHUR J. FERRYMAN ASSOCIATES,"2,655.55",04/05/2017,,
Commercial,Regional Enterprise,Grant Payments,80010093,ARTHUR J. FERRYMAN ASSOCIATES,"1,373.00",16/05/2017,,
Commercial,Regional Enterprise,Grant Payments,80010253,ARTHUR J. FERRYMAN ASSOCIATES,867.60,18/05/2017,,
Commercial,Regional Enterprise,Grant Payments,80010254,ARTHUR J. FERRYMAN ASSOCIATES,360.00,18/05/2017,,
Commercial,Regional Enterprise,Grant Payments,80010257,ARTHUR J. FERRYMAN ASSOCIATES,"1,381.20",18/05/2017,,
Commercial,Regional Enterprise,Grant Payments,80010417,ARTHUR J. FERRYMAN ASSOCIATES,480.00,25/05/2017,,
Commercial,Regional Enterprise,Grant Payments,80009902,B G BUILDING SOLUTIONS,"11,434.50",25/05/2017,,
Commercial,Regional Enterprise,Grant Payments,80009840,DP BUILDERS DISABLED ADAPTATIONS,"5,004.00",03/05/2017,,
Commercial,Regional Enterprise,Grant Payments,80009884,DP BUILDERS DISABLED ADAPTATIONS,594.00,04/05/2017,,
Commercial,Regional Enterprise,Grant Payments,80009971,DP BUILDERS DISABLED ADAPTATIONS,"1,651.07",11/05/2017,,
Commercial,Regional Enterprise,Grant Payments,80010001,DP BUILDERS DISABLED ADAPTATIONS,"20,557.99",11/05/2017,,
Commercial,Regional Enterprise,Grant Payments,80010018,DP BUILDERS DISABLED ADAPTATIONS,"2,980.00",11/05/2017,,
Commercial,Regional Enterprise,Grant Payments,80010250,DP BUILDERS DISABLED ADAPTATIONS,"11,510.00",24/05/2017,,
Commercial,Regional Enterprise,Grant Payments,80010355,DP BUILDERS DISABLED ADAPTATIONS,"5,632.00",31/05/2017,,
Commercial,Regional Enterprise,Grant Payments,80010099,E M S LIFTS LTD,"5,470.00",15/05/2017,,
Commercial,Regional Enterprise,Grant Payments,80010058,H D PROPERTY SERVICES LTD,"4,947.00",08/05/2017,,
Commercial,Regional Enterprise,Grant Payments,80010146,H D PROPERTY SERVICES LTD,"6,798.00",15/05/2017,,
Commercial,Regional Enterprise,Grant Payments,80010234,H D PROPERTY SERVICES LTD,"4,426.00",17/05/2017,,
Commercial,Regional Enterprise,Grant Payments,80010314,H D PROPERTY SERVICES LTD,"4,890.00",22/05/2017,,
Commercial,Regional Enterprise,Grant Payments,80010030,N W LONDON GARDENING,350.00,05/05/2017,,
Commercial,Regional Enterprise,Grant Payments,80010176,N W LONDON GARDENING,500.00,15/05/2017,,
Commercial,Regional Enterprise,Grant Payments,80010177,N W LONDON GARDENING,350.00,15/05/2017,,
Commercial,Regional Enterprise,Grant Payments,80010029,NW LONDON GARDENING,500.00,05/05/2017,,
Commercial,Regional Enterprise,Grant Payments,80010356,ORIGIN HOUSING LIMITED,"5,031.00",23/05/2017,,
Commercial,Regional Enterprise,Grant Payments,80010241,PARAMOUNT PROPERTIES,"1,000.00",17/05/2017,,
Commercial,Regional Enterprise,Grant Payments,80010040,PREMIR SOLUTIONS LTD,"1,930.75",05/05/2017,,
Commercial,Regional Enterprise,Grant Payments,80010157,R & H WINDOWS,290.00,15/05/2017,,
Commercial,Regional Enterprise,Grant Payments,80010198,REDACTED - PERSONAL DATA,"5,324.00",17/05/2017,,
Commercial,Regional Enterprise,Grant Payments,80010271,REDACTED - PERSONAL DATA,378.00,18/05/2017,,
Commercial,Regional Enterprise,Grant Payments,80010429,REDACTED - PERSONAL DATA,"8,427.00",26/05/2017,,
Commercial,Regional Enterprise,Grant Payments,80009850,SOUTH HERTFORDSHIRE,"5,007.00",03/05/2017,,
Commercial,Regional Enterprise,Grant Payments,80010006,SOUTH HERTFORDSHIRE,"5,915.00",05/05/2017,,
Commercial,Regional Enterprise,Grant Payments,80010083,SOUTH HERTFORDSHIRE,"3,559.50",15/05/2017,,
Commercial,Regional Enterprise,Grant Payments,80010167,SOUTH HERTFORDSHIRE,"5,341.00",15/05/2017,,
Commercial,Regional Enterprise,Grant Payments,80010170,SOUTH HERTFORDSHIRE,"5,576.00",15/05/2017,,
Commercial,Regional Enterprise,Grant Payments,80010190,SOUTH HERTFORDSHIRE,"5,801.00",15/05/2017,,
Commercial,Regional Enterprise,Grant Payments,80010338,SOUTH HERTFORDSHIRE,"10,704.00",23/05/2017,,
Commercial,Regional Enterprise,Other Establishments - Third P,20033793,TFL,"1,290,971.44",02/05/2017,,
Commercial,Regional Enterprise,Other Services,60077737,BARNET LIGHTING SERVICES LTD,"10,638.13",11/05/2017,,
Commercial,Regional Enterprise,Other Services,60058038,CONWAY AECOM LTD,443.31,08/05/2017,,
Commercial,Regional Enterprise,Other Services,60058046,CONWAY AECOM LTD,264.88,25/05/2017,,
Commercial,Regional Enterprise,Other Services,60058049,CONWAY AECOM LTD,869.36,25/05/2017,,
Commercial,Regional Enterprise,Other Services,60058079,CONWAY AECOM LTD,"5,257.54",08/05/2017,,
Commercial,Regional Enterprise,Other Services,60058082,CONWAY AECOM LTD,"14,861.51",25/05/2017,,
Commercial,Regional Enterprise,Other Services,60058083,CONWAY AECOM LTD,"1,475.76",25/05/2017,,
Commercial,Regional Enterprise,Other Services,60058085,CONWAY AECOM LTD,"8,969.04",25/05/2017,,
Commercial,Regional Enterprise,Other Services,60058090,CONWAY AECOM LTD,"6,722.59",25/05/2017,,
Commercial,Regional Enterprise,Other Services,60058098,CONWAY AECOM LTD,967.24,25/05/2017,,
Commercial,Regional Enterprise,Other Services,60058110,CONWAY AECOM LTD,"22,579.10",25/05/2017,,
Commercial,Regional Enterprise,Other Services,60058111,CONWAY AECOM LTD,878.80,25/05/2017,,
Commercial,Regional Enterprise,Other Services,60058114,CONWAY AECOM LTD,"5,574.31",25/05/2017,,
Commercial,Regional Enterprise,Other Services,60076694,CONWAY AECOM LTD,"9,146.44",24/05/2017,,
Commercial,Regional Enterprise,Other Services,60076940,CONWAY AECOM LTD,"1,610.78",04/05/2017,,
Commercial,Regional Enterprise,Other Services,60077942,CONWAY AECOM LTD,"35,853.92",12/05/2017,,
Commercial,Regional Enterprise,Other Services,60078005,CONWAY AECOM LTD,"23,805.99",02/05/2017,,
Commercial,Regional Enterprise,Other Services,60078299,CONWAY AECOM LTD,39.54,17/05/2017,,
Commercial,Regional Enterprise,Other Services,60078303,CONWAY AECOM LTD,366.19,24/05/2017,,
Commercial,Regional Enterprise,Other Services,60078304,CONWAY AECOM LTD,40.02,17/05/2017,,
Commercial,Regional Enterprise,Other Services,60078305,CONWAY AECOM LTD,37.26,17/05/2017,,
Commercial,Regional Enterprise,Other Services,60078307,CONWAY AECOM LTD,"7,383.90",04/05/2017,,
Commercial,Regional Enterprise,Other Services,60078308,CONWAY AECOM LTD,41.03,17/05/2017,,
Commercial,Regional Enterprise,Other Services,60078309,CONWAY AECOM LTD,"1,985.33",23/05/2017,,
Commercial,Regional Enterprise,Other Services,60078310,CONWAY AECOM LTD,39.17,17/05/2017,,
Commercial,Regional Enterprise,Other Services,60078311,CONWAY AECOM LTD,39.17,17/05/2017,,
Commercial,Regional Enterprise,Other Services,60078315,CONWAY AECOM LTD,41.03,17/05/2017,,
Commercial,Regional Enterprise,Other Services,60078316,CONWAY AECOM LTD,40.02,17/05/2017,,
Commercial,Regional Enterprise,Other Services,60078318,CONWAY AECOM LTD,9.11,24/05/2017,,
Commercial,Regional Enterprise,Other Services,60078322,CONWAY AECOM LTD,37.26,17/05/2017,,
Commercial,Regional Enterprise,Other Services,60078325,CONWAY AECOM LTD,40.02,24/05/2017,,
Commercial,Regional Enterprise,Other Services,60078326,CONWAY AECOM LTD,39.54,17/05/2017,,
Commercial,Regional Enterprise,Other Services,60078327,CONWAY AECOM LTD,"10,144.26",05/05/2017,,
Commercial,Regional Enterprise,Other Services,60078329,CONWAY AECOM LTD,38.42,17/05/2017,,
Commercial,Regional Enterprise,Other Services,60078333,CONWAY AECOM LTD,"24,169.44",24/05/2017,,
Commercial,Regional Enterprise,Other Services,60078335,CONWAY AECOM LTD,38.80,24/05/2017,,
Commercial,Regional Enterprise,Other Services,60078336,CONWAY AECOM LTD,40.02,17/05/2017,,
Commercial,Regional Enterprise,Other Services,60078337,CONWAY AECOM LTD,"30,572.80",25/05/2017,,
Commercial,Regional Enterprise,Other Services,60078338,CONWAY AECOM LTD,"6,625.70",24/05/2017,,
Commercial,Regional Enterprise,Other Services,60078339,CONWAY AECOM LTD,"12,081.91",17/05/2017,,
Commercial,Regional Enterprise,Other Services,60078341,CONWAY AECOM LTD,38.42,17/05/2017,,
Commercial,Regional Enterprise,Other Services,60078342,CONWAY AECOM LTD,41.03,24/05/2017,,
Commercial,Regional Enterprise,Other Services,60078350,CONWAY AECOM LTD,40.02,24/05/2017,,
Commercial,Regional Enterprise,Other Services,60078351,CONWAY AECOM LTD,46.64,24/05/2017,,
Commercial,Regional Enterprise,Other Services,60078352,CONWAY AECOM LTD,37.26,17/05/2017,,
Commercial,Regional Enterprise,Other Services,60078355,CONWAY AECOM LTD,40.02,17/05/2017,,
Commercial,Regional Enterprise,Other Services,60078357,CONWAY AECOM LTD,1.78,24/05/2017,,
Commercial,Regional Enterprise,Other Services,60078358,CONWAY AECOM LTD,40.02,17/05/2017,,
Commercial,Regional Enterprise,Other Services,60078362,CONWAY AECOM LTD,70.99,17/05/2017,,
Commercial,Regional Enterprise,Other Services,60078367,CONWAY AECOM LTD,41.03,17/05/2017,,
Commercial,Regional Enterprise,Other Services,60078368,CONWAY AECOM LTD,40.02,17/05/2017,,
Commercial,Regional Enterprise,Other Services,60078369,CONWAY AECOM LTD,37.80,17/05/2017,,
Commercial,Regional Enterprise,Other Services,60078371,CONWAY AECOM LTD,36.23,17/05/2017,,
Commercial,Regional Enterprise,Other Services,60078376,CONWAY AECOM LTD,40.66,24/05/2017,,
Commercial,Regional Enterprise,Other Services,60078377,CONWAY AECOM LTD,80.64,18/05/2017,,
Commercial,Regional Enterprise,Other Services,60078378,CONWAY AECOM LTD,39.17,17/05/2017,,
Commercial,Regional Enterprise,Other Services,60078379,CONWAY AECOM LTD,461.06,08/05/2017,,
Commercial,Regional Enterprise,Other Services,60078386,CONWAY AECOM LTD,"51,801.15",05/05/2017,,
Commercial,Regional Enterprise,Other Services,60078390,CONWAY AECOM LTD,15.36,24/05/2017,,
Commercial,Regional Enterprise,Other Services,60078424,CONWAY AECOM LTD,789.36,05/05/2017,,
Commercial,Regional Enterprise,Other Services,60078433,CONWAY AECOM LTD,"110,466.00",25/05/2017,,
Commercial,Regional Enterprise,Other Services,60078460,CONWAY AECOM LTD,"57,000.00",25/05/2017,,
Commercial,Regional Enterprise,Other Services,60078462,CONWAY AECOM LTD,15.36,24/05/2017,,
Commercial,Regional Enterprise,Other Services,60078474,CONWAY AECOM LTD,"13,500.00",25/05/2017,,
Commercial,Regional Enterprise,Other Services,60078493,CONWAY AECOM LTD,"51,620.20",08/05/2017,,
Commercial,Regional Enterprise,Other Services,60078507,CONWAY AECOM LTD,19.46,24/05/2017,,
Commercial,Regional Enterprise,Other Services,60078514,CONWAY AECOM LTD,34.30,24/05/2017,,
Commercial,Regional Enterprise,Other Services,60078538,CONWAY AECOM LTD,20.48,24/05/2017,,
Commercial,Regional Enterprise,Other Services,60078539,CONWAY AECOM LTD,14.08,24/05/2017,,
Commercial,Regional Enterprise,Other Services,60078548,CONWAY AECOM LTD,14.08,24/05/2017,,
Commercial,Regional Enterprise,Other Services,60078556,CONWAY AECOM LTD,"5,725.01",25/05/2017,,
Commercial,Regional Enterprise,Other Services,60078560,CONWAY AECOM LTD,"70,000.00",25/05/2017,,
Commercial,Regional Enterprise,Other Services,60078688,CONWAY AECOM LTD,"69,603.51",10/05/2017,,
Commercial,Regional Enterprise,Other Services,60078744,CONWAY AECOM LTD,"60,053.40",10/05/2017,,
Commercial,Regional Enterprise,Other Services,60078757,CONWAY AECOM LTD,"83,568.00",25/05/2017,,
Commercial,Regional Enterprise,Other Services,60079003,CONWAY AECOM LTD,835.56,17/05/2017,,
Commercial,Regional Enterprise,Other Services,60079006,CONWAY AECOM LTD,987.48,17/05/2017,,
Commercial,Regional Enterprise,Other Services,60079044,CONWAY AECOM LTD,"1,012.80",18/05/2017,,
Commercial,Regional Enterprise,Other Services,60079047,CONWAY AECOM LTD,981.15,18/05/2017,,
Commercial,Regional Enterprise,Other Services,60079048,CONWAY AECOM LTD,"24,000.00",26/05/2017,,
Commercial,Regional Enterprise,Other Services,60079060,CONWAY AECOM LTD,"1,139.40",26/05/2017,,
Commercial,Regional Enterprise,Other Services,60079071,CONWAY AECOM LTD,13.50,15/05/2017,,
Commercial,Regional Enterprise,Other Services,60079077,CONWAY AECOM LTD,"2,582.64",26/05/2017,,
Commercial,Regional Enterprise,Other Services,60079088,CONWAY AECOM LTD,341.82,26/05/2017,,
Commercial,Regional Enterprise,Other Services,60079104,CONWAY AECOM LTD,"19,950.00",26/05/2017,,
Commercial,Regional Enterprise,Other Services,60079105,CONWAY AECOM LTD,506.40,18/05/2017,,
Commercial,Regional Enterprise,Other Services,60079114,CONWAY AECOM LTD,15.36,24/05/2017,,
Commercial,Regional Enterprise,Other Services,60079117,CONWAY AECOM LTD,949.50,18/05/2017,,
Commercial,Regional Enterprise,Other Services,60079138,CONWAY AECOM LTD,987.48,18/05/2017,,
Commercial,Regional Enterprise,Other Services,60079161,CONWAY AECOM LTD,14.34,24/05/2017,,
Commercial,Regional Enterprise,Other Services,60079191,CONWAY AECOM LTD,11.78,24/05/2017,,
Commercial,Regional Enterprise,Other Services,60079247,CONWAY AECOM LTD,930.51,22/05/2017,,
Commercial,Regional Enterprise,Other Services,60079249,CONWAY AECOM LTD,784.92,22/05/2017,,
Commercial,Regional Enterprise,Other Services,60079251,CONWAY AECOM LTD,911.52,22/05/2017,,
Commercial,Regional Enterprise,Other Services,60079253,CONWAY AECOM LTD,"1,569.84",22/05/2017,,
Commercial,Regional Enterprise,Other Services,60079256,CONWAY AECOM LTD,867.21,22/05/2017,,
Commercial,Regional Enterprise,Other Services,60079259,CONWAY AECOM LTD,110.04,18/05/2017,,
Commercial,Regional Enterprise,Other Services,60079261,CONWAY AECOM LTD,949.50,22/05/2017,,
Commercial,Regional Enterprise,Other Services,60079262,CONWAY AECOM LTD,"1,658.80",18/05/2017,,
Commercial,Regional Enterprise,Other Services,60079266,CONWAY AECOM LTD,810.24,22/05/2017,,
Commercial,Regional Enterprise,Other Services,60079267,CONWAY AECOM LTD,607.68,22/05/2017,,
Commercial,Regional Enterprise,Other Services,60079268,CONWAY AECOM LTD,"29,275.82",18/05/2017,,
Commercial,Regional Enterprise,Other Services,60079270,CONWAY AECOM LTD,886.20,22/05/2017,,
Commercial,Regional Enterprise,Other Services,60079272,CONWAY AECOM LTD,"1,139.40",22/05/2017,,
Commercial,Regional Enterprise,Other Services,60079273,CONWAY AECOM LTD,379.80,22/05/2017,,
Commercial,Regional Enterprise,Other Services,60079275,CONWAY AECOM LTD,860.88,22/05/2017,,
Commercial,Regional Enterprise,Other Services,60079276,CONWAY AECOM LTD,664.65,22/05/2017,,
Commercial,Regional Enterprise,Other Services,60079278,CONWAY AECOM LTD,569.70,22/05/2017,,
Commercial,Regional Enterprise,Other Services,60079279,CONWAY AECOM LTD,582.36,22/05/2017,,
Commercial,Regional Enterprise,Other Services,60079280,CONWAY AECOM LTD,949.50,22/05/2017,,
Commercial,Regional Enterprise,Other Services,60079282,CONWAY AECOM LTD,"1,063.44",22/05/2017,,
Commercial,Regional Enterprise,Other Services,60079283,CONWAY AECOM LTD,436.77,22/05/2017,,
Commercial,Regional Enterprise,Other Services,60079289,CONWAY AECOM LTD,987.48,22/05/2017,,
Commercial,Regional Enterprise,Other Services,60079291,CONWAY AECOM LTD,962.16,22/05/2017,,
Commercial,Regional Enterprise,Other Services,60079292,CONWAY AECOM LTD,"1,196.37",22/05/2017,,
Commercial,Regional Enterprise,Other Services,60079294,CONWAY AECOM LTD,982.42,22/05/2017,,
Commercial,Regional Enterprise,Other Services,60079295,CONWAY AECOM LTD,455.76,22/05/2017,,
Commercial,Regional Enterprise,Other Services,60079298,CONWAY AECOM LTD,873.54,22/05/2017,,
Commercial,Regional Enterprise,Other Services,60079299,CONWAY AECOM LTD,"1,993.95",22/05/2017,,
Commercial,Regional Enterprise,Other Services,60079303,CONWAY AECOM LTD,465.26,22/05/2017,,
Commercial,Regional Enterprise,Other Services,60079305,CONWAY AECOM LTD,759.60,22/05/2017,,
Commercial,Regional Enterprise,Other Services,60079306,CONWAY AECOM LTD,531.72,22/05/2017,,
Commercial,Regional Enterprise,Other Services,60079307,CONWAY AECOM LTD,569.70,22/05/2017,,
Commercial,Regional Enterprise,Other Services,60079308,CONWAY AECOM LTD,759.60,22/05/2017,,
Commercial,Regional Enterprise,Other Services,60079313,CONWAY AECOM LTD,"1,085.60",22/05/2017,,
Commercial,Regional Enterprise,Other Services,60079314,CONWAY AECOM LTD,945.70,22/05/2017,,
Commercial,Regional Enterprise,Other Services,60079318,CONWAY AECOM LTD,721.62,22/05/2017,,
Commercial,Regional Enterprise,Other Services,60079320,CONWAY AECOM LTD,759.60,22/05/2017,,
Commercial,Regional Enterprise,Other Services,60079321,CONWAY AECOM LTD,949.50,22/05/2017,,
Commercial,Regional Enterprise,Other Services,60079322,CONWAY AECOM LTD,"1,663.52",22/05/2017,,
Commercial,Regional Enterprise,Other Services,60079324,CONWAY AECOM LTD,759.60,22/05/2017,,
Commercial,Regional Enterprise,Other Services,60079491,CONWAY AECOM LTD,348.15,22/05/2017,,
Commercial,Regional Enterprise,Other Services,60079493,CONWAY AECOM LTD,"1,203.82",22/05/2017,,
Commercial,Regional Enterprise,Other Services,60079514,CONWAY AECOM LTD,145.64,22/05/2017,,
Commercial,Regional Enterprise,Other Services,60079528,CONWAY AECOM LTD,109.88,22/05/2017,,
Commercial,Regional Enterprise,Other Services,60079529,CONWAY AECOM LTD,"1,025.46",23/05/2017,,
Commercial,Regional Enterprise,Other Services,60079533,CONWAY AECOM LTD,"16,169.51",23/05/2017,,
Commercial,Regional Enterprise,Other Services,60079536,CONWAY AECOM LTD,"1,417.92",22/05/2017,,
Commercial,Regional Enterprise,Other Services,60079548,CONWAY AECOM LTD,"3,240.96",24/05/2017,,
Commercial,Regional Enterprise,Other Services,60079556,CONWAY AECOM LTD,886.20,24/05/2017,,
Commercial,Regional Enterprise,Other Services,60079569,CONWAY AECOM LTD,669.55,22/05/2017,,
Commercial,Regional Enterprise,Other Services,60079574,CONWAY AECOM LTD,252.66,22/05/2017,,
Commercial,Regional Enterprise,Other Services,60079778,CONWAY AECOM LTD,"21,165.24",25/05/2017,,
Commercial,Regional Enterprise,Other Services,60079877,CONWAY AECOM LTD,911.55,30/05/2017,,
Commercial,Regional Enterprise,Other Services,60079880,CONWAY AECOM LTD,93.09,30/05/2017,,
Commercial,Regional Enterprise,Other Services,60079896,CONWAY AECOM LTD,510.84,30/05/2017,,
Commercial,Regional Enterprise,Other Services,60079897,CONWAY AECOM LTD,388.96,26/05/2017,,
Commercial,Regional Enterprise,Other Services,60079906,CONWAY AECOM LTD,"1,201.20",26/05/2017,,
Commercial,Regional Enterprise,Other Services,60079915,CONWAY AECOM LTD,484.27,30/05/2017,,
Commercial,Regional Enterprise,Other Services,60079926,CONWAY AECOM LTD,"8,142.14",26/05/2017,,
Commercial,Regional Enterprise,Other Services,60079930,CONWAY AECOM LTD,92.42,30/05/2017,,
Commercial,Regional Enterprise,Other Services,60079941,CONWAY AECOM LTD,417.93,30/05/2017,,
Commercial,Regional Enterprise,Other Services,60077478,CYCLE CONFIDENT LTD,354.90,10/05/2017,,
Commercial,Regional Enterprise,Other Services,60071659,HIGHWAY SURVEYORS LTD,"15,964.99",02/05/2017,,
Commercial,Regional Enterprise,Other Services,60077935,HIGHWAY SURVEYORS LTD,"2,784.89",03/05/2017,,
Commercial,Regional Enterprise,Other Services,60079613,LIBERTY SERVICES,"3,403.45",24/05/2017,,
Commercial,Regional Enterprise,Other Services,60078297,RM COUNTRYSIDE SERVICES LTD,550.00,04/05/2017,,
Commercial,Regional Enterprise,Other Services,60080013,RM COUNTRYSIDE SERVICES LTD,"4,784.00",31/05/2017,,
Commercial,Regional Enterprise,Other Services,60077615,THE MOTOR CYCLE INDUSTRY ASSOCIATION LTD,"6,000.00",02/05/2017,,
Commercial,Regional Enterprise,Printing-Contract,60078231,LETTERBOX DISTRIBUTION.COM,830.00,04/05/2017,,
Commercial,Regional Enterprise,Professional Services,60079905,CITY OF LONDON,"6,892.00",26/05/2017,,
Commercial,Regional Enterprise,Professional Services,60078681,PUBLIC ANALYST SCIENTIFIC SERVS. LT,450.00,12/05/2017,,
Commercial,Regional Enterprise,Professional Services,60078720,PUBLIC ANALYST SCIENTIFIC SERVS. LT,940.00,12/05/2017,,
Commercial,Regional Enterprise,Professional Services,60079558,PUBLIC ANALYST SCIENTIFIC SERVS. LT,120.00,30/05/2017,,
Commercial,Regional Enterprise,RE Services Contract Payment,60077624,RE (REGIONAL ENTERPRISE) LIMITED,"2,500.00",05/05/2017,,
Commercial,Regional Enterprise,RE Services Contract Payment,60077636,RE (REGIONAL ENTERPRISE) LIMITED,"64,844.00",08/05/2017,,
Commercial,Regional Enterprise,RE Services Contract Payment,60079878,RE (REGIONAL ENTERPRISE) LIMITED,"25,000.00",26/05/2017,,
Commercial,Regional Enterprise,RE Services Contract Payment,60079907,RE (REGIONAL ENTERPRISE) LIMITED,"25,000.00",26/05/2017,,
Commissioning,Commissioning,Agency/Interim Hays,60077592,SUE HILL RECRUITMENT & SERVICES LTD,938.16,31/05/2017,,
Commissioning,Commissioning,Agency/Interim Hays,60077895,SUE HILL RECRUITMENT & SERVICES LTD,716.65,31/05/2017,,
Commissioning,Commissioning,Agency/Interim Hays,60078448,SUE HILL RECRUITMENT & SERVICES LTD,560.29,31/05/2017,,
Commissioning,Commissioning,Building Repairs & Maintenance,60076856,S W BRUCE & CO LTD,-827.90,03/05/2017,,
Commissioning,Commissioning,Building Repairs & Maintenance,60077238,S W BRUCE & CO LTD,"3,504.81",03/05/2017,,
Commissioning,Commissioning,Building Repairs & Maintenance,60077455,S W BRUCE & CO LTD,792.00,04/05/2017,,
Commissioning,Commissioning,Building Repairs & Maintenance,60077482,S W BRUCE & CO LTD,"14,098.40",03/05/2017,,
Commissioning,Commissioning,Building Repairs & Maintenance,60077614,S W BRUCE & CO LTD,"1,868.20",11/05/2017,,
Commissioning,Commissioning,Building Repairs & Maintenance,60075131,SECOM PLC,319.00,09/05/2017,,
Commissioning,Commissioning,Capital Construction and Works,60078785,ADAMS ENVIRONMENTAL LTD,650.00,25/05/2017,,
Commissioning,Commissioning,Consultants Fees,60078416,CONSULTCIH (T/A CIH CONSULTANCY),138.60,18/05/2017,,
Commissioning,Commissioning,Consultants Fees,60078444,GALLIFORD TRY,"894,478.88",24/05/2017,,
Commissioning,Commissioning,Consultants Fees,60077674,GROUNDWORK LONDON,"20,529.68",11/05/2017,,
Commissioning,Commissioning,Consultants Fees,60078464,MUTUAL VENTURES LTD,"12,378.00",31/05/2017,,
Commissioning,Commissioning,Consultants Fees,60078102,PRECIOUS MOMENTS AND HEALTH LTD,178.00,16/05/2017,,
Commissioning,Commissioning,Consultants Fees,60078119,PRECIOUS MOMENTS AND HEALTH LTD,125.00,11/05/2017,,
Commissioning,Commissioning,Consultants Fees,60079532,PROJECT CENTRE LTD,"2,925.00",22/05/2017,,
Commissioning,Commissioning,Consultants Fees,80010301,PUBLIC POLICY EXCHANGE LIMITED,236.00,19/05/2017,,
Commissioning,Commissioning,Consultants Fees,60078732,WATES CONSTRUCTION LTD,"65,000.00",17/05/2017,,
Commissioning,Commissioning,Consultants Fees,60078298,WESTCOTEC LIMITED,"2,750.00",04/05/2017,,
Commissioning,Commissioning,Consultants Fees,60079495,WILLMOTT DIXON CONSTRUCTION LTD,"1,283,026.00",26/05/2017,,
Commissioning,Commissioning,Equipment and Materials Purcha,60076433,FINDEL EDUCATION LIMITED,279.99,08/05/2017,,
Commissioning,Commissioning,Equipment and Materials Purcha,60070912,MIDDLESEX UNIVERSITY,"140,000.00",24/05/2017,,
Commissioning,Commissioning,Equipment and Materials Purcha,60073838,RADIOCOMS SYSTEMS LTD,-322.00,12/05/2017,,
Commissioning,Commissioning,Equipment and Materials Purcha,60079248,RPM FUELS & TANKS,200.00,18/05/2017,,
Commissioning,Commissioning,Grant Payments,80010154,BARNET BOROUGH ARTS COUNCIL,"1,950.00",15/05/2017,,
Commissioning,Commissioning,Grant Payments,80010152,BARNET REUSE CENTRE LTD,"9,999.00",15/05/2017,,
Commissioning,Commissioning,Grant Payments,80010155,FINCHLEY HORTICULTURAL SOCIETY,"4,950.00",15/05/2017,,
Commissioning,Commissioning,Grant Payments,80010014,FRIEND IN NEED COMMUNITY C'TRE,"1,980.00",11/05/2017,,
Commissioning,Commissioning,Grant Payments,60078965,THE BARNETGROUP LIMITED,"3,660.00",30/05/2017,,
Commissioning,Commissioning,Grant Payments,80010180,THE HOPE OF CHILDS HILL,"2,500.00",15/05/2017,,
Commissioning,Commissioning,Other Services,80009903,AMEO PROFESSIONAL SERVICES LTD,"2,000.00",11/05/2017,,
Commissioning,Commissioning,Other Services,80009984,AMEO PROFESSIONAL SERVICES LTD,"2,000.00",26/05/2017,,
Commissioning,Commissioning,Other Services,60079160,BLUE 9 SECURITY LIMITED,"1,899.54",17/05/2017,,
Commissioning,Commissioning,Other Services,60079192,BLUE 9 SECURITY LIMITED,"1,946.25",17/05/2017,,
Commissioning,Commissioning,Other Services,60079197,BLUE 9 SECURITY LIMITED,"1,743.84",17/05/2017,,
Commissioning,Commissioning,Other Services,60079210,BLUE 9 SECURITY LIMITED,"4,258.40",17/05/2017,,
Commissioning,Commissioning,Other Services,60077089,BRITISH GYMNASTICS,20.00,03/05/2017,,
Commissioning,Commissioning,Other Services,80010168,ENVIRONMENT AGENCY,"1,630.00",12/05/2017,,
Commissioning,Commissioning,Other Services,60077468,HARROW GREEN LTD,75.60,25/05/2017,,
Commissioning,Commissioning,Other Services,60077472,HARROW GREEN LTD,75.60,22/05/2017,,
Commissioning,Commissioning,Other Services,10013716,NHS BARNET CCG,"21,649.00",04/05/2017,,
Commissioning,Commissioning,Other Services,10013717,NHS BARNET CCG,"23,763.00",04/05/2017,,
Commissioning,Commissioning,Other Services,EBX0169076,NORTH LONDON WASTE AUTHORITY,"872,097.00",03/05/2017,,
Commissioning,Commissioning,Other Services,EBX0169596,NORTH LONDON WASTE AUTHORITY,"872,077.00",05/05/2017,,
Commissioning,Commissioning,Other Services,60077426,THE BARNETGROUP LIMITED,"3,152.20",09/05/2017,,
Commissioning,Commissioning,Other Services,80009900,THE SOCIETY OF LONDON TREASURERS,35.00,11/05/2017,,
Commissioning,Commissioning,Other Transfer Payments to Soc,60078490,EMPOWERING COMMUNITIES,"5,949.00",05/05/2017,,
Commissioning,Commissioning,Other Transfer Payments to Soc,60077343,SMARTWATER TECHNOLOGY LTD,295.20,25/05/2017,,
Commissioning,Commissioning,Private Contractors - Third Pa,60078152,GREENWICH LEISURE LTD,"101,631.70",02/05/2017,,
Commissioning,Commissioning,Professional Services,60078970,FMG CONSULTING LTD,789.83,26/05/2017,,
Commissioning,Commissioning,Professional Services,10013719,GENERAL DYNAMICS INFORMATION TECHNOLOGY,"4,820.00",05/05/2017,,
Commissioning,Commissioning,Professional Services,10013733,GENERAL DYNAMICS INFORMATION TECHNOLOGY,"4,835.04",26/05/2017,,
Commissioning,Commissioning,Professional Services,60079031,GENERAL DYNAMICS INFORMATION TECHNOLOGY,76.60,16/05/2017,,
Commissioning,Commissioning,Professional Services,60079132,GENERAL DYNAMICS INFORMATION TECHNOLOGY,"2,980.00",16/05/2017,,
Commissioning,Commissioning,Professional Services,60079133,GENERAL DYNAMICS INFORMATION TECHNOLOGY,"1,125.00",16/05/2017,,
Commissioning,Commissioning,Professional Services,60077642,INFOR (UNITED KINGDOM) LTD,"1,700.00",26/05/2017,,
Commissioning,Commissioning,Professional Services,60080048,KPMG FEES ACCOUNT,875.00,31/05/2017,,
Commissioning,Commissioning,Professional Services,10013726,MANCHESTER CITY COUNCIL,"1,125.00",19/05/2017,,
Commissioning,Commissioning,Professional Services,60077578,REDACTED - PERSONAL DATA,"2,067.50",17/05/2017,,
Commissioning,Commissioning,Professional Services,60077186,VRM TECHNOLOGY LTD,"1,900.00",02/05/2017,,
Commissioning,Commissioning,Publications,60078453,GENERAL DYNAMICS INFORMATION TECHNOLOGY,200.00,05/05/2017,,
Commissioning,Commissioning,Settlement of WOM Costs,60078405,S W BRUCE & CO LTD,"1,269.60",25/05/2017,,
Commissioning,Commissioning,Training,60079517,CAPITA BUSINESS SERVICES LTD,81.30,23/05/2017,,
Commissioning,Commissioning,Training,60079523,CAPITA BUSINESS SERVICES LTD,80.00,22/05/2017,,
Commissioning,Commissioning,Training,60079492,CENTRE FOR STRATEGY AND COMMUNICATI,284.00,19/05/2017,,
Commissioning,Commissioning,Training,60078860,HEMSLEY FRASER GROUP LTD,"2,371.50",18/05/2017,,
Commissioning,Commissioning,Training,60079400,PDP TRAINING,475.00,19/05/2017,,
Commissioning,Commissioning,Training,60079284,RPM FUELS & TANKS,"1,725.00",18/05/2017,,
Commissioning,Commissioning,Ttl IT & Comms,60079454,JIGSAW24,"2,008.45",26/05/2017,,
Commissioning,Commissioning,Ttl IT & Comms,60079232,STOR-A FILE LTD,382.84,26/05/2017,,
Corporate Accounting,Corporate Accounting,Other Agencies - Third Party P,60077887,THE BARNETGROUP LIMITED,"91,666.67",05/05/2017,,
Corporate Accounting,Corporate Accounting,Other Agencies - Third Party P,60079212,THE BARNETGROUP LIMITED,"2,000,000.00",17/05/2017,,
Corporate Accounting,Corporate Accounting,Other Agencies - Third Party P,60079622,THE BARNETGROUP LIMITED,"91,666.67",26/05/2017,,
Corporate Accounting,Corporate Accounting,Other Agencies - Third Party P,60079675,THE BARNETGROUP LIMITED,"4,294,000.00",26/05/2017,,
Corporate Accounting,Corporate Accounting,Other Local Authorities - Thir,EBX0168869,GREATER LONDON AUTHORITY,"3,856,742.82",02/05/2017,,
Corporate Accounting,Corporate Accounting,Other Local Authorities - Thir,EBX0170361,GREATER LONDON AUTHORITY,"3,856,742.82",12/05/2017,,
Corporate Accounting,Corporate Accounting,Other Local Authorities - Thir,EBX0171305,GREATER LONDON AUTHORITY,"234,605.00",23/05/2017,,
Corporate Accounting,Corporate Accounting,Other Local Authorities - Thir,EBX0171734,GREATER LONDON AUTHORITY,"4,014,752.61",24/05/2017,,
Corporate Accounting,Corporate Accounting,Other Transfer Payments to Soc,60074321,CITIBANK NA LONDON,112.30,24/05/2017,,
Corporate Accounting,Corporate Accounting,Other Transfer Payments to Soc,60079374,CITIBANK NA LONDON,"3,965.75",23/05/2017,,
Corporate Accounting,Corporate Accounting,Other Transfer Payments to Soc,60079432,CITIBANK NA LONDON,230.90,23/05/2017,,
Delivery Units,Adults and Communities,Building Repairs & Maintenance,60078766,RGE SERVICES,62.00,25/05/2017,,
Delivery Units,Adults and Communities,Building Repairs & Maintenance,60078779,RGE SERVICES,39.23,11/05/2017,,
Delivery Units,Adults and Communities,Cleaning and domestic material,60078540,CHURCHILL CONTRACT SERVICES,391.37,30/05/2017,,
Delivery Units,Adults and Communities,Cleaning and domestic material,60078561,CHURCHILL CONTRACT SERVICES,377.81,30/05/2017,,
Delivery Units,Adults and Communities,Direct Transfer Payments to So,90001047,CITIBANK NA LONDON,480.81,26/05/2017,,
Delivery Units,Adults and Communities,Direct Transfer Payments to So,90001048,CITIBANK NA LONDON,"2,389.40",26/05/2017,,
Delivery Units,Adults and Communities,Direct Transfer Payments to So,90001050,CITIBANK NA LONDON,"1,612.57",26/05/2017,,
Delivery Units,Adults and Communities,Direct Transfer Payments to So,90001055,CITIBANK NA LONDON,301.20,26/05/2017,,
Delivery Units,Adults and Communities,Direct Transfer Payments to So,90001057,CITIBANK NA LONDON,531.80,26/05/2017,,
Delivery Units,Adults and Communities,Direct Transfer Payments to So,90001060,CITIBANK NA LONDON,184.60,26/05/2017,,
Delivery Units,Adults and Communities,Direct Transfer Payments to So,90001065,CITIBANK NA LONDON,805.20,26/05/2017,,
Delivery Units,Adults and Communities,Direct Transfer Payments to So,90001071,CITIBANK NA LONDON,192.00,26/05/2017,,
Delivery Units,Adults and Communities,Direct Transfer Payments to So,90001072,CITIBANK NA LONDON,966.84,26/05/2017,,
Delivery Units,Adults and Communities,Direct Transfer Payments to So,90001074,CITIBANK NA LONDON,144.25,26/05/2017,,
Delivery Units,Adults and Communities,Direct Transfer Payments to So,90001075,CITIBANK NA LONDON,138.48,26/05/2017,,
Delivery Units,Adults and Communities,Direct Transfer Payments to So,90001077,CITIBANK NA LONDON,384.64,26/05/2017,,
Delivery Units,Adults and Communities,Direct Transfer Payments to So,90001089,CITIBANK NA LONDON,372.00,26/05/2017,,
Delivery Units,Adults and Communities,Direct Transfer Payments to So,90001090,CITIBANK NA LONDON,192.00,26/05/2017,,
Delivery Units,Adults and Communities,Direct Transfer Payments to So,90001093,CITIBANK NA LONDON,218.63,26/05/2017,,
Delivery Units,Adults and Communities,Direct Transfer Payments to So,90001096,CITIBANK NA LONDON,186.48,26/05/2017,,
Delivery Units,Adults and Communities,Direct Transfer Payments to So,90001099,CITIBANK NA LONDON,462.00,26/05/2017,,
Delivery Units,Adults and Communities,Direct Transfer Payments to So,90001101,CITIBANK NA LONDON,350.79,26/05/2017,,
Delivery Units,Adults and Communities,Direct Transfer Payments to So,90001102,CITIBANK NA LONDON,70.00,26/05/2017,,
Delivery Units,Adults and Communities,Direct Transfer Payments to So,90001103,CITIBANK NA LONDON,454.32,26/05/2017,,
Delivery Units,Adults and Communities,Direct Transfer Payments to So,90001105,CITIBANK NA LONDON,144.25,26/05/2017,,
Delivery Units,Adults and Communities,Direct Transfer Payments to So,90001109,CITIBANK NA LONDON,336.00,26/05/2017,,
Delivery Units,Adults and Communities,Direct Transfer Payments to So,90001111,CITIBANK NA LONDON,280.00,26/05/2017,,
Delivery Units,Adults and Communities,Direct Transfer Payments to So,90001115,CITIBANK NA LONDON,"1,316.00",26/05/2017,,
Delivery Units,Adults and Communities,Direct Transfer Payments to So,90001116,CITIBANK NA LONDON,754.76,26/05/2017,,
Delivery Units,Adults and Communities,Direct Transfer Payments to So,90001776,CITIBANK NA LONDON,535.84,30/05/2017,,
Delivery Units,Adults and Communities,Direct Transfer Payments to So,90002075,CITIBANK NA LONDON,92.32,30/05/2017,,
Delivery Units,Adults and Communities,Direct Transfer Payments to So,90002077,CITIBANK NA LONDON,595.87,30/05/2017,,
Delivery Units,Adults and Communities,Electricity,60077769,KENT COUNTY COUNCIL (KCS),190.24,08/05/2017,,
Delivery Units,Adults and Communities,Equipment and Materials Purcha,60078340,MEDEQUIP ASSISTIVE TECHNOLOGY LTD,"2,995.00",09/05/2017,,
Delivery Units,Adults and Communities,Equipment and Materials Purcha,60079092,MEDEQUIP ASSISTIVE TECHNOLOGY LTD,"190,485.41",16/05/2017,,
Delivery Units,Adults and Communities,Equipment and Materials Purcha,60079108,MEDEQUIP ASSISTIVE TECHNOLOGY LTD,940.06,31/05/2017,,
Delivery Units,Adults and Communities,Equipment and Materials Purcha,60078994,SABEL CHEMIST,317.45,15/05/2017,,
Delivery Units,Adults and Communities,Food Costs,60077757,MULLER MILK & INGREDIENTS,1.65,05/05/2017,,
Delivery Units,Adults and Communities,Food Costs,60078177,MULLER MILK & INGREDIENTS,1.65,12/05/2017,,
Delivery Units,Adults and Communities,Food Costs,60078775,MULLER MILK & INGREDIENTS,1.65,19/05/2017,,
Delivery Units,Adults and Communities,Food Costs,60079090,MULLER MILK & INGREDIENTS,1.65,23/05/2017,,
Delivery Units,Adults and Communities,Gas,60078808,BRITISH GAS,"1,047.78",11/05/2017,,
Delivery Units,Adults and Communities,Gas,60077787,KENT COUNTY COUNCIL (KCS),208.79,02/05/2017,,
Delivery Units,Adults and Communities,Other Agencies - Third Party P,30164577,3A CARE (LONDON) LTD,"4,602.00",18/05/2017,,
Delivery Units,Adults and Communities,Other Agencies - Third Party P,90000037,AARANDALE LODGE,"2,600.00",12/05/2017,,
Delivery Units,Adults and Communities,Other Agencies - Third Party P,90000059,AARANDALE LODGE,"2,600.00",12/05/2017,,
Delivery Units,Adults and Communities,Other Agencies - Third Party P,90000032,AARON COURT CARE HOME,"2,001.91",12/05/2017,,
Delivery Units,Adults and Communities,Other Agencies - Third Party P,90000058,AARON COURT CARE HOME,"2,216.41",12/05/2017,,
Delivery Units,Adults and Communities,Other Agencies - Third Party P,30163947,ABBEY RAVENSCROFT PARK NURSING HOME,-428.57,15/05/2017,,
Delivery Units,Adults and Communities,Other Agencies - Third Party P,90000393,ABBEY RAVENSCROFT PARK NURSING HOME,"3,100.00",15/05/2017,,
Delivery Units,Adults and Communities,Other Agencies - Third Party P,90000394,ABBEY RAVENSCROFT PARK NURSING HOME,"3,542.86",15/05/2017,,
Delivery Units,Adults and Communities,Other Agencies - Third Party P,90000395,ABBEY RAVENSCROFT PARK NURSING HOME,"3,255.00",15/05/2017,,
Delivery Units,Adults and Communities,Other Agencies - Third Party P,90000396,ABBEY RAVENSCROFT PARK NURSING HOME,"3,255.00",15/05/2017,,
Delivery Units,Adults and Communities,Other Agencies - Third Party P,90000397,ABBEY RAVENSCROFT PARK NURSING HOME,"2,788.32",15/05/2017,,
Delivery Units,Adults and Communities,Other Agencies - Third Party P,90000398,ABBEY RAVENSCROFT PARK NURSING HOME,"2,788.32",15/05/2017,,
Delivery Units,Adults and Communities,Other Agencies - Third Party P,90000399,ABBEY RAVENSCROFT PARK NURSING HOME,"2,788.32",15/05/2017,,
Delivery Units,Adults and Communities,Other Agencies - Third Party P,90000400,ABBEY RAVENSCROFT PARK NURSING HOME,"3,255.00",15/05/2017,,
Delivery Units,Adults and Communities,Other Agencies - Third Party P,90000401,ABBEY RAVENSCROFT PARK NURSING HOME,"3,255.00",15/05/2017,,
Delivery Units,Adults and Communities,Other Agencies - Third Party P,90000402,ABBEY RAVENSCROFT PARK NURSING HOME,"3,255.00",15/05/2017,,
Delivery Units,Adults and Communities,Other Agencies - Third Party P,90000403,ABBEY RAVENSCROFT PARK NURSING HOME,"2,788.32",15/05/2017,,
Delivery Units,Adults and Communities,Other Agencies - Third Party P,90000404,ABBEY RAVENSCROFT PARK NURSING HOME,"2,788.32",15/05/2017,,
Delivery Units,Adults and Communities,Other Agencies - Third Party P,90000405,ABBEY RAVENSCROFT PARK NURSING HOME,"3,255.00",15/05/2017,,
Delivery Units,Adults and Communities,Other Agencies - Third Party P,90000406,ABBEY RAVENSCROFT PARK NURSING HOME,"3,255.00",15/05/2017,,
Delivery Units,Adults and Communities,Other Agencies - Third Party P,90000407,ABBEY RAVENSCROFT PARK NURSING HOME,"2,788.32",15/05/2017,,
Delivery Units,Adults and Communities,Other Agencies - Third Party P,90000408,ABBEY RAVENSCROFT PARK NURSING HOME,"2,788.32",15/05/2017,,
Delivery Units,Adults and Communities,Other Agencies - Third Party P,90000409,ABBEY RAVENSCROFT PARK NURSING HOME,"3,255.00",15/05/2017,,
Delivery Units,Adults and Communities,Other Agencies - Third Party P,90000410,ABBEY RAVENSCROFT PARK NURSING HOME,"3,321.43",15/05/2017,,
Delivery Units,Adults and Communities,Other Agencies - Third Party P,90000411,ABBEY RAVENSCROFT PARK NURSING HOME,"2,788.32",15/05/2017,,
Delivery Units,Adults and Communities,Other Agencies - Third Party P,90000412,ABBEY RAVENSCROFT PARK NURSING HOME,"2,517.60",15/05/2017,,
Delivery Units,Adults and Communities,Other Agencies - Third Party P,90000413,ABBEY RAVENSCROFT PARK NURSING HOME,"3,100.00",15/05/2017,,
Delivery Units,Adults and Communities,Other Agencies - Third Party P,30163657,ABOUT ME CARE & SUPPORT LTD,"1,365.84",04/05/2017,,
Delivery Units,Adults and Communities,Other Agencies - Third Party P,30163658,ABOUT ME CARE & SUPPORT LTD,"1,365.84",04/05/2017,,
Delivery Units,Adults and Communities,Other Agencies - Third Party P,30165132,ACER HEALTHCARE OPERATIONS LTD,"1,900.00",30/05/2017,,
Delivery Units,Adults and Communities,Other Agencies - Third Party P,80009935,AGE UK KENSINGTON & CHELSEA,"3,938.00",15/05/2017,,
Delivery Units,Adults and Communities,Other Agencies - Third Party P,90000148,ALDWYCK HOUSING GROUP,"2,031.76",15/05/2017,,
Delivery Units,Adults and Communities,Other Agencies - Third Party P,90000149,ALDWYCK HOUSING GROUP,"2,031.76",15/05/2017,,
Delivery Units,Adults and Communities,Other Agencies - Third Party P,90000309,ALDWYCK HOUSING GROUP,"2,249.45",15/05/2017,,
Delivery Units,Adults and Communities,Other Agencies - Third Party P,90000310,ALDWYCK HOUSING GROUP,"2,249.45",15/05/2017,,
Delivery Units,Adults and Communities,Other Agencies - Third Party P,30164281,ALEXANDRA HOUSE (RUNWOOD HOMES),145.98,12/05/2017,,
Delivery Units,Adults and Communities,Other Agencies - Third Party P,90000062,ALEXANDRA HOUSE (RUNWOOD HOMES),"2,043.72",12/05/2017,,
Delivery Units,Adults and Communities,Other Agencies - Third Party P,30163745,ALLIED HEALTHCARE LTD,"2,467.35",04/05/2017,,
Delivery Units,Adults and Communities,Other Agencies - Third Party P,90001829,ALLIED HEALTHCARE LTD,239.80,30/05/2017,,
Delivery Units,Adults and Communities,Other Agencies - Third Party P,90001830,ALLIED HEALTHCARE LTD,56.68,30/05/2017,,
Delivery Units,Adults and Communities,Other Agencies - Third Party P,90001831,ALLIED HEALTHCARE LTD,222.36,30/05/2017,,
Delivery Units,Adults and Communities,Other Agencies - Third Party P,90001832,ALLIED HEALTHCARE LTD,17.44,30/05/2017,,
Delivery Units,Adults and Communities,Other Agencies - Third Party P,90001833,ALLIED HEALTHCARE LTD,8.72,30/05/2017,,
Delivery Units,Adults and Communities,Other Agencies - Third Party P,90001834,ALLIED HEALTHCARE LTD,61.04,30/05/2017,,
Delivery Units,Adults and Communities,Other Agencies - Third Party P,90001835,ALLIED HEALTHCARE LTD,34.88,30/05/2017,,
Delivery Units,Adults and Communities,Other Agencies - Third Party P,90001836,ALLIED HEALTHCARE LTD,204.92,30/05/2017,,
Delivery Units,Adults and Communities,Other Agencies - Third Party P,90001837,ALLIED HEALTHCARE LTD,74.12,30/05/2017,,
Delivery Units,Adults and Communities,Other Agencies - Third Party P,90001838,ALLIED HEALTHCARE LTD,61.04,30/05/2017,,
Delivery Units,Adults and Communities,Other Agencies - Third Party P,90001839,ALLIED HEALTHCARE LTD,122.08,30/05/2017,,
Delivery Units,Adults and Communities,Other Agencies - Third Party P,90001840,ALLIED HEALTHCARE LTD,183.12,30/05/2017,,
Delivery Units,Adults and Communities,Other Agencies - Third Party P,90001841,ALLIED HEALTHCARE LTD,69.76,30/05/2017,,
Delivery Units,Adults and Communities,Other Agencies - Third Party P,90001842,ALLIED HEALTHCARE LTD,95.92,30/05/2017,,
Delivery Units,Adults and Communities,Other Agencies - Third Party P,90001843,ALLIED HEALTHCARE LTD,91.56,30/05/2017,,
Delivery Units,Adults and Communities,Other Agencies - Third Party P,90001844,ALLIED HEALTHCARE LTD,244.16,30/05/2017,,
Delivery Units,Adults and Communities,Other Agencies - Third Party P,90001845,ALLIED HEALTHCARE LTD,244.16,30/05/2017,,
Delivery Units,Adults and Communities,Other Agencies - Third Party P,90001846,ALLIED HEALTHCARE LTD,52.32,30/05/2017,,
Delivery Units,Adults and Communities,Other Agencies - Third Party P,90001847,ALLIED HEALTHCARE LTD,366.24,30/05/2017,,
Delivery Units,Adults and Communities,Other Agencies - Third Party P,90001848,ALLIED HEALTHCARE LTD,122.08,30/05/2017,,
Delivery Units,Adults and Communities,Other Agencies - Third Party P,90001849,ALLIED HEALTHCARE LTD,26.16,30/05/2017,,
Delivery Units,Adults and Communities,Other Agencies - Third Party P,90001850,ALLIED HEALTHCARE LTD,104.64,30/05/2017,,
Delivery Units,Adults and Communities,Other Agencies - Third Party P,90001851,ALLIED HEALTHCARE LTD,61.04,30/05/2017,,
Delivery Units,Adults and Communities,Other Agencies - Third Party P,90001852,ALLIED HEALTHCARE LTD,91.56,30/05/2017,,
Delivery Units,Adults and Communities,Other Agencies - Third Party P,90001853,ALLIED HEALTHCARE LTD,135.16,30/05/2017,,
Delivery Units,Adults and Communities,Other Agencies - Third Party P,90001854,ALLIED HEALTHCARE LTD,34.88,30/05/2017,,
Delivery Units,Adults and Communities,Other Agencies - Third Party P,90001855,ALLIED HEALTHCARE LTD,74.12,30/05/2017,,
Delivery Units,Adults and Communities,Other Agencies - Third Party P,90001856,ALLIED HEALTHCARE LTD,148.24,30/05/2017,,
Delivery Units,Adults and Communities,Other Agencies - Third Party P,90001857,ALLIED HEALTHCARE LTD,156.96,30/05/2017,,
Delivery Units,Adults and Communities,Other Agencies - Third Party P,90001858,ALLIED HEALTHCARE LTD,152.60,30/05/2017,,
Delivery Units,Adults and Communities,Other Agencies - Third Party P,90001859,ALLIED HEALTHCARE LTD,69.76,30/05/2017,,
Delivery Units,Adults and Communities,Other Agencies - Third Party P,90001860,ALLIED HEALTHCARE LTD,183.12,30/05/2017,,
Delivery Units,Adults and Communities,Other Agencies - Third Party P,90001861,ALLIED HEALTHCARE LTD,34.88,30/05/2017,,
Delivery Units,Adults and Communities,Other Agencies - Third Party P,90001862,ALLIED HEALTHCARE LTD,56.68,30/05/2017,,
Delivery Units,Adults and Communities,Other Agencies - Third Party P,90001970,ALLIED HEALTHCARE LTD,261.60,30/05/2017,,
Delivery Units,Adults and Communities,Other Agencies - Third Party P,90001971,ALLIED HEALTHCARE LTD,998.44,30/05/2017,,
Delivery Units,Adults and Communities,Other Agencies - Third Party P,90001972,ALLIED HEALTHCARE LTD,327.00,30/05/2017,,
Delivery Units,Adults and Communities,Other Agencies - Third Party P,90001973,ALLIED HEALTHCARE LTD,261.60,30/05/2017,,
Delivery Units,Adults and Communities,Other Agencies - Third Party P,90001974,ALLIED HEALTHCARE LTD,17.44,30/05/2017,,
Delivery Units,Adults and Communities,Other Agencies - Third Party P,90001975,ALLIED HEALTHCARE LTD,17.44,30/05/2017,,
Delivery Units,Adults and Communities,Other Agencies - Third Party P,90001976,ALLIED HEALTHCARE LTD,233.26,30/05/2017,,
Delivery Units,Adults and Communities,Other Agencies - Third Party P,90001977,ALLIED HEALTHCARE LTD,228.90,30/05/2017,,
Delivery Units,Adults and Communities,Other Agencies - Third Party P,90001978,ALLIED HEALTHCARE LTD,196.20,30/05/2017,,
Delivery Units,Adults and Communities,Other Agencies - Third Party P,90001979,ALLIED HEALTHCARE LTD,65.40,30/05/2017,,
Delivery Units,Adults and Communities,Other Agencies - Third Party P,90001980,ALLIED HEALTHCARE LTD,130.80,30/05/2017,,
Delivery Units,Adults and Communities,Other Agencies - Third Party P,90001981,ALLIED HEALTHCARE LTD,98.10,30/05/2017,,
Delivery Units,Adults and Communities,Other Agencies - Third Party P,90001982,ALLIED HEALTHCARE LTD,392.40,30/05/2017,,
Delivery Units,Adults and Communities,Other Agencies - Third Party P,90001983,ALLIED HEALTHCARE LTD,523.20,30/05/2017,,
Delivery Units,Adults and Communities,Other Agencies - Third Party P,90001984,ALLIED HEALTHCARE LTD,261.60,30/05/2017,,
Delivery Units,Adults and Communities,Other Agencies - Third Party P,90001985,ALLIED HEALTHCARE LTD,130.80,30/05/2017,,
Delivery Units,Adults and Communities,Other Agencies - Third Party P,90001986,ALLIED HEALTHCARE LTD,228.90,30/05/2017,,
Delivery Units,Adults and Communities,Other Agencies - Third Party P,90001987,ALLIED HEALTHCARE LTD,228.90,30/05/2017,,
Delivery Units,Adults and Communities,Other Agencies - Third Party P,90001988,ALLIED HEALTHCARE LTD,196.20,30/05/2017,,
Delivery Units,Adults and Communities,Other Agencies - Third Party P,90001989,ALLIED HEALTHCARE LTD,523.20,30/05/2017,,
Delivery Units,Adults and Communities,Other Agencies - Third Party P,90001990,ALLIED HEALTHCARE LTD,122.08,30/05/2017,,
Delivery Units,Adults and Communities,Other Agencies - Third Party P,90001991,ALLIED HEALTHCARE LTD,130.80,30/05/2017,,
Delivery Units,Adults and Communities,Other Agencies - Third Party P,90001992,ALLIED HEALTHCARE LTD,98.10,30/05/2017,,
Delivery Units,Adults and Communities,Other Agencies - Third Party P,90001993,ALLIED HEALTHCARE LTD,65.40,30/05/2017,,
Delivery Units,Adults and Communities,Other Agencies - Third Party P,90001994,ALLIED HEALTHCARE LTD,98.10,30/05/2017,,
Delivery Units,Adults and Communities,Other Agencies - Third Party P,90001995,ALLIED HEALTHCARE LTD,130.80,30/05/2017,,
Delivery Units,Adults and Communities,Other Agencies - Third Party P,90001996,ALLIED HEALTHCARE LTD,95.92,30/05/2017,,
Delivery Units,Adults and Communities,Other Agencies - Third Party P,90001997,ALLIED HEALTHCARE LTD,457.80,30/05/2017,,
Delivery Units,Adults and Communities,Other Agencies - Third Party P,90001998,ALLIED HEALTHCARE LTD,228.90,30/05/2017,,
Delivery Units,Adults and Communities,Other Agencies - Third Party P,90000085,ANASTASIA LODGE,"2,800.00",15/05/2017,,
Delivery Units,Adults and Communities,Other Agencies - Third Party P,90000086,ANASTASIA LODGE,"3,000.00",15/05/2017,,
Delivery Units,Adults and Communities,Other Agencies - Third Party P,90000631,AREA 51 EDUCATION LTD,"1,106.00",26/05/2017,,
Delivery Units,Adults and Communities,Other Agencies - Third Party P,90000632,AREA 51 EDUCATION LTD,632.00,26/05/2017,,
Delivery Units,Adults and Communities,Other Agencies - Third Party P,90000633,AREA 51 EDUCATION LTD,632.00,26/05/2017,,
Delivery Units,Adults and Communities,Other Agencies - Third Party P,90000634,AREA 51 EDUCATION LTD,395.00,26/05/2017,,
Delivery Units,Adults and Communities,Other Agencies - Third Party P,90000172,ASH COURT CARE CENTRE,"3,400.00",25/05/2017,,
Delivery Units,Adults and Communities,Other Agencies - Third Party P,90000317,ASH COURT CARE CENTRE,"3,077.64",30/05/2017,,
Delivery Units,Adults and Communities,Other Agencies - Third Party P,90000005,ASHFIELDS RESIDENTIAL CARE HOME,"2,211.80",10/05/2017,,
Delivery Units,Adults and Communities,Other Agencies - Third Party P,90000006,ASHFIELDS RESIDENTIAL CARE HOME,"2,400.00",10/05/2017,,
Delivery Units,Adults and Communities,Other Agencies - Third Party P,90000007,ASHFIELDS RESIDENTIAL CARE HOME,"2,211.80",10/05/2017,,
Delivery Units,Adults and Communities,Other Agencies - Third Party P,90000008,ASHFIELDS RESIDENTIAL CARE HOME,"2,211.80",10/05/2017,,
Delivery Units,Adults and Communities,Other Agencies - Third Party P,90000009,ASHFIELDS RESIDENTIAL CARE HOME,"2,211.80",10/05/2017,,
Delivery Units,Adults and Communities,Other Agencies - Third Party P,90000010,ASHFIELDS RESIDENTIAL CARE HOME,"2,211.80",10/05/2017,,
Delivery Units,Adults and Communities,Other Agencies - Third Party P,90000011,ASHFIELDS RESIDENTIAL CARE HOME,"2,200.00",10/05/2017,,
Delivery Units,Adults and Communities,Other Agencies - Third Party P,90000012,ASHFIELDS RESIDENTIAL CARE HOME,"2,211.80",10/05/2017,,
Delivery Units,Adults and Communities,Other Agencies - Third Party P,90000013,ASHFIELDS RESIDENTIAL CARE HOME,"2,211.80",10/05/2017,,
Delivery Units,Adults and Communities,Other Agencies - Third Party P,90000191,ASHTON LODGE CARE CENTRE,"2,775.00",15/05/2017,,
Delivery Units,Adults and Communities,Other Agencies - Third Party P,90000192,ASHTON LODGE CARE CENTRE,"2,165.68",15/05/2017,,
Delivery Units,Adults and Communities,Other Agencies - Third Party P,90000193,ASHTON LODGE CARE CENTRE,"2,398.56",15/05/2017,,
Delivery Units,Adults and Communities,Other Agencies - Third Party P,90000194,ASHTON LODGE CARE CENTRE,"2,211.80",15/05/2017,,
Delivery Units,Adults and Communities,Other Agencies - Third Party P,90000195,ASHTON LODGE CARE CENTRE,"2,518.48",15/05/2017,,
Delivery Units,Adults and Communities,Other Agencies - Third Party P,90000196,ASHTON LODGE CARE CENTRE,"3,000.00",15/05/2017,,
Delivery Units,Adults and Communities,Other Agencies - Third Party P,90000197,ASHTON LODGE CARE CENTRE,"2,600.00",15/05/2017,,
Delivery Units,Adults and Communities,Other Agencies - Third Party P,90000198,ASHTON LODGE CARE CENTRE,"2,775.00",15/05/2017,,
Delivery Units,Adults and Communities,Other Agencies - Third Party P,90000199,ASHTON LODGE CARE CENTRE,"2,211.80",15/05/2017,,
Delivery Units,Adults and Communities,Other Agencies - Third Party P,90000200,ASHTON LODGE CARE CENTRE,"2,398.56",15/05/2017,,
Delivery Units,Adults and Communities,Other Agencies - Third Party P,90000201,ASHTON LODGE CARE CENTRE,"2,952.00",15/05/2017,,
Delivery Units,Adults and Communities,Other Agencies - Third Party P,90000202,ASHTON LODGE CARE CENTRE,"2,211.80",15/05/2017,,
Delivery Units,Adults and Communities,Other Agencies - Third Party P,90000203,ASHTON LODGE CARE CENTRE,"3,000.00",15/05/2017,,
Delivery Units,Adults and Communities,Other Agencies - Third Party P,90000204,ASHTON LODGE CARE CENTRE,"2,165.68",15/05/2017,,
Delivery Units,Adults and Communities,Other Agencies - Third Party P,90000205,ASHTON LODGE CARE CENTRE,"2,165.68",15/05/2017,,
Delivery Units,Adults and Communities,Other Agencies - Third Party P,90000239,ASHTON LODGE CARE CENTRE,"2,657.14",15/05/2017,,
Delivery Units,Adults and Communities,Other Agencies - Third Party P,90000240,ASHTON LODGE CARE CENTRE,"3,542.86",15/05/2017,,
Delivery Units,Adults and Communities,Other Agencies - Third Party P,90000241,ASHTON LODGE CARE CENTRE,"3,072.32",15/05/2017,,
Delivery Units,Adults and Communities,Other Agencies - Third Party P,90000242,ASHTON LODGE CARE CENTRE,"2,448.78",15/05/2017,,
Delivery Units,Adults and Communities,Other Agencies - Third Party P,90000243,ASHTON LODGE CARE CENTRE,"2,448.78",15/05/2017,,
Delivery Units,Adults and Communities,Other Agencies - Third Party P,90000244,ASHTON LODGE CARE CENTRE,"3,268.29",15/05/2017,,
Delivery Units,Adults and Communities,Other Agencies - Third Party P,90000245,ASHTON LODGE CARE CENTRE,"2,655.55",15/05/2017,,
Delivery Units,Adults and Communities,Other Agencies - Third Party P,90000246,ASHTON LODGE CARE CENTRE,"2,448.78",15/05/2017,,
Delivery Units,Adults and Communities,Other Agencies - Third Party P,90000247,ASHTON LODGE CARE CENTRE,"2,878.57",15/05/2017,,
Delivery Units,Adults and Communities,Other Agencies - Third Party P,90000248,ASHTON LODGE CARE CENTRE,"2,655.55",15/05/2017,,
Delivery Units,Adults and Communities,Other Agencies - Third Party P,90000249,ASHTON LODGE CARE CENTRE,"3,321.43",15/05/2017,,
Delivery Units,Adults and Communities,Other Agencies - Third Party P,90000250,ASHTON LODGE CARE CENTRE,"3,072.32",15/05/2017,,
Delivery Units,Adults and Communities,Other Agencies - Third Party P,90000251,ASHTON LODGE CARE CENTRE,"3,542.86",15/05/2017,,
Delivery Units,Adults and Communities,Other Agencies - Third Party P,90000252,ASHTON LODGE CARE CENTRE,"2,788.32",15/05/2017,,
Delivery Units,Adults and Communities,Other Agencies - Third Party P,90000253,ASHTON LODGE CARE CENTRE,"3,321.43",15/05/2017,,
Delivery Units,Adults and Communities,Other Agencies - Third Party P,90000254,ASHTON LODGE CARE CENTRE,"2,397.72",15/05/2017,,
Delivery Units,Adults and Communities,Other Agencies - Third Party P,90000255,ASHTON LODGE CARE CENTRE,"2,397.72",15/05/2017,,
Delivery Units,Adults and Communities,Other Agencies - Third Party P,90000256,ASHTON LODGE CARE CENTRE,"2,397.72",15/05/2017,,
Delivery Units,Adults and Communities,Other Agencies - Third Party P,90000335,ASHTON LODGE CARE CENTRE,"2,398.56",15/05/2017,,
Delivery Units,Adults and Communities,Other Agencies - Third Party P,90000560,ASHTON LODGE CARE CENTRE,"2,400.00",19/05/2017,,
Delivery Units,Adults and Communities,Other Agencies - Third Party P,90000561,ASHTON LODGE CARE CENTRE,"3,200.00",19/05/2017,,
Delivery Units,Adults and Communities,Other Agencies - Third Party P,90000160,ASPEN VILLAGES LTD,"2,001.92",15/05/2017,,
Delivery Units,Adults and Communities,Other Agencies - Third Party P,90000161,ASPEN VILLAGES LTD,"4,400.00",15/05/2017,,
Delivery Units,Adults and Communities,Other Agencies - Third Party P,90000162,ASPEN VILLAGES LTD,"3,000.00",15/05/2017,,
Delivery Units,Adults and Communities,Other Agencies - Third Party P,90000163,ASPEN VILLAGES LTD,"3,132.24",15/05/2017,,
Delivery Units,Adults and Communities,Other Agencies - Third Party P,90000164,ASPEN VILLAGES LTD,"3,200.00",15/05/2017,,
Delivery Units,Adults and Communities,Other Agencies - Third Party P,90000165,ASPEN VILLAGES LTD,"5,400.00",15/05/2017,,
Delivery Units,Adults and Communities,Other Agencies - Third Party P,90000166,ASPEN VILLAGES LTD,"2,184.04",15/05/2017,,
Delivery Units,Adults and Communities,Other Agencies - Third Party P,90000167,ASPEN VILLAGES LTD,"4,400.00",15/05/2017,,
Delivery Units,Adults and Communities,Other Agencies - Third Party P,90000168,ASPEN VILLAGES LTD,"3,800.00",15/05/2017,,
Delivery Units,Adults and Communities,Other Agencies - Third Party P,90000169,ASPEN VILLAGES LTD,"3,200.00",15/05/2017,,
Delivery Units,Adults and Communities,Other Agencies - Third Party P,90000170,ASPEN VILLAGES LTD,"4,400.00",15/05/2017,,
Delivery Units,Adults and Communities,Other Agencies - Third Party P,90000291,ASPEN VILLAGES LTD,"2,216.41",15/05/2017,,
Delivery Units,Adults and Communities,Other Agencies - Third Party P,90000292,ASPEN VILLAGES LTD,"3,321.43",15/05/2017,,
Delivery Units,Adults and Communities,Other Agencies - Third Party P,90000293,ASPEN VILLAGES LTD,"3,542.86",15/05/2017,,
Delivery Units,Adults and Communities,Other Agencies - Third Party P,90000294,ASPEN VILLAGES LTD,"5,978.57",15/05/2017,,
Delivery Units,Adults and Communities,Other Agencies - Third Party P,90000295,ASPEN VILLAGES LTD,"2,418.04",15/05/2017,,
Delivery Units,Adults and Communities,Other Agencies - Third Party P,90000296,ASPEN VILLAGES LTD,"4,871.43",15/05/2017,,
Delivery Units,Adults and Communities,Other Agencies - Third Party P,90000297,ASPEN VILLAGES LTD,"4,207.14",15/05/2017,,
Delivery Units,Adults and Communities,Other Agencies - Third Party P,90000298,ASPEN VILLAGES LTD,114.29,15/05/2017,,
Delivery Units,Adults and Communities,Other Agencies - Third Party P,90000299,ASPEN VILLAGES LTD,"4,871.43",15/05/2017,,
Delivery Units,Adults and Communities,Other Agencies - Third Party P,90000087,AUTUMN GARDENS,"4,800.00",15/05/2017,,
Delivery Units,Adults and Communities,Other Agencies - Third Party P,90000088,AUTUMN GARDENS,"2,880.00",15/05/2017,,
Delivery Units,Adults and Communities,Other Agencies - Third Party P,90000089,AUTUMN GARDENS,"2,800.00",15/05/2017,,
Delivery Units,Adults and Communities,Other Agencies - Third Party P,90000090,AUTUMN GARDENS,"2,184.04",15/05/2017,,
Delivery Units,Adults and Communities,Other Agencies - Third Party P,90000091,AUTUMN GARDENS,"3,160.00",15/05/2017,,
Delivery Units,Adults and Communities,Other Agencies - Third Party P,90000092,AUTUMN GARDENS,"4,800.00",15/05/2017,,
Delivery Units,Adults and Communities,Other Agencies - Third Party P,30163976,B & M CARE,145.13,08/05/2017,,
Delivery Units,Adults and Communities,Other Agencies - Third Party P,30163977,B & M CARE,157.99,08/05/2017,,
Delivery Units,Adults and Communities,Other Agencies - Third Party P,30163978,B & M CARE,157.97,08/05/2017,,
Delivery Units,Adults and Communities,Other Agencies - Third Party P,30163979,B & M CARE,242.86,08/05/2017,,
Delivery Units,Adults and Communities,Other Agencies - Third Party P,30163980,B & M CARE,242.86,08/05/2017,,
Delivery Units,Adults and Communities,Other Agencies - Third Party P,90000186,B & M CARE,"2,031.76",15/05/2017,,
Delivery Units,Adults and Communities,Other Agencies - Third Party P,90000187,B & M CARE,"3,400.00",15/05/2017,,
Delivery Units,Adults and Communities,Other Agencies - Third Party P,90000188,B & M CARE,"3,400.00",15/05/2017,,
Delivery Units,Adults and Communities,Other Agencies - Third Party P,90000189,B & M CARE,"2,211.80",15/05/2017,,
Delivery Units,Adults and Communities,Other Agencies - Third Party P,90000190,B & M CARE,"2,211.80",15/05/2017,,
Delivery Units,Adults and Communities,Other Agencies - Third Party P,90000460,B & M CARE,"3,764.29",15/05/2017,,
Delivery Units,Adults and Communities,Other Agencies - Third Party P,90000461,B & M CARE,"3,764.29",15/05/2017,,
Delivery Units,Adults and Communities,Other Agencies - Third Party P,90000462,B & M CARE,"2,448.78",15/05/2017,,
Delivery Units,Adults and Communities,Other Agencies - Third Party P,90000463,B & M CARE,"2,249.45",15/05/2017,,
Delivery Units,Adults and Communities,Other Agencies - Third Party P,90000464,B & M CARE,"2,448.78",15/05/2017,,
Delivery Units,Adults and Communities,Other Agencies - Third Party P,30163685,BARNET EXECUTIVE CAR SERVICE,480.00,04/05/2017,,
Delivery Units,Adults and Communities,Other Agencies - Third Party P,30163689,BARNET EXECUTIVE CAR SERVICE,480.00,04/05/2017,,
Delivery Units,Adults and Communities,Other Agencies - Third Party P,30163691,BARNET EXECUTIVE CAR SERVICE,480.00,04/05/2017,,
Delivery Units,Adults and Communities,Other Agencies - Third Party P,30163692,BARNET EXECUTIVE CAR SERVICE,400.00,04/05/2017,,
Delivery Units,Adults and Communities,Other Agencies - Third Party P,30165146,BARNET MENCAP,393.10,30/05/2017,,
Delivery Units,Adults and Communities,Other Agencies - Third Party P,90000038,BAYTREE COMMUNITY CARE (LONDON) LTD,"2,610.57",12/05/2017,,
Delivery Units,Adults and Communities,Other Agencies - Third Party P,90000358,BAYTREE COMMUNITY CARE (LONDON) LTD,"3,195.97",15/05/2017,,
Delivery Units,Adults and Communities,Other Agencies - Third Party P,90000359,BAYTREE COMMUNITY CARE (LONDON) LTD,"1,880.47",15/05/2017,,
Delivery Units,Adults and Communities,Other Agencies - Third Party P,90000360,BAYTREE COMMUNITY CARE (LONDON) LTD,"2,426.64",15/05/2017,,
Delivery Units,Adults and Communities,Other Agencies - Third Party P,90000379,BAYTREE COMMUNITY CARE (LONDON) LTD,"2,890.26",15/05/2017,,
Delivery Units,Adults and Communities,Other Agencies - Third Party P,90000380,BAYTREE COMMUNITY CARE (LONDON) LTD,"2,686.64",15/05/2017,,
Delivery Units,Adults and Communities,Other Agencies - Third Party P,90000381,BAYTREE COMMUNITY CARE (LONDON) LTD,"3,538.37",15/05/2017,,
Delivery Units,Adults and Communities,Other Agencies - Third Party P,90000382,BAYTREE COMMUNITY CARE (LONDON) LTD,"2,081.97",15/05/2017,,
Delivery Units,Adults and Communities,Other Agencies - Third Party P,90000173,BELMONT LODGE CARE CENTRE,"2,172.00",15/05/2017,,
Delivery Units,Adults and Communities,Other Agencies - Third Party P,90000311,BELMONT LODGE CARE CENTRE,"2,404.71",15/05/2017,,
Delivery Units,Adults and Communities,Other Agencies - Third Party P,90000371,BIRCHWOOD GRANGE CARE HOME,"2,657.14",15/05/2017,,
Delivery Units,Adults and Communities,Other Agencies - Third Party P,30163593,BLUEBIRD CARE (BARNET),"2,052.00",02/05/2017,,
Delivery Units,Adults and Communities,Other Agencies - Third Party P,30163686,BLUEBIRD CARE (BARNET),"1,284.00",04/05/2017,,
Delivery Units,Adults and Communities,Other Agencies - Third Party P,30163687,BLUEBIRD CARE (BARNET),"2,987.90",04/05/2017,,
Delivery Units,Adults and Communities,Other Agencies - Third Party P,30163688,BLUEBIRD CARE (BARNET),"3,162.70",04/05/2017,,
Delivery Units,Adults and Communities,Other Agencies - Third Party P,30163690,BLUEBIRD CARE (BARNET),"3,163.70",04/05/2017,,
Delivery Units,Adults and Communities,Other Agencies - Third Party P,30163693,BLUEBIRD CARE (BARNET),"3,132.90",04/05/2017,,
Delivery Units,Adults and Communities,Other Agencies - Third Party P,30163694,BLUEBIRD CARE (BARNET),-103.20,04/05/2017,,
Delivery Units,Adults and Communities,Other Agencies - Third Party P,30164146,BROOKDALE HEALTHCARE,939.82,11/05/2017,,
Delivery Units,Adults and Communities,Other Agencies - Third Party P,90000954,BROOKDALE HEALTHCARE,"9,610.00",26/05/2017,,
Delivery Units,Adults and Communities,Other Agencies - Third Party P,90000955,BROOKDALE HEALTHCARE,"9,995.33",26/05/2017,,
Delivery Units,Adults and Communities,Other Agencies - Third Party P,90000956,BROOKDALE HEALTHCARE,"9,083.62",26/05/2017,,
Delivery Units,Adults and Communities,Other Agencies - Third Party P,90000957,BROOKDALE HEALTHCARE,"9,300.00",26/05/2017,,
Delivery Units,Adults and Communities,Other Agencies - Third Party P,30163981,BUPA CARE HOMES,"3,500.00",08/05/2017,,
Delivery Units,Adults and Communities,Other Agencies - Third Party P,30164184,BUPA CARE HOMES,159.15,11/05/2017,,
Delivery Units,Adults and Communities,Other Agencies - Third Party P,30164185,BUPA CARE HOMES,173.43,11/05/2017,,
Delivery Units,Adults and Communities,Other Agencies - Third Party P,30164190,BUPA CARE HOMES,176.19,11/05/2017,,
Delivery Units,Adults and Communities,Other Agencies - Third Party P,30164191,BUPA CARE HOMES,319.74,12/05/2017,,
Delivery Units,Adults and Communities,Other Agencies - Third Party P,30164259,BUPA CARE HOMES,141.96,12/05/2017,,
Delivery Units,Adults and Communities,Other Agencies - Third Party P,30164260,BUPA CARE HOMES,"3,450.00",12/05/2017,,
Delivery Units,Adults and Communities,Other Agencies - Third Party P,30164261,BUPA CARE HOMES,-468.75,12/05/2017,,
Delivery Units,Adults and Communities,Other Agencies - Third Party P,30164586,BUPA CARE HOMES,513.85,18/05/2017,,
Delivery Units,Adults and Communities,Other Agencies - Third Party P,30164587,BUPA CARE HOMES,216.24,18/05/2017,,
Delivery Units,Adults and Communities,Other Agencies - Third Party P,30164588,BUPA CARE HOMES,220.39,18/05/2017,,
Delivery Units,Adults and Communities,Other Agencies - Third Party P,30164589,BUPA CARE HOMES,162.48,18/05/2017,,
Delivery Units,Adults and Communities,Other Agencies - Third Party P,30164590,BUPA CARE HOMES,159.10,18/05/2017,,
Delivery Units,Adults and Communities,Other Agencies - Third Party P,30164591,BUPA CARE HOMES,194.03,18/05/2017,,
Delivery Units,Adults and Communities,Other Agencies - Third Party P,30164592,BUPA CARE HOMES,159.10,18/05/2017,,
Delivery Units,Adults and Communities,Other Agencies - Third Party P,30164593,BUPA CARE HOMES,250.00,18/05/2017,,
Delivery Units,Adults and Communities,Other Agencies - Third Party P,30164614,BUPA CARE HOMES,166.06,17/05/2017,,
Delivery Units,Adults and Communities,Other Agencies - Third Party P,30164615,BUPA CARE HOMES,165.71,17/05/2017,,
Delivery Units,Adults and Communities,Other Agencies - Third Party P,90000057,BUPA CARE HOMES,"2,466.68",12/05/2017,,
Delivery Units,Adults and Communities,Other Agencies - Third Party P,90000305,BUPA CARE HOMES,"1,160.19",15/05/2017,,
Delivery Units,Adults and Communities,Other Agencies - Third Party P,90000306,BUPA CARE HOMES,"2,427.96",15/05/2017,,
Delivery Units,Adults and Communities,Other Agencies - Third Party P,90000308,BUPA CARE HOMES,"4,476.36",12/05/2017,,
Delivery Units,Adults and Communities,Other Agencies - Third Party P,90000312,BUPA CARE HOMES,"2,688.10",15/05/2017,,
Delivery Units,Adults and Communities,Other Agencies - Third Party P,90000313,BUPA CARE HOMES,"2,466.76",15/05/2017,,
Delivery Units,Adults and Communities,Other Agencies - Third Party P,90000316,BUPA CARE HOMES,"4,955.97",12/05/2017,,
Delivery Units,Adults and Communities,Other Agencies - Third Party P,90000319,BUPA CARE HOMES,"3,351.68",15/05/2017,,
Delivery Units,Adults and Communities,Other Agencies - Third Party P,90000320,BUPA CARE HOMES,"3,416.11",15/05/2017,,
Delivery Units,Adults and Communities,Other Agencies - Third Party P,90000321,BUPA CARE HOMES,"2,518.48",15/05/2017,,
Delivery Units,Adults and Communities,Other Agencies - Third Party P,90000334,BUPA CARE HOMES,"2,573.93",17/05/2017,,
Delivery Units,Adults and Communities,Other Agencies - Third Party P,90000392,BUPA CARE HOMES,"2,228.04",15/05/2017,,
Delivery Units,Adults and Communities,Other Agencies - Third Party P,90000445,BUPA CARE HOMES,"7,964.70",15/05/2017,,
Delivery Units,Adults and Communities,Other Agencies - Third Party P,90000540,BUPA CARE HOMES,"2,320.00",19/05/2017,,
Delivery Units,Adults and Communities,Other Agencies - Third Party P,90000541,BUPA CARE HOMES,"2,324.84",19/05/2017,,
Delivery Units,Adults and Communities,Other Agencies - Third Party P,90000542,BUPA CARE HOMES,"2,274.76",19/05/2017,,
Delivery Units,Adults and Communities,Other Agencies - Third Party P,90000543,BUPA CARE HOMES,"3,027.32",19/05/2017,,
Delivery Units,Adults and Communities,Other Agencies - Third Party P,90000544,BUPA CARE HOMES,"3,085.52",19/05/2017,,
Delivery Units,Adults and Communities,Other Agencies - Third Party P,90000545,BUPA CARE HOMES,"7,193.92",19/05/2017,,
Delivery Units,Adults and Communities,Other Agencies - Third Party P,90000546,BUPA CARE HOMES,"2,227.40",19/05/2017,,
Delivery Units,Adults and Communities,Other Agencies - Third Party P,90000547,BUPA CARE HOMES,"2,716.36",19/05/2017,,
Delivery Units,Adults and Communities,Other Agencies - Third Party P,90000548,BUPA CARE HOMES,"2,227.40",19/05/2017,,
Delivery Units,Adults and Communities,Other Agencies - Third Party P,90000871,BUPA CARE HOMES,"2,165.68",26/05/2017,,
Delivery Units,Adults and Communities,Other Agencies - Third Party P,90001763,BUPA CARE HOMES,"2,568.57",26/05/2017,,
Delivery Units,Adults and Communities,Other Agencies - Third Party P,90001764,BUPA CARE HOMES - BRUNSWICK COURT,"3,498.57",30/05/2017,,
Delivery Units,Adults and Communities,Other Agencies - Third Party P,90001765,BUPA CARE HOMES - BRUNSWICK COURT,"3,160.00",30/05/2017,,
Delivery Units,Adults and Communities,Other Agencies - Third Party P,30163715,BUPA NURSING HOMES LTD - ARKLEY,397.77,04/05/2017,,
Delivery Units,Adults and Communities,Other Agencies - Third Party P,30163716,BUPA NURSING HOMES LTD - ARKLEY,397.72,04/05/2017,,
Delivery Units,Adults and Communities,Other Agencies - Third Party P,30163717,BUPA NURSING HOMES LTD - ARKLEY,397.72,04/05/2017,,
Delivery Units,Adults and Communities,Other Agencies - Third Party P,30163718,BUPA NURSING HOMES LTD - ARKLEY,373.16,04/05/2017,,
Delivery Units,Adults and Communities,Other Agencies - Third Party P,30163719,BUPA NURSING HOMES LTD - ARKLEY,397.75,04/05/2017,,
Delivery Units,Adults and Communities,Other Agencies - Third Party P,30163720,BUPA NURSING HOMES LTD - ARKLEY,424.19,04/05/2017,,
Delivery Units,Adults and Communities,Other Agencies - Third Party P,30163721,BUPA NURSING HOMES LTD - ARKLEY,395.49,04/05/2017,,
Delivery Units,Adults and Communities,Other Agencies - Third Party P,30163722,BUPA NURSING HOMES LTD - ARKLEY,386.73,04/05/2017,,
Delivery Units,Adults and Communities,Other Agencies - Third Party P,30163723,BUPA NURSING HOMES LTD - ARKLEY,622.17,04/05/2017,,
Delivery Units,Adults and Communities,Other Agencies - Third Party P,30164567,BUPA NURSING HOMES LTD - ARKLEY,169.67,18/05/2017,,
Delivery Units,Adults and Communities,Other Agencies - Third Party P,30164568,BUPA NURSING HOMES LTD - ARKLEY,175.39,18/05/2017,,
Delivery Units,Adults and Communities,Other Agencies - Third Party P,90000150,BUPA NURSING HOMES LTD - ARKLEY,"1,778.95",15/05/2017,,
Delivery Units,Adults and Communities,Other Agencies - Third Party P,90000151,BUPA NURSING HOMES LTD - ARKLEY,"1,716.52",15/05/2017,,
Delivery Units,Adults and Communities,Other Agencies - Third Party P,90000152,BUPA NURSING HOMES LTD - ARKLEY,"1,829.65",15/05/2017,,
Delivery Units,Adults and Communities,Other Agencies - Third Party P,90000153,BUPA NURSING HOMES LTD - ARKLEY,"1,951.25",15/05/2017,,
Delivery Units,Adults and Communities,Other Agencies - Third Party P,90000154,BUPA NURSING HOMES LTD - ARKLEY,"2,861.99",15/05/2017,,
Delivery Units,Adults and Communities,Other Agencies - Third Party P,90000362,BUPA NURSING HOMES LTD - ARKLEY,"1,829.52",15/05/2017,,
Delivery Units,Adults and Communities,Other Agencies - Third Party P,90000363,BUPA NURSING HOMES LTD - ARKLEY,"1,829.52",15/05/2017,,
Delivery Units,Adults and Communities,Other Agencies - Third Party P,90000364,BUPA NURSING HOMES LTD - ARKLEY,"1,819.27",15/05/2017,,
Delivery Units,Adults and Communities,Other Agencies - Third Party P,90000365,BUPA NURSING HOMES LTD - ARKLEY,"1,829.75",15/05/2017,,
Delivery Units,Adults and Communities,Other Agencies - Third Party P,90000446,BUPA NURSING HOMES LTD - ARKLEY,"2,629.95",18/05/2017,,
Delivery Units,Adults and Communities,Other Agencies - Third Party P,90000447,BUPA NURSING HOMES LTD - ARKLEY,"2,718.61",18/05/2017,,
Delivery Units,Adults and Communities,Other Agencies - Third Party P,90000538,BUPA NURSING HOMES LTD - ARKLEY,"2,375.44",19/05/2017,,
Delivery Units,Adults and Communities,Other Agencies - Third Party P,90000539,BUPA NURSING HOMES LTD - ARKLEY,"2,455.52",19/05/2017,,
Delivery Units,Adults and Communities,Other Agencies - Third Party P,90000027,CAMPHILL DEVON COMMUNITY LIMITED,"3,220.00",12/05/2017,,
Delivery Units,Adults and Communities,Other Agencies - Third Party P,90000391,CAMPHILL DEVON COMMUNITY LIMITED,"4,508.00",15/05/2017,,
Delivery Units,Adults and Communities,Other Agencies - Third Party P,90000023,CARE ASSIST LIMITED,"3,800.00",12/05/2017,,
Delivery Units,Adults and Communities,Other Agencies - Third Party P,90000024,CARE ASSIST LIMITED,"3,800.00",12/05/2017,,
Delivery Units,Adults and Communities,Other Agencies - Third Party P,90000553,CARE ASSIST LIMITED,"4,207.14",19/05/2017,,
Delivery Units,Adults and Communities,Other Agencies - Third Party P,30128846,CARE UK COMMUNITY PARTNERSHIPS,"-2,774.96",08/05/2017,,
Delivery Units,Adults and Communities,Other Agencies - Third Party P,30128848,CARE UK COMMUNITY PARTNERSHIPS,"1,664.97",08/05/2017,,
Delivery Units,Adults and Communities,Other Agencies - Third Party P,80010424,CARE UK COMMUNITY PARTNERSHIPS,"3,426.61",26/05/2017,,
Delivery Units,Adults and Communities,Other Agencies - Third Party P,30164691,CARE WORLDWIDE (LONDON) LTD,670.22,22/05/2017,,
Delivery Units,Adults and Communities,Other Agencies - Third Party P,30164692,CARE WORLDWIDE (LONDON) LTD,984.12,22/05/2017,,
Delivery Units,Adults and Communities,Other Agencies - Third Party P,30164693,CARE WORLDWIDE (LONDON) LTD,"1,061.63",22/05/2017,,
Delivery Units,Adults and Communities,Other Agencies - Third Party P,30164703,CARE WORLDWIDE (LONDON) LTD,"1,100.07",22/05/2017,,
Delivery Units,Adults and Communities,Other Agencies - Third Party P,30164705,CARE WORLDWIDE (LONDON) LTD,"1,345.06",22/05/2017,,
Delivery Units,Adults and Communities,Other Agencies - Third Party P,30164706,CARE WORLDWIDE (LONDON) LTD,671.50,22/05/2017,,
Delivery Units,Adults and Communities,Other Agencies - Third Party P,90002152,CARE WORLDWIDE (LONDON) LTD,"2,014.49",31/05/2017,,
Delivery Units,Adults and Communities,Other Agencies - Third Party P,90002153,CARE WORLDWIDE (LONDON) LTD,"2,010.66",31/05/2017,,
Delivery Units,Adults and Communities,Other Agencies - Third Party P,90002154,CARE WORLDWIDE (LONDON) LTD,"4,035.19",31/05/2017,,
Delivery Units,Adults and Communities,Other Agencies - Third Party P,90002155,CARE WORLDWIDE (LONDON) LTD,"3,184.90",31/05/2017,,
Delivery Units,Adults and Communities,Other Agencies - Third Party P,30164698,CARING HOMES HEALTHCARE GROUP,800.00,22/05/2017,,
Delivery Units,Adults and Communities,Other Agencies - Third Party P,90000678,CARING HOMES HEALTHCARE GROUP,"1,257.14",26/05/2017,,
Delivery Units,Adults and Communities,Other Agencies - Third Party P,30161878,CARLTON COURT (TLC GROUP),"-2,088.33",04/05/2017,,
Delivery Units,Adults and Communities,Other Agencies - Third Party P,30163659,CARLTON COURT (TLC GROUP),"15,187.50",04/05/2017,,
Delivery Units,Adults and Communities,Other Agencies - Third Party P,30163660,CARLTON COURT (TLC GROUP),171.33,04/05/2017,,
Delivery Units,Adults and Communities,Other Agencies - Third Party P,30163661,CARLTON COURT (TLC GROUP),145.13,04/05/2017,,
Delivery Units,Adults and Communities,Other Agencies - Third Party P,30163662,CARLTON COURT (TLC GROUP),314.29,04/05/2017,,
Delivery Units,Adults and Communities,Other Agencies - Third Party P,30163663,CARLTON COURT (TLC GROUP),285.71,04/05/2017,,
Delivery Units,Adults and Communities,Other Agencies - Third Party P,30163665,CARLTON COURT (TLC GROUP),145.13,04/05/2017,,
Delivery Units,Adults and Communities,Other Agencies - Third Party P,30163666,CARLTON COURT (TLC GROUP),171.33,04/05/2017,,
Delivery Units,Adults and Communities,Other Agencies - Third Party P,30163667,CARLTON COURT (TLC GROUP),242.86,04/05/2017,,
Delivery Units,Adults and Communities,Other Agencies - Third Party P,30163668,CARLTON COURT (TLC GROUP),240.06,04/05/2017,,
Delivery Units,Adults and Communities,Other Agencies - Third Party P,30163669,CARLTON COURT (TLC GROUP),157.99,04/05/2017,,
Delivery Units,Adults and Communities,Other Agencies - Third Party P,30163670,CARLTON COURT (TLC GROUP),171.33,04/05/2017,,
Delivery Units,Adults and Communities,Other Agencies - Third Party P,30163671,CARLTON COURT (TLC GROUP),171.33,04/05/2017,,
Delivery Units,Adults and Communities,Other Agencies - Third Party P,30163672,CARLTON COURT (TLC GROUP),241.08,04/05/2017,,
Delivery Units,Adults and Communities,Other Agencies - Third Party P,90000130,CARLTON COURT (TLC GROUP),"4,000.00",15/05/2017,,
Delivery Units,Adults and Communities,Other Agencies - Third Party P,90000131,CARLTON COURT (TLC GROUP),"4,400.00",15/05/2017,,
Delivery Units,Adults and Communities,Other Agencies - Third Party P,90000132,CARLTON COURT (TLC GROUP),"2,031.76",15/05/2017,,
Delivery Units,Adults and Communities,Other Agencies - Third Party P,90000133,CARLTON COURT (TLC GROUP),"2,398.56",15/05/2017,,
Delivery Units,Adults and Communities,Other Agencies - Third Party P,90000134,CARLTON COURT (TLC GROUP),"2,398.56",15/05/2017,,
Delivery Units,Adults and Communities,Other Agencies - Third Party P,90000135,CARLTON COURT (TLC GROUP),"2,398.56",15/05/2017,,
Delivery Units,Adults and Communities,Other Agencies - Third Party P,90000136,CARLTON COURT (TLC GROUP),"2,211.80",15/05/2017,,
Delivery Units,Adults and Communities,Other Agencies - Third Party P,90000137,CARLTON COURT (TLC GROUP),"3,360.84",15/05/2017,,
Delivery Units,Adults and Communities,Other Agencies - Third Party P,90000138,CARLTON COURT (TLC GROUP),"3,400.00",15/05/2017,,
Delivery Units,Adults and Communities,Other Agencies - Third Party P,90000140,CARLTON COURT (TLC GROUP),"2,398.56",15/05/2017,,
Delivery Units,Adults and Communities,Other Agencies - Third Party P,90000141,CARLTON COURT (TLC GROUP),"2,031.76",15/05/2017,,
Delivery Units,Adults and Communities,Other Agencies - Third Party P,90000356,CARLTON COURT (TLC GROUP),"1,205.40",15/05/2017,,
Delivery Units,Adults and Communities,Other Agencies - Third Party P,90000465,CARLTON COURT (TLC GROUP),"2,448.78",15/05/2017,,
Delivery Units,Adults and Communities,Other Agencies - Third Party P,90000466,CARLTON COURT (TLC GROUP),"2,655.55",15/05/2017,,
Delivery Units,Adults and Communities,Other Agencies - Third Party P,90000467,CARLTON COURT (TLC GROUP),"3,764.29",15/05/2017,,
Delivery Units,Adults and Communities,Other Agencies - Third Party P,90000468,CARLTON COURT (TLC GROUP),"4,428.57",15/05/2017,,
Delivery Units,Adults and Communities,Other Agencies - Third Party P,90000469,CARLTON COURT (TLC GROUP),"2,249.45",15/05/2017,,
Delivery Units,Adults and Communities,Other Agencies - Third Party P,90000470,CARLTON COURT (TLC GROUP),"2,249.45",15/05/2017,,
Delivery Units,Adults and Communities,Other Agencies - Third Party P,90000471,CARLTON COURT (TLC GROUP),"2,655.55",15/05/2017,,
Delivery Units,Adults and Communities,Other Agencies - Third Party P,90000472,CARLTON COURT (TLC GROUP),"2,655.55",15/05/2017,,
Delivery Units,Adults and Communities,Other Agencies - Third Party P,90000473,CARLTON COURT (TLC GROUP),"2,655.55",15/05/2017,,
Delivery Units,Adults and Communities,Other Agencies - Third Party P,90000474,CARLTON COURT (TLC GROUP),"2,655.55",15/05/2017,,
Delivery Units,Adults and Communities,Other Agencies - Third Party P,90000475,CARLTON COURT (TLC GROUP),"3,720.93",15/05/2017,,
Delivery Units,Adults and Communities,Other Agencies - Third Party P,90000872,CARMEN LODGE RESIDENTIAL HOME,"2,739.47",30/05/2017,,
Delivery Units,Adults and Communities,Other Agencies - Third Party P,90000076,CATHERINE LODGE,"1,042.86",15/05/2017,,
Delivery Units,Adults and Communities,Other Agencies - Third Party P,90000142,CATHERINE LODGE,"2,053.81",15/05/2017,,
Delivery Units,Adults and Communities,Other Agencies - Third Party P,90000143,CATHERINE LODGE,552.95,15/05/2017,,
Delivery Units,Adults and Communities,Other Agencies - Third Party P,90000144,CATHERINE LODGE,552.95,15/05/2017,,
Delivery Units,Adults and Communities,Other Agencies - Third Party P,90000145,CATHERINE LODGE,"1,500.86",15/05/2017,,
Delivery Units,Adults and Communities,Other Agencies - Third Party P,90000159,CATHERINE LODGE,107.14,15/05/2017,,
Delivery Units,Adults and Communities,Other Agencies - Third Party P,90000257,CATHERINE LODGE,"2,211.80",15/05/2017,,
Delivery Units,Adults and Communities,Other Agencies - Third Party P,90000258,CATHERINE LODGE,"2,920.00",15/05/2017,,
Delivery Units,Adults and Communities,Other Agencies - Third Party P,90000259,CATHERINE LODGE,"2,211.80",15/05/2017,,
Delivery Units,Adults and Communities,Other Agencies - Third Party P,90000260,CATHERINE LODGE,"2,211.80",15/05/2017,,
Delivery Units,Adults and Communities,Other Agencies - Third Party P,90000261,CATHERINE LODGE,"2,211.80",15/05/2017,,
Delivery Units,Adults and Communities,Other Agencies - Third Party P,90000262,CATHERINE LODGE,"3,000.00",15/05/2017,,
Delivery Units,Adults and Communities,Other Agencies - Third Party P,30164207,CDR CARE LTD,200.00,12/05/2017,,
Delivery Units,Adults and Communities,Other Agencies - Third Party P,30164208,CDR CARE LTD,200.00,12/05/2017,,
Delivery Units,Adults and Communities,Other Agencies - Third Party P,30164209,CDR CARE LTD,420.00,12/05/2017,,
Delivery Units,Adults and Communities,Other Agencies - Third Party P,90000640,CDR CARE LTD,500.00,26/05/2017,,
Delivery Units,Adults and Communities,Other Agencies - Third Party P,90000642,CDR CARE LTD,600.00,26/05/2017,,
Delivery Units,Adults and Communities,Other Agencies - Third Party P,90000643,CDR CARE LTD,"1,120.00",26/05/2017,,
Delivery Units,Adults and Communities,Other Agencies - Third Party P,90000651,CDR CARE LTD,500.00,26/05/2017,,
Delivery Units,Adults and Communities,Other Agencies - Third Party P,90000652,CDR CARE LTD,"2,000.00",26/05/2017,,
Delivery Units,Adults and Communities,Other Agencies - Third Party P,90000653,CDR CARE LTD,500.00,26/05/2017,,
Delivery Units,Adults and Communities,Other Agencies - Third Party P,90000654,CDR CARE LTD,"2,000.00",26/05/2017,,
Delivery Units,Adults and Communities,Other Agencies - Third Party P,30163724,CEDARS NURSING HOME,"15,111.57",04/05/2017,,
Delivery Units,Adults and Communities,Other Agencies - Third Party P,30163725,CEDARS NURSING HOME,191.29,04/05/2017,,
Delivery Units,Adults and Communities,Other Agencies - Third Party P,90000174,CEDARS NURSING HOME,"2,398.56",15/05/2017,,
Delivery Units,Adults and Communities,Other Agencies - Third Party P,90000175,CEDARS NURSING HOME,"2,398.56",15/05/2017,,
Delivery Units,Adults and Communities,Other Agencies - Third Party P,90000176,CEDARS NURSING HOME,"2,165.68",15/05/2017,,
Delivery Units,Adults and Communities,Other Agencies - Third Party P,90000177,CEDARS NURSING HOME,"2,398.56",15/05/2017,,
Delivery Units,Adults and Communities,Other Agencies - Third Party P,90000178,CEDARS NURSING HOME,"2,165.68",15/05/2017,,
Delivery Units,Adults and Communities,Other Agencies - Third Party P,90000179,CEDARS NURSING HOME,"2,165.68",15/05/2017,,
Delivery Units,Adults and Communities,Other Agencies - Third Party P,90000284,CEDARS NURSING HOME,"2,655.55",15/05/2017,,
Delivery Units,Adults and Communities,Other Agencies - Third Party P,90000285,CEDARS NURSING HOME,"2,655.55",15/05/2017,,
Delivery Units,Adults and Communities,Other Agencies - Third Party P,90000286,CEDARS NURSING HOME,"2,964.93",15/05/2017,,
Delivery Units,Adults and Communities,Other Agencies - Third Party P,90000287,CEDARS NURSING HOME,"2,397.72",15/05/2017,,
Delivery Units,Adults and Communities,Other Agencies - Third Party P,90000288,CEDARS NURSING HOME,"2,655.55",15/05/2017,,
Delivery Units,Adults and Communities,Other Agencies - Third Party P,90000289,CEDARS NURSING HOME,"2,397.72",15/05/2017,,
Delivery Units,Adults and Communities,Other Agencies - Third Party P,90000290,CEDARS NURSING HOME,"2,397.72",15/05/2017,,
Delivery Units,Adults and Communities,Other Agencies - Third Party P,30162430,CENTRAL MIDDLESEX SKILLS,"1,175.98",04/05/2017,,
Delivery Units,Adults and Communities,Other Agencies - Third Party P,30162431,CENTRAL MIDDLESEX SKILLS,904.60,04/05/2017,,
Delivery Units,Adults and Communities,Other Agencies - Third Party P,30163696,CHEQUERS TRANSPORT LIMITED,480.00,04/05/2017,,
Delivery Units,Adults and Communities,Other Agencies - Third Party P,30163697,CHEQUERS TRANSPORT LIMITED,480.00,04/05/2017,,
Delivery Units,Adults and Communities,Other Agencies - Third Party P,30163700,CHILTERN SUPPORT & HOUSING LTD,"7,500.00",04/05/2017,,
Delivery Units,Adults and Communities,Other Agencies - Third Party P,30164170,CHILTERN SUPPORT & HOUSING LTD,"11,918.40",11/05/2017,,
Delivery Units,Adults and Communities,Other Agencies - Third Party P,30164171,CHILTERN SUPPORT & HOUSING LTD,"6,800.00",11/05/2017,,
Delivery Units,Adults and Communities,Other Agencies - Third Party P,30165107,CHILTERN SUPPORT & HOUSING LTD,"8,823.57",30/05/2017,,
Delivery Units,Adults and Communities,Other Agencies - Third Party P,90000601,CHILTERN SUPPORT & HOUSING LTD,"2,500.00",19/05/2017,,
Delivery Units,Adults and Communities,Other Agencies - Third Party P,90000602,CHILTERN SUPPORT & HOUSING LTD,"13,600.00",19/05/2017,,
Delivery Units,Adults and Communities,Other Agencies - Third Party P,90000650,CHILTERN SUPPORT & HOUSING LTD,"10,000.00",26/05/2017,,
Delivery Units,Adults and Communities,Other Agencies - Third Party P,30163726,CLARE HOUSE NURSING HOME,875.57,04/05/2017,,
Delivery Units,Adults and Communities,Other Agencies - Third Party P,90000053,CLARE HOUSE NURSING HOME,"1,353.15",12/05/2017,,
Delivery Units,Adults and Communities,Other Agencies - Third Party P,90000963,CLARE HOUSE NURSING HOME,"2,228.72",26/05/2017,,
Delivery Units,Adults and Communities,Other Agencies - Third Party P,30164239,CLOVELLY HOUSE RESID. HOME LTD,"2,211.80",12/05/2017,,
Delivery Units,Adults and Communities,Other Agencies - Third Party P,30164240,CLOVELLY HOUSE RESID. HOME LTD,"2,211.80",12/05/2017,,
Delivery Units,Adults and Communities,Other Agencies - Third Party P,30164241,CLOVELLY HOUSE RESID. HOME LTD,"2,600.00",12/05/2017,,
Delivery Units,Adults and Communities,Other Agencies - Third Party P,30164242,CLOVELLY HOUSE RESID. HOME LTD,"2,600.00",12/05/2017,,
Delivery Units,Adults and Communities,Other Agencies - Third Party P,30164243,CLOVELLY HOUSE RESID. HOME LTD,"2,211.80",12/05/2017,,
Delivery Units,Adults and Communities,Other Agencies - Third Party P,30164244,CLOVELLY HOUSE RESID. HOME LTD,"2,600.00",12/05/2017,,
Delivery Units,Adults and Communities,Other Agencies - Third Party P,30164245,CLOVELLY HOUSE RESID. HOME LTD,"2,211.80",12/05/2017,,
Delivery Units,Adults and Communities,Other Agencies - Third Party P,30164246,CLOVELLY HOUSE RESID. HOME LTD,"1,900.40",12/05/2017,,
Delivery Units,Adults and Communities,Other Agencies - Third Party P,30164247,CLOVELLY HOUSE RESID. HOME LTD,"2,700.00",12/05/2017,,
Delivery Units,Adults and Communities,Other Agencies - Third Party P,30164248,CLOVELLY HOUSE RESID. HOME LTD,-650.00,12/05/2017,,
Delivery Units,Adults and Communities,Other Agencies - Third Party P,30164249,CLOVELLY HOUSE RESID. HOME LTD,-675.00,12/05/2017,,
Delivery Units,Adults and Communities,Other Agencies - Third Party P,30164250,CLOVELLY HOUSE RESID. HOME LTD,-868.92,12/05/2017,,
Delivery Units,Adults and Communities,Other Agencies - Third Party P,30164251,CLOVELLY HOUSE RESID. HOME LTD,-552.95,12/05/2017,,
Delivery Units,Adults and Communities,Other Agencies - Third Party P,30164252,CLOVELLY HOUSE RESID. HOME LTD,-552.95,12/05/2017,,
Delivery Units,Adults and Communities,Other Agencies - Third Party P,30164253,CLOVELLY HOUSE RESID. HOME LTD,-650.00,12/05/2017,,
Delivery Units,Adults and Communities,Other Agencies - Third Party P,30164254,CLOVELLY HOUSE RESID. HOME LTD,-650.00,12/05/2017,,
Delivery Units,Adults and Communities,Other Agencies - Third Party P,30164255,CLOVELLY HOUSE RESID. HOME LTD,-789.93,12/05/2017,,
Delivery Units,Adults and Communities,Other Agencies - Third Party P,30164256,CLOVELLY HOUSE RESID. HOME LTD,-868.92,12/05/2017,,
Delivery Units,Adults and Communities,Other Agencies - Third Party P,90000180,CLOVELLY HOUSE RESID. HOME LTD,"2,600.00",15/05/2017,,
Delivery Units,Adults and Communities,Other Agencies - Third Party P,90000181,CLOVELLY HOUSE RESID. HOME LTD,"2,700.00",15/05/2017,,
Delivery Units,Adults and Communities,Other Agencies - Third Party P,90000182,CLOVELLY HOUSE RESID. HOME LTD,"2,600.00",15/05/2017,,
Delivery Units,Adults and Communities,Other Agencies - Third Party P,90000183,CLOVELLY HOUSE RESID. HOME LTD,"2,211.80",15/05/2017,,
Delivery Units,Adults and Communities,Other Agencies - Third Party P,90000184,CLOVELLY HOUSE RESID. HOME LTD,"2,780.00",15/05/2017,,
Delivery Units,Adults and Communities,Other Agencies - Third Party P,90000336,CLOVELLY HOUSE RESID. HOME LTD,"2,700.00",15/05/2017,,
Delivery Units,Adults and Communities,Other Agencies - Third Party P,90000337,CLOVELLY HOUSE RESID. HOME LTD,"2,780.00",15/05/2017,,
Delivery Units,Adults and Communities,Other Agencies - Third Party P,90000338,CLOVELLY HOUSE RESID. HOME LTD,"2,600.00",15/05/2017,,
Delivery Units,Adults and Communities,Other Agencies - Third Party P,90000339,CLOVELLY HOUSE RESID. HOME LTD,"2,211.80",15/05/2017,,
Delivery Units,Adults and Communities,Other Agencies - Third Party P,90000340,CLOVELLY HOUSE RESID. HOME LTD,"2,211.80",15/05/2017,,
Delivery Units,Adults and Communities,Other Agencies - Third Party P,90000341,CLOVELLY HOUSE RESID. HOME LTD,"2,211.80",15/05/2017,,
Delivery Units,Adults and Communities,Other Agencies - Third Party P,90000342,CLOVELLY HOUSE RESID. HOME LTD,"2,600.00",15/05/2017,,
Delivery Units,Adults and Communities,Other Agencies - Third Party P,90000343,CLOVELLY HOUSE RESID. HOME LTD,"2,211.80",15/05/2017,,
Delivery Units,Adults and Communities,Other Agencies - Third Party P,90000344,CLOVELLY HOUSE RESID. HOME LTD,"2,780.00",15/05/2017,,
Delivery Units,Adults and Communities,Other Agencies - Third Party P,90000345,CLOVELLY HOUSE RESID. HOME LTD,"2,600.00",15/05/2017,,
Delivery Units,Adults and Communities,Other Agencies - Third Party P,30164101,CMG HOMES LTD,"3,240.96",11/05/2017,,
Delivery Units,Adults and Communities,Other Agencies - Third Party P,90000649,CMG HOMES LTD,"3,240.96",26/05/2017,,
Delivery Units,Adults and Communities,Other Agencies - Third Party P,90000263,COMPLETE CARE SERVICES LTD,"4,901.68",15/05/2017,,
Delivery Units,Adults and Communities,Other Agencies - Third Party P,90000282,COMPLETE CARE SERVICES LTD,"5,426.86",16/05/2017,,
Delivery Units,Adults and Communities,Other Agencies - Third Party P,30164276,COVERAGE CARE SERVICES LTD,"4,360.00",12/05/2017,,
Delivery Units,Adults and Communities,Other Agencies - Third Party P,30164484,DANA CARE LIMITED,638.86,18/05/2017,,
Delivery Units,Adults and Communities,Other Agencies - Third Party P,90000532,DANA CARE LIMITED,"8,944.00",19/05/2017,,
Delivery Units,Adults and Communities,Other Agencies - Third Party P,90000064,DELAMER HOUSE,"2,435.71",12/05/2017,,
Delivery Units,Adults and Communities,Other Agencies - Third Party P,30164132,DEVELOPMENT AND LEARNING OPPORTUNIT,"1,536.00",11/05/2017,,
Delivery Units,Adults and Communities,Other Agencies - Third Party P,30164135,DEVELOPMENT AND LEARNING OPPORTUNIT,489.30,11/05/2017,,
Delivery Units,Adults and Communities,Other Agencies - Third Party P,30164136,DEVELOPMENT AND LEARNING OPPORTUNIT,792.00,11/05/2017,,
Delivery Units,Adults and Communities,Other Agencies - Third Party P,30164137,DEVELOPMENT AND LEARNING OPPORTUNIT,"1,406.25",11/05/2017,,
Delivery Units,Adults and Communities,Other Agencies - Third Party P,30164139,DEVELOPMENT AND LEARNING OPPORTUNIT,375.00,11/05/2017,,
Delivery Units,Adults and Communities,Other Agencies - Third Party P,30164140,DEVELOPMENT AND LEARNING OPPORTUNIT,229.50,11/05/2017,,
Delivery Units,Adults and Communities,Other Agencies - Third Party P,30164174,DEVELOPMENT AND LEARNING OPPORTUNIT,96.00,11/05/2017,,
Delivery Units,Adults and Communities,Other Agencies - Third Party P,30164175,DEVELOPMENT AND LEARNING OPPORTUNIT,96.00,11/05/2017,,
Delivery Units,Adults and Communities,Other Agencies - Third Party P,90000982,DEVELOPMENT AND LEARNING OPPORTUNIT,468.75,26/05/2017,,
Delivery Units,Adults and Communities,Other Agencies - Third Party P,90000983,DEVELOPMENT AND LEARNING OPPORTUNIT,"1,875.00",26/05/2017,,
Delivery Units,Adults and Communities,Other Agencies - Third Party P,30164794,DILLON CARE LTD,"1,950.00",22/05/2017,,
Delivery Units,Adults and Communities,Other Agencies - Third Party P,90000636,DILLON CARE LTD,"3,900.00",26/05/2017,,
Delivery Units,Adults and Communities,Other Agencies - Third Party P,30164612,DIMENSIONS UK,"1,324.44",18/05/2017,,
Delivery Units,Adults and Communities,Other Agencies - Third Party P,90000357,DOWNLANDS CARE LTD,"1,877.96",15/05/2017,,
Delivery Units,Adults and Communities,Other Agencies - Third Party P,90000459,DOWNLANDS CARE LTD,"2,079.17",15/05/2017,,
Delivery Units,Adults and Communities,Other Agencies - Third Party P,90000613,DR FRENCH MEMORIAL HOME LTD,"2,211.80",19/05/2017,,
Delivery Units,Adults and Communities,Other Agencies - Third Party P,90000614,DR FRENCH MEMORIAL HOME LTD,"3,000.00",22/05/2017,,
Delivery Units,Adults and Communities,Other Agencies - Third Party P,90000514,ELEANOR PALMER TRUST NO 2 A/C.,"2,448.78",17/05/2017,,
Delivery Units,Adults and Communities,Other Agencies - Third Party P,90000515,ELEANOR PALMER TRUST NO 2 A/C.,"2,448.78",17/05/2017,,
Delivery Units,Adults and Communities,Other Agencies - Third Party P,90000516,ELEANOR PALMER TRUST NO 2 A/C.,"2,249.45",17/05/2017,,
Delivery Units,Adults and Communities,Other Agencies - Third Party P,90000517,ELEANOR PALMER TRUST NO 2 A/C.,"2,249.45",17/05/2017,,
Delivery Units,Adults and Communities,Other Agencies - Third Party P,90000518,ELEANOR PALMER TRUST NO 2 A/C.,"2,448.78",17/05/2017,,
Delivery Units,Adults and Communities,Other Agencies - Third Party P,90000519,ELEANOR PALMER TRUST NO 2 A/C.,"2,448.78",17/05/2017,,
Delivery Units,Adults and Communities,Other Agencies - Third Party P,90000520,ELEANOR PALMER TRUST NO 2 A/C.,"2,448.78",17/05/2017,,
Delivery Units,Adults and Communities,Other Agencies - Third Party P,90000521,ELEANOR PALMER TRUST NO 2 A/C.,"2,249.45",17/05/2017,,
Delivery Units,Adults and Communities,Other Agencies - Third Party P,90000522,ELEANOR PALMER TRUST NO 2 A/C.,"2,249.45",17/05/2017,,
Delivery Units,Adults and Communities,Other Agencies - Third Party P,90000523,ELEANOR PALMER TRUST NO 2 A/C.,"2,448.78",17/05/2017,,
Delivery Units,Adults and Communities,Other Agencies - Third Party P,90000524,ELEANOR PALMER TRUST NO 2 A/C.,"2,448.78",17/05/2017,,
Delivery Units,Adults and Communities,Other Agencies - Third Party P,90000525,ELEANOR PALMER TRUST NO 2 A/C.,"2,249.45",17/05/2017,,
Delivery Units,Adults and Communities,Other Agencies - Third Party P,90000526,ELEANOR PALMER TRUST NO 2 A/C.,"2,249.45",17/05/2017,,
Delivery Units,Adults and Communities,Other Agencies - Third Party P,90000527,ELEANOR PALMER TRUST NO 2 A/C.,"2,448.78",17/05/2017,,
Delivery Units,Adults and Communities,Other Agencies - Third Party P,90000563,ELEANOR PALMER TRUST NO 2 A/C.,552.95,19/05/2017,,
Delivery Units,Adults and Communities,Other Agencies - Third Party P,90000564,ELEANOR PALMER TRUST NO 2 A/C.,552.95,19/05/2017,,
Delivery Units,Adults and Communities,Other Agencies - Third Party P,90000565,ELEANOR PALMER TRUST NO 2 A/C.,507.94,19/05/2017,,
Delivery Units,Adults and Communities,Other Agencies - Third Party P,90000566,ELEANOR PALMER TRUST NO 2 A/C.,507.94,19/05/2017,,
Delivery Units,Adults and Communities,Other Agencies - Third Party P,90000567,ELEANOR PALMER TRUST NO 2 A/C.,552.95,19/05/2017,,
Delivery Units,Adults and Communities,Other Agencies - Third Party P,90000568,ELEANOR PALMER TRUST NO 2 A/C.,552.95,19/05/2017,,
Delivery Units,Adults and Communities,Other Agencies - Third Party P,90000569,ELEANOR PALMER TRUST NO 2 A/C.,552.95,19/05/2017,,
Delivery Units,Adults and Communities,Other Agencies - Third Party P,90000570,ELEANOR PALMER TRUST NO 2 A/C.,552.95,19/05/2017,,
Delivery Units,Adults and Communities,Other Agencies - Third Party P,90000571,ELEANOR PALMER TRUST NO 2 A/C.,552.95,19/05/2017,,
Delivery Units,Adults and Communities,Other Agencies - Third Party P,90000572,ELEANOR PALMER TRUST NO 2 A/C.,507.94,19/05/2017,,
Delivery Units,Adults and Communities,Other Agencies - Third Party P,90000573,ELEANOR PALMER TRUST NO 2 A/C.,507.94,19/05/2017,,
Delivery Units,Adults and Communities,Other Agencies - Third Party P,90000574,ELEANOR PALMER TRUST NO 2 A/C.,552.95,19/05/2017,,
Delivery Units,Adults and Communities,Other Agencies - Third Party P,90000575,ELEANOR PALMER TRUST NO 2 A/C.,507.94,19/05/2017,,
Delivery Units,Adults and Communities,Other Agencies - Third Party P,90000576,ELEANOR PALMER TRUST NO 2 A/C.,"1,658.85",19/05/2017,,
Delivery Units,Adults and Communities,Other Agencies - Third Party P,90000577,ELEANOR PALMER TRUST NO 2 A/C.,"1,658.85",19/05/2017,,
Delivery Units,Adults and Communities,Other Agencies - Third Party P,90000578,ELEANOR PALMER TRUST NO 2 A/C.,"1,523.82",19/05/2017,,
Delivery Units,Adults and Communities,Other Agencies - Third Party P,90000579,ELEANOR PALMER TRUST NO 2 A/C.,"1,523.82",19/05/2017,,
Delivery Units,Adults and Communities,Other Agencies - Third Party P,90000580,ELEANOR PALMER TRUST NO 2 A/C.,"1,658.85",19/05/2017,,
Delivery Units,Adults and Communities,Other Agencies - Third Party P,90000581,ELEANOR PALMER TRUST NO 2 A/C.,"1,658.85",19/05/2017,,
Delivery Units,Adults and Communities,Other Agencies - Third Party P,90000582,ELEANOR PALMER TRUST NO 2 A/C.,"1,658.85",19/05/2017,,
Delivery Units,Adults and Communities,Other Agencies - Third Party P,90000583,ELEANOR PALMER TRUST NO 2 A/C.,"1,523.82",19/05/2017,,
Delivery Units,Adults and Communities,Other Agencies - Third Party P,90000584,ELEANOR PALMER TRUST NO 2 A/C.,"1,523.82",19/05/2017,,
Delivery Units,Adults and Communities,Other Agencies - Third Party P,90000585,ELEANOR PALMER TRUST NO 2 A/C.,"1,658.85",19/05/2017,,
Delivery Units,Adults and Communities,Other Agencies - Third Party P,90000586,ELEANOR PALMER TRUST NO 2 A/C.,"1,658.85",19/05/2017,,
Delivery Units,Adults and Communities,Other Agencies - Third Party P,90000587,ELEANOR PALMER TRUST NO 2 A/C.,"1,523.82",19/05/2017,,
Delivery Units,Adults and Communities,Other Agencies - Third Party P,90000588,ELEANOR PALMER TRUST NO 2 A/C.,"1,523.82",19/05/2017,,
Delivery Units,Adults and Communities,Other Agencies - Third Party P,90000589,ELEANOR PALMER TRUST NO 2 A/C.,"1,658.85",19/05/2017,,
Delivery Units,Adults and Communities,Other Agencies - Third Party P,80009465,ELIZABETH FITZROY SUPPORT,"5,024.17",31/05/2017,,
Delivery Units,Adults and Communities,Other Agencies - Third Party P,90000026,ELIZABETH HOUSE,"2,211.80",12/05/2017,,
Delivery Units,Adults and Communities,Other Agencies - Third Party P,90002263,ELIZABETH HOUSE,"2,448.78",31/05/2017,,
Delivery Units,Adults and Communities,Other Agencies - Third Party P,30163975,ELM PARK LODGE,221.43,11/05/2017,,
Delivery Units,Adults and Communities,Other Agencies - Third Party P,30164237,ELM PARK LODGE,212.86,12/05/2017,,
Delivery Units,Adults and Communities,Other Agencies - Third Party P,30164257,ELM PARK LODGE,227.14,12/05/2017,,
Delivery Units,Adults and Communities,Other Agencies - Third Party P,30164258,ELM PARK LODGE,218.57,12/05/2017,,
Delivery Units,Adults and Communities,Other Agencies - Third Party P,30164263,ELM PARK LODGE,222.00,12/05/2017,,
Delivery Units,Adults and Communities,Other Agencies - Third Party P,30164264,ELM PARK LODGE,135.70,12/05/2017,,
Delivery Units,Adults and Communities,Other Agencies - Third Party P,30164265,ELM PARK LODGE,135.70,12/05/2017,,
Delivery Units,Adults and Communities,Other Agencies - Third Party P,30164266,ELM PARK LODGE,250.00,12/05/2017,,
Delivery Units,Adults and Communities,Other Agencies - Third Party P,30164267,ELM PARK LODGE,221.43,12/05/2017,,
Delivery Units,Adults and Communities,Other Agencies - Third Party P,30164268,ELM PARK LODGE,128.05,12/05/2017,,
Delivery Units,Adults and Communities,Other Agencies - Third Party P,30164269,ELM PARK LODGE,227.14,12/05/2017,,
Delivery Units,Adults and Communities,Other Agencies - Third Party P,30164277,ELM PARK LODGE,207.14,12/05/2017,,
Delivery Units,Adults and Communities,Other Agencies - Third Party P,30164279,ELM PARK LODGE,221.43,12/05/2017,,
Delivery Units,Adults and Communities,Other Agencies - Third Party P,30164283,ELM PARK LODGE,278.57,12/05/2017,,
Delivery Units,Adults and Communities,Other Agencies - Third Party P,30164285,ELM PARK LODGE,204.57,12/05/2017,,
Delivery Units,Adults and Communities,Other Agencies - Third Party P,90000228,ELM PARK LODGE,"3,100.00",15/05/2017,,
Delivery Units,Adults and Communities,Other Agencies - Third Party P,90000229,ELM PARK LODGE,"3,100.00",15/05/2017,,
Delivery Units,Adults and Communities,Other Agencies - Third Party P,90000230,ELM PARK LODGE,"3,100.00",15/05/2017,,
Delivery Units,Adults and Communities,Other Agencies - Third Party P,90000231,ELM PARK LODGE,"1,952.64",15/05/2017,,
Delivery Units,Adults and Communities,Other Agencies - Third Party P,90000232,ELM PARK LODGE,"3,108.00",15/05/2017,,
Delivery Units,Adults and Communities,Other Agencies - Third Party P,90000233,ELM PARK LODGE,"1,899.76",15/05/2017,,
Delivery Units,Adults and Communities,Other Agencies - Third Party P,90000234,ELM PARK LODGE,474.94,15/05/2017,,
Delivery Units,Adults and Communities,Other Agencies - Third Party P,90000235,ELM PARK LODGE,"3,500.00",15/05/2017,,
Delivery Units,Adults and Communities,Other Agencies - Third Party P,90000236,ELM PARK LODGE,"3,060.00",15/05/2017,,
Delivery Units,Adults and Communities,Other Agencies - Third Party P,90000237,ELM PARK LODGE,"3,180.00",15/05/2017,,
Delivery Units,Adults and Communities,Other Agencies - Third Party P,90000238,ELM PARK LODGE,"2,980.00",15/05/2017,,
Delivery Units,Adults and Communities,Other Agencies - Third Party P,30163958,FERNBANK NURSING HOME.,154.68,08/05/2017,,
Delivery Units,Adults and Communities,Other Agencies - Third Party P,30163959,FERNBANK NURSING HOME.,154.68,08/05/2017,,
Delivery Units,Adults and Communities,Other Agencies - Third Party P,30165121,FERNBANK NURSING HOME.,"1,882.90",30/05/2017,,
Delivery Units,Adults and Communities,Other Agencies - Third Party P,30165122,FERNBANK NURSING HOME.,198.20,30/05/2017,,
Delivery Units,Adults and Communities,Other Agencies - Third Party P,90000549,FERNBANK NURSING HOME.,"2,165.52",19/05/2017,,
Delivery Units,Adults and Communities,Other Agencies - Third Party P,30164232,FINBOND LIMITED,171.43,16/05/2017,,
Delivery Units,Adults and Communities,Other Agencies - Third Party P,30164233,FINBOND LIMITED,214.29,16/05/2017,,
Delivery Units,Adults and Communities,Other Agencies - Third Party P,30164234,FINBOND LIMITED,142.99,16/05/2017,,
Delivery Units,Adults and Communities,Other Agencies - Third Party P,30164235,FINBOND LIMITED,156.00,16/05/2017,,
Delivery Units,Adults and Communities,Other Agencies - Third Party P,30164236,FINBOND LIMITED,156.86,16/05/2017,,
Delivery Units,Adults and Communities,Other Agencies - Third Party P,90000223,FINBOND LIMITED,"2,196.00",16/05/2017,,
Delivery Units,Adults and Communities,Other Agencies - Third Party P,90000224,FINBOND LIMITED,"2,184.04",16/05/2017,,
Delivery Units,Adults and Communities,Other Agencies - Third Party P,90000225,FINBOND LIMITED,"2,001.92",16/05/2017,,
Delivery Units,Adults and Communities,Other Agencies - Third Party P,90000226,FINBOND LIMITED,"3,000.00",16/05/2017,,
Delivery Units,Adults and Communities,Other Agencies - Third Party P,90000227,FINBOND LIMITED,"2,400.00",16/05/2017,,
Delivery Units,Adults and Communities,Other Agencies - Third Party P,90000268,FINBOND LIMITED,"2,657.14",15/05/2017,,
Delivery Units,Adults and Communities,Other Agencies - Third Party P,90000269,FINBOND LIMITED,"2,216.41",15/05/2017,,
Delivery Units,Adults and Communities,Other Agencies - Third Party P,90000270,FINBOND LIMITED,"2,418.04",15/05/2017,,
Delivery Units,Adults and Communities,Other Agencies - Third Party P,90000271,FINBOND LIMITED,"2,431.29",15/05/2017,,
Delivery Units,Adults and Communities,Other Agencies - Third Party P,30164439,FLAGSWAN TWO LTD,198.56,16/05/2017,,
Delivery Units,Adults and Communities,Other Agencies - Third Party P,30164440,FLAGSWAN TWO LTD,164.29,16/05/2017,,
Delivery Units,Adults and Communities,Other Agencies - Third Party P,90000438,FLAGSWAN TWO LTD,"2,300.00",15/05/2017,,
Delivery Units,Adults and Communities,Other Agencies - Third Party P,90000439,FLAGSWAN TWO LTD,"2,779.80",15/05/2017,,
Delivery Units,Adults and Communities,Other Agencies - Third Party P,90000991,FLEXSERVE RESOURCE LTD,"2,978.30",26/05/2017,,
Delivery Units,Adults and Communities,Other Agencies - Third Party P,90000992,FLEXSERVE RESOURCE LTD,"3,042.10",26/05/2017,,
Delivery Units,Adults and Communities,Other Agencies - Third Party P,90000993,FLEXSERVE RESOURCE LTD,131.45,26/05/2017,,
Delivery Units,Adults and Communities,Other Agencies - Third Party P,30163948,FREMANTLE TRUST,"5,604.60",08/05/2017,,
Delivery Units,Adults and Communities,Other Agencies - Third Party P,30163972,FREMANTLE TRUST,600.00,08/05/2017,,
Delivery Units,Adults and Communities,Other Agencies - Third Party P,30163605,FRIARY LODGE,145.12,03/05/2017,,
Delivery Units,Adults and Communities,Other Agencies - Third Party P,30163606,FRIARY LODGE,200.84,03/05/2017,,
Delivery Units,Adults and Communities,Other Agencies - Third Party P,30163607,FRIARY LODGE,200.84,03/05/2017,,
Delivery Units,Adults and Communities,Other Agencies - Third Party P,30163610,FRIARY LODGE,157.98,03/05/2017,,
Delivery Units,Adults and Communities,Other Agencies - Third Party P,90000125,FRIARY LODGE,"2,211.80",15/05/2017,,
Delivery Units,Adults and Communities,Other Agencies - Third Party P,90000126,FRIARY LODGE,"2,811.80",15/05/2017,,
Delivery Units,Adults and Communities,Other Agencies - Third Party P,90000127,FRIARY LODGE,"2,031.76",15/05/2017,,
Delivery Units,Adults and Communities,Other Agencies - Third Party P,30163713,FRIEND IN NEED COMMUNITY CENTRE,320.00,04/05/2017,,
Delivery Units,Adults and Communities,Other Agencies - Third Party P,30163714,FRIEND IN NEED COMMUNITY CENTRE,320.00,04/05/2017,,
Delivery Units,Adults and Communities,Other Agencies - Third Party P,90001744,FRIEND IN NEED COMMUNITY CENTRE,240.00,30/05/2017,,
Delivery Units,Adults and Communities,Other Agencies - Third Party P,90000082,FRIERN RESIDENTIAL CARE HOME,"2,600.00",15/05/2017,,
Delivery Units,Adults and Communities,Other Agencies - Third Party P,90000083,FRIERN RESIDENTIAL CARE HOME,"3,600.00",15/05/2017,,
Delivery Units,Adults and Communities,Other Agencies - Third Party P,90000084,FRIERN RESIDENTIAL CARE HOME,"1,899.76",15/05/2017,,
Delivery Units,Adults and Communities,Other Agencies - Third Party P,90000301,FRIERN RESIDENTIAL CARE HOME,"2,103.31",15/05/2017,,
Delivery Units,Adults and Communities,Other Agencies - Third Party P,90000302,FRIERN RESIDENTIAL CARE HOME,"3,985.71",15/05/2017,,
Delivery Units,Adults and Communities,Other Agencies - Third Party P,90000303,FRIERN RESIDENTIAL CARE HOME,"2,878.57",15/05/2017,,
Delivery Units,Adults and Communities,Other Agencies - Third Party P,30163621,GENTLE CARE,222.32,02/05/2017,,
Delivery Units,Adults and Communities,Other Agencies - Third Party P,30163730,GENTLE HANDS CARE AGENCY,"2,331.40",04/05/2017,,
Delivery Units,Adults and Communities,Other Agencies - Third Party P,30163737,GENTLE HANDS CARE AGENCY,324.00,04/05/2017,,
Delivery Units,Adults and Communities,Other Agencies - Third Party P,30163738,GENTLE HANDS CARE AGENCY,216.00,04/05/2017,,
Delivery Units,Adults and Communities,Other Agencies - Third Party P,30164584,GENTLE HANDS CARE AGENCY,324.00,18/05/2017,,
Delivery Units,Adults and Communities,Other Agencies - Third Party P,30164793,GENTLE HANDS CARE AGENCY,216.00,22/05/2017,,
Delivery Units,Adults and Communities,Other Agencies - Third Party P,30163728,GENTLE HANDS CARE HOMES LIMITED,"2,197.00",04/05/2017,,
Delivery Units,Adults and Communities,Other Agencies - Third Party P,30163739,GENTLE HANDS CARE HOMES LIMITED,"2,700.00",04/05/2017,,
Delivery Units,Adults and Communities,Other Agencies - Third Party P,30163741,GENTLE HANDS CARE HOMES LIMITED,"3,419.00",04/05/2017,,
Delivery Units,Adults and Communities,Other Agencies - Third Party P,30163742,GENTLE HANDS CARE HOMES LIMITED,854.75,04/05/2017,,
Delivery Units,Adults and Communities,Other Agencies - Third Party P,30163746,GENTLE HANDS CARE HOMES LIMITED,540.00,04/05/2017,,
Delivery Units,Adults and Communities,Other Agencies - Third Party P,90001740,GENTLE HANDS CARE HOMES LIMITED,"2,197.00",30/05/2017,,
Delivery Units,Adults and Communities,Other Agencies - Third Party P,90001741,GENTLE HANDS CARE HOMES LIMITED,"4,394.00",30/05/2017,,
Delivery Units,Adults and Communities,Other Agencies - Third Party P,90000078,GLENHOLME PSYCHIATRIC AFTER CARE HO,"3,600.40",15/05/2017,,
Delivery Units,Adults and Communities,Other Agencies - Third Party P,90000079,GLENHOLME PSYCHIATRIC AFTER CARE HO,"3,850.40",15/05/2017,,
Delivery Units,Adults and Communities,Other Agencies - Third Party P,90000080,GLENHOLME PSYCHIATRIC AFTER CARE HO,"3,980.00",15/05/2017,,
Delivery Units,Adults and Communities,Other Agencies - Third Party P,90000081,GLENHOLME PSYCHIATRIC AFTER CARE HO,"3,700.56",15/05/2017,,
Delivery Units,Adults and Communities,Other Agencies - Third Party P,30163942,GOLDSMITH PERSONNEL LTD,196.00,08/05/2017,,
Delivery Units,Adults and Communities,Other Agencies - Third Party P,30163943,GOLDSMITH PERSONNEL LTD,296.00,08/05/2017,,
Delivery Units,Adults and Communities,Other Agencies - Third Party P,90002118,GOLDSMITH PERSONNEL LTD,196.00,31/05/2017,,
Delivery Units,Adults and Communities,Other Agencies - Third Party P,90002225,GOLDSMITH PERSONNEL LTD,284.00,31/05/2017,,
Delivery Units,Adults and Communities,Other Agencies - Third Party P,90002226,GOLDSMITH PERSONNEL LTD,322.00,31/05/2017,,
Delivery Units,Adults and Communities,Other Agencies - Third Party P,90002227,GOLDSMITH PERSONNEL LTD,292.00,31/05/2017,,
Delivery Units,Adults and Communities,Other Agencies - Third Party P,90002228,GOLDSMITH PERSONNEL LTD,304.00,31/05/2017,,
Delivery Units,Adults and Communities,Other Agencies - Third Party P,90002447,GOLDSMITH PERSONNEL LTD,210.00,31/05/2017,,
Delivery Units,Adults and Communities,Other Agencies - Third Party P,90002448,GOLDSMITH PERSONNEL LTD,196.00,31/05/2017,,
Delivery Units,Adults and Communities,Other Agencies - Third Party P,90002449,GOLDSMITH PERSONNEL LTD,210.00,31/05/2017,,
Delivery Units,Adults and Communities,Other Agencies - Third Party P,90000113,HALLMARK CARE (KINGS LYNN) LTD,"2,610.60",15/05/2017,,
Delivery Units,Adults and Communities,Other Agencies - Third Party P,90000304,HALLMARK CARE (KINGS LYNN) LTD,"2,890.31",16/05/2017,,
Delivery Units,Adults and Communities,Other Agencies - Third Party P,30164098,HARTWIG CARE LIMITED,146.16,11/05/2017,,
Delivery Units,Adults and Communities,Other Agencies - Third Party P,30164100,HARTWIG CARE LIMITED,97.44,11/05/2017,,
Delivery Units,Adults and Communities,Other Agencies - Third Party P,30162851,HEADWAY EAST LONDON,282.06,04/05/2017,,
Delivery Units,Adults and Communities,Other Agencies - Third Party P,30162852,HEADWAY EAST LONDON,476.13,04/05/2017,,
Delivery Units,Adults and Communities,Other Agencies - Third Party P,30164686,HEADWAY EAST LONDON,376.08,22/05/2017,,
Delivery Units,Adults and Communities,Other Agencies - Third Party P,30163229,HEATHCOTES SOUTHERN LTD,684.28,18/05/2017,,
Delivery Units,Adults and Communities,Other Agencies - Third Party P,90000021,HEATHCOTES SOUTHERN LTD,"9,579.92",18/05/2017,,
Delivery Units,Adults and Communities,Other Agencies - Third Party P,30163708,HFH HEALTHCARE LTD,"8,445.32",04/05/2017,,
Delivery Units,Adults and Communities,Other Agencies - Third Party P,30164230,HILLGREEN CARE LTD,457.62,12/05/2017,,
Delivery Units,Adults and Communities,Other Agencies - Third Party P,90000559,HILLGREEN CARE LTD,"6,406.79",19/05/2017,,
Delivery Units,Adults and Communities,Other Agencies - Third Party P,90000155,HILTON LODGE LTD.,"1,026.90",15/05/2017,,
Delivery Units,Adults and Communities,Other Agencies - Third Party P,90000156,HILTON LODGE LTD.,"1,026.91",15/05/2017,,
Delivery Units,Adults and Communities,Other Agencies - Third Party P,90000157,HILTON LODGE LTD.,"1,151.43",15/05/2017,,
Delivery Units,Adults and Communities,Other Agencies - Third Party P,90000158,HILTON LODGE LTD.,"1,300.00",15/05/2017,,
Delivery Units,Adults and Communities,Other Agencies - Third Party P,90000366,HILTON LODGE LTD.,"1,026.90",15/05/2017,,
Delivery Units,Adults and Communities,Other Agencies - Third Party P,90000554,HILTON LODGE LTD.,"2,211.80",19/05/2017,,
Delivery Units,Adults and Communities,Other Agencies - Third Party P,90000555,HILTON LODGE LTD.,"2,211.80",19/05/2017,,
Delivery Units,Adults and Communities,Other Agencies - Third Party P,90000556,HILTON LODGE LTD.,"2,480.00",19/05/2017,,
Delivery Units,Adults and Communities,Other Agencies - Third Party P,90000557,HILTON LODGE LTD.,"2,480.00",19/05/2017,,
Delivery Units,Adults and Communities,Other Agencies - Third Party P,90000558,HILTON LODGE LTD.,"2,800.00",19/05/2017,,
Delivery Units,Adults and Communities,Other Agencies - Third Party P,90001768,HILTON LODGE LTD.,"1,151.42",30/05/2017,,
Delivery Units,Adults and Communities,Other Agencies - Third Party P,90000040,HOLLY HOUSE RESIDENTIAL HOME,"2,600.00",12/05/2017,,
Delivery Units,Adults and Communities,Other Agencies - Third Party P,90000378,HOLLY HOUSE RESIDENTIAL HOME,"2,600.00",15/05/2017,,
Delivery Units,Adults and Communities,Other Agencies - Third Party P,30163973,HONISTER RESIDENTIAL CARE LTD,156.00,08/05/2017,,
Delivery Units,Adults and Communities,Other Agencies - Third Party P,90000051,HONISTER RESIDENTIAL CARE LTD,936.02,12/05/2017,,
Delivery Units,Adults and Communities,Other Agencies - Third Party P,30165076,HOUSING 21 (BARNET),886.41,30/05/2017,,
Delivery Units,Adults and Communities,Other Agencies - Third Party P,30164284,HUSKARDS NEW CARE LTD,145.12,12/05/2017,,
Delivery Units,Adults and Communities,Other Agencies - Third Party P,90000368,HUSKARDS NEW CARE LTD,"2,031.68",15/05/2017,,
Delivery Units,Adults and Communities,Other Agencies - Third Party P,90000369,HUSKARDS NEW CARE LTD,"2,249.36",15/05/2017,,
Delivery Units,Adults and Communities,Other Agencies - Third Party P,90001742,INDEPENDENCE HOMES LIMITED,"2,900.00",30/05/2017,,
Delivery Units,Adults and Communities,Other Agencies - Third Party P,30165069,INDIVIDUALISED CARE LIMITED,66.50,30/05/2017,,
Delivery Units,Adults and Communities,Other Agencies - Third Party P,30165070,INDIVIDUALISED CARE LIMITED,450.00,30/05/2017,,
Delivery Units,Adults and Communities,Other Agencies - Third Party P,30165071,INDIVIDUALISED CARE LIMITED,200.00,30/05/2017,,
Delivery Units,Adults and Communities,Other Agencies - Third Party P,30165072,INDIVIDUALISED CARE LIMITED,250.00,30/05/2017,,
Delivery Units,Adults and Communities,Other Agencies - Third Party P,30165073,INDIVIDUALISED CARE LIMITED,64.00,30/05/2017,,
Delivery Units,Adults and Communities,Other Agencies - Third Party P,30165074,INDIVIDUALISED CARE LIMITED,56.00,30/05/2017,,
Delivery Units,Adults and Communities,Other Agencies - Third Party P,30165075,INDIVIDUALISED CARE LIMITED,200.00,30/05/2017,,
Delivery Units,Adults and Communities,Other Agencies - Third Party P,90000994,INDIVIDUALISED CARE LIMITED,280.00,26/05/2017,,
Delivery Units,Adults and Communities,Other Agencies - Third Party P,90000995,INDIVIDUALISED CARE LIMITED,"1,800.00",26/05/2017,,
Delivery Units,Adults and Communities,Other Agencies - Third Party P,90000996,INDIVIDUALISED CARE LIMITED,800.00,26/05/2017,,
Delivery Units,Adults and Communities,Other Agencies - Third Party P,90000997,INDIVIDUALISED CARE LIMITED,224.00,26/05/2017,,
Delivery Units,Adults and Communities,Other Agencies - Third Party P,90000998,INDIVIDUALISED CARE LIMITED,800.00,26/05/2017,,
Delivery Units,Adults and Communities,Other Agencies - Third Party P,30163699,JACARANDA HEALTHCARE,284.20,04/05/2017,,
Delivery Units,Adults and Communities,Other Agencies - Third Party P,30163944,JEMINI RESPONSE,650.00,10/05/2017,,
Delivery Units,Adults and Communities,Other Agencies - Third Party P,30163612,JEWISH CARE,-912.37,08/05/2017,,
Delivery Units,Adults and Communities,Other Agencies - Third Party P,30163613,JEWISH CARE,-152.38,08/05/2017,,
Delivery Units,Adults and Communities,Other Agencies - Third Party P,30163615,JEWISH CARE,"2,111.54",08/05/2017,,
Delivery Units,Adults and Communities,Other Agencies - Third Party P,30163616,JEWISH CARE,"-1,705.47",08/05/2017,,
Delivery Units,Adults and Communities,Other Agencies - Third Party P,30163617,JEWISH CARE,"1,410.03",08/05/2017,,
Delivery Units,Adults and Communities,Other Agencies - Third Party P,30163618,JEWISH CARE,-580.60,08/05/2017,,
Delivery Units,Adults and Communities,Other Agencies - Third Party P,30163619,JEWISH CARE,-125.92,08/05/2017,,
Delivery Units,Adults and Communities,Other Agencies - Third Party P,30163620,JEWISH CARE,"-1,584.21",08/05/2017,,
Delivery Units,Adults and Communities,Other Agencies - Third Party P,30163960,JEWISH CARE,414.71,08/05/2017,,
Delivery Units,Adults and Communities,Other Agencies - Third Party P,30163961,JEWISH CARE,"2,438.12",08/05/2017,,
Delivery Units,Adults and Communities,Other Agencies - Third Party P,30163962,JEWISH CARE,"2,133.36",08/05/2017,,
Delivery Units,Adults and Communities,Other Agencies - Third Party P,30163963,JEWISH CARE,"8,527.35",08/05/2017,,
Delivery Units,Adults and Communities,Other Agencies - Third Party P,30163964,JEWISH CARE,649.70,08/05/2017,,
Delivery Units,Adults and Communities,Other Agencies - Third Party P,30163965,JEWISH CARE,-685.72,08/05/2017,,
Delivery Units,Adults and Communities,Other Agencies - Third Party P,30163966,JEWISH CARE,"3,764.29",08/05/2017,,
Delivery Units,Adults and Communities,Other Agencies - Third Party P,30163967,JEWISH CARE,"23,155.17",08/05/2017,,
Delivery Units,Adults and Communities,Other Agencies - Third Party P,90000628,JEWISH CARE,"1,624.26",22/05/2017,,
Delivery Units,Adults and Communities,Other Agencies - Third Party P,90000629,JEWISH CARE,"1,624.26",22/05/2017,,
Delivery Units,Adults and Communities,Other Agencies - Third Party P,90000630,JEWISH CARE,"1,523.83",22/05/2017,,
Delivery Units,Adults and Communities,Other Agencies - Third Party P,90000679,JEWISH CARE,"2,273.96",26/05/2017,,
Delivery Units,Adults and Communities,Other Agencies - Third Party P,90000680,JEWISH CARE,"2,273.96",26/05/2017,,
Delivery Units,Adults and Communities,Other Agencies - Third Party P,90000681,JEWISH CARE,"2,133.36",26/05/2017,,
Delivery Units,Adults and Communities,Other Agencies - Third Party P,90000682,JEWISH CARE,"2,273.96",26/05/2017,,
Delivery Units,Adults and Communities,Other Agencies - Third Party P,90000683,JEWISH CARE,"3,360.00",26/05/2017,,
Delivery Units,Adults and Communities,Other Agencies - Third Party P,90000684,JEWISH CARE,"3,780.00",26/05/2017,,
Delivery Units,Adults and Communities,Other Agencies - Third Party P,90000685,JEWISH CARE,"2,102.00",26/05/2017,,
Delivery Units,Adults and Communities,Other Agencies - Third Party P,90000686,JEWISH CARE,"3,400.00",26/05/2017,,
Delivery Units,Adults and Communities,Other Agencies - Third Party P,90000687,JEWISH CARE,"3,837.48",26/05/2017,,
Delivery Units,Adults and Communities,Other Agencies - Third Party P,90000688,JEWISH CARE,"3,200.00",26/05/2017,,
Delivery Units,Adults and Communities,Other Agencies - Third Party P,90000689,JEWISH CARE,"3,200.01",26/05/2017,,
Delivery Units,Adults and Communities,Other Agencies - Third Party P,90000690,JEWISH CARE,"2,338.20",26/05/2017,,
Delivery Units,Adults and Communities,Other Agencies - Third Party P,90000691,JEWISH CARE,"2,367.57",26/05/2017,,
Delivery Units,Adults and Communities,Other Agencies - Third Party P,90000692,JEWISH CARE,"2,297.04",26/05/2017,,
Delivery Units,Adults and Communities,Other Agencies - Third Party P,90000693,JEWISH CARE,"2,298.35",26/05/2017,,
Delivery Units,Adults and Communities,Other Agencies - Third Party P,90000694,JEWISH CARE,"3,200.00",26/05/2017,,
Delivery Units,Adults and Communities,Other Agencies - Third Party P,90000695,JEWISH CARE,"4,692.02",26/05/2017,,
Delivery Units,Adults and Communities,Other Agencies - Third Party P,90000696,JEWISH CARE,"4,147.75",26/05/2017,,
Delivery Units,Adults and Communities,Other Agencies - Third Party P,90000697,JEWISH CARE,"4,284.00",26/05/2017,,
Delivery Units,Adults and Communities,Other Agencies - Third Party P,90000698,JEWISH CARE,"4,226.66",26/05/2017,,
Delivery Units,Adults and Communities,Other Agencies - Third Party P,90000699,JEWISH CARE,"2,060.70",26/05/2017,,
Delivery Units,Adults and Communities,Other Agencies - Third Party P,90000700,JEWISH CARE,"2,322.40",26/05/2017,,
Delivery Units,Adults and Communities,Other Agencies - Third Party P,90000701,JEWISH CARE,"2,133.36",26/05/2017,,
Delivery Units,Adults and Communities,Other Agencies - Third Party P,90000702,JEWISH CARE,"2,322.40",26/05/2017,,
Delivery Units,Adults and Communities,Other Agencies - Third Party P,90000703,JEWISH CARE,"2,322.40",26/05/2017,,
Delivery Units,Adults and Communities,Other Agencies - Third Party P,90000704,JEWISH CARE,"2,322.40",26/05/2017,,
Delivery Units,Adults and Communities,Other Agencies - Third Party P,90000705,JEWISH CARE,"2,322.40",26/05/2017,,
Delivery Units,Adults and Communities,Other Agencies - Third Party P,90000706,JEWISH CARE,"2,322.40",26/05/2017,,
Delivery Units,Adults and Communities,Other Agencies - Third Party P,90000707,JEWISH CARE,"2,322.40",26/05/2017,,
Delivery Units,Adults and Communities,Other Agencies - Third Party P,90000708,JEWISH CARE,"2,322.40",26/05/2017,,
Delivery Units,Adults and Communities,Other Agencies - Third Party P,90000709,JEWISH CARE,"2,322.40",26/05/2017,,
Delivery Units,Adults and Communities,Other Agencies - Third Party P,90000710,JEWISH CARE,"3,800.00",26/05/2017,,
Delivery Units,Adults and Communities,Other Agencies - Third Party P,90000711,JEWISH CARE,"3,200.00",26/05/2017,,
Delivery Units,Adults and Communities,Other Agencies - Third Party P,90000712,JEWISH CARE,"3,960.00",26/05/2017,,
Delivery Units,Adults and Communities,Other Agencies - Third Party P,90000713,JEWISH CARE,"2,322.40",26/05/2017,,
Delivery Units,Adults and Communities,Other Agencies - Third Party P,90000714,JEWISH CARE,"2,133.36",26/05/2017,,
Delivery Units,Adults and Communities,Other Agencies - Third Party P,90000715,JEWISH CARE,"2,322.40",26/05/2017,,
Delivery Units,Adults and Communities,Other Agencies - Third Party P,90000716,JEWISH CARE,"2,322.40",26/05/2017,,
Delivery Units,Adults and Communities,Other Agencies - Third Party P,90000717,JEWISH CARE,"2,322.40",26/05/2017,,
Delivery Units,Adults and Communities,Other Agencies - Third Party P,90000718,JEWISH CARE,"2,322.40",26/05/2017,,
Delivery Units,Adults and Communities,Other Agencies - Third Party P,90000719,JEWISH CARE,"2,322.40",26/05/2017,,
Delivery Units,Adults and Communities,Other Agencies - Third Party P,90000720,JEWISH CARE,"2,322.40",26/05/2017,,
Delivery Units,Adults and Communities,Other Agencies - Third Party P,90000721,JEWISH CARE,"2,322.40",26/05/2017,,
Delivery Units,Adults and Communities,Other Agencies - Third Party P,90000722,JEWISH CARE,"2,322.40",26/05/2017,,
Delivery Units,Adults and Communities,Other Agencies - Third Party P,90000723,JEWISH CARE,"2,322.40",26/05/2017,,
Delivery Units,Adults and Communities,Other Agencies - Third Party P,90000724,JEWISH CARE,"2,322.40",26/05/2017,,
Delivery Units,Adults and Communities,Other Agencies - Third Party P,90000725,JEWISH CARE,"2,322.40",26/05/2017,,
Delivery Units,Adults and Communities,Other Agencies - Third Party P,90000726,JEWISH CARE,"2,322.40",26/05/2017,,
Delivery Units,Adults and Communities,Other Agencies - Third Party P,90000727,JEWISH CARE,"2,322.40",26/05/2017,,
Delivery Units,Adults and Communities,Other Agencies - Third Party P,90000728,JEWISH CARE,"2,322.40",26/05/2017,,
Delivery Units,Adults and Communities,Other Agencies - Third Party P,90000729,JEWISH CARE,"2,133.36",26/05/2017,,
Delivery Units,Adults and Communities,Other Agencies - Third Party P,90000730,JEWISH CARE,"2,133.84",26/05/2017,,
Delivery Units,Adults and Communities,Other Agencies - Third Party P,90000731,JEWISH CARE,"2,322.40",26/05/2017,,
Delivery Units,Adults and Communities,Other Agencies - Third Party P,90000732,JEWISH CARE,"2,322.40",26/05/2017,,
Delivery Units,Adults and Communities,Other Agencies - Third Party P,90000733,JEWISH CARE,"2,133.36",26/05/2017,,
Delivery Units,Adults and Communities,Other Agencies - Third Party P,90000734,JEWISH CARE,"2,322.40",26/05/2017,,
Delivery Units,Adults and Communities,Other Agencies - Third Party P,90000735,JEWISH CARE,"2,322.40",26/05/2017,,
Delivery Units,Adults and Communities,Other Agencies - Third Party P,90000736,JEWISH CARE,"2,322.40",26/05/2017,,
Delivery Units,Adults and Communities,Other Agencies - Third Party P,90000737,JEWISH CARE,"2,322.40",26/05/2017,,
Delivery Units,Adults and Communities,Other Agencies - Third Party P,90000738,JEWISH CARE,"2,322.40",26/05/2017,,
Delivery Units,Adults and Communities,Other Agencies - Third Party P,90000739,JEWISH CARE,"2,322.40",26/05/2017,,
Delivery Units,Adults and Communities,Other Agencies - Third Party P,90000740,JEWISH CARE,"2,322.40",26/05/2017,,
Delivery Units,Adults and Communities,Other Agencies - Third Party P,90000741,JEWISH CARE,"2,133.36",26/05/2017,,
Delivery Units,Adults and Communities,Other Agencies - Third Party P,90000742,JEWISH CARE,"2,322.40",26/05/2017,,
Delivery Units,Adults and Communities,Other Agencies - Third Party P,90000743,JEWISH CARE,"2,133.36",26/05/2017,,
Delivery Units,Adults and Communities,Other Agencies - Third Party P,90000744,JEWISH CARE,"2,322.40",26/05/2017,,
Delivery Units,Adults and Communities,Other Agencies - Third Party P,90000745,JEWISH CARE,"2,322.40",26/05/2017,,
Delivery Units,Adults and Communities,Other Agencies - Third Party P,90000746,JEWISH CARE,"2,322.40",26/05/2017,,
Delivery Units,Adults and Communities,Other Agencies - Third Party P,90000747,JEWISH CARE,"2,322.40",26/05/2017,,
Delivery Units,Adults and Communities,Other Agencies - Third Party P,90000748,JEWISH CARE,"2,133.36",26/05/2017,,
Delivery Units,Adults and Communities,Other Agencies - Third Party P,90000749,JEWISH CARE,"2,133.36",26/05/2017,,
Delivery Units,Adults and Communities,Other Agencies - Third Party P,90000750,JEWISH CARE,"2,133.36",26/05/2017,,
Delivery Units,Adults and Communities,Other Agencies - Third Party P,90000751,JEWISH CARE,"2,322.40",26/05/2017,,
Delivery Units,Adults and Communities,Other Agencies - Third Party P,90000752,JEWISH CARE,"2,133.36",26/05/2017,,
Delivery Units,Adults and Communities,Other Agencies - Third Party P,90000753,JEWISH CARE,"2,133.36",26/05/2017,,
Delivery Units,Adults and Communities,Other Agencies - Third Party P,90000754,JEWISH CARE,"2,133.36",26/05/2017,,
Delivery Units,Adults and Communities,Other Agencies - Third Party P,90000755,JEWISH CARE,"2,400.00",26/05/2017,,
Delivery Units,Adults and Communities,Other Agencies - Third Party P,90000756,JEWISH CARE,"1,624.26",26/05/2017,,
Delivery Units,Adults and Communities,Other Agencies - Third Party P,90000757,JEWISH CARE,"2,285.71",26/05/2017,,
Delivery Units,Adults and Communities,Other Agencies - Third Party P,90000758,JEWISH CARE,"1,471.93",26/05/2017,,
Delivery Units,Adults and Communities,Other Agencies - Third Party P,90000759,JEWISH CARE,"1,641.68",26/05/2017,,
Delivery Units,Adults and Communities,Other Agencies - Third Party P,90000760,JEWISH CARE,"1,670.14",26/05/2017,,
Delivery Units,Adults and Communities,Other Agencies - Third Party P,90000761,JEWISH CARE,"1,691.12",26/05/2017,,
Delivery Units,Adults and Communities,Other Agencies - Third Party P,90000762,JEWISH CARE,"1,640.74",26/05/2017,,
Delivery Units,Adults and Communities,Other Agencies - Third Party P,90000763,JEWISH CARE,"2,285.71",26/05/2017,,
Delivery Units,Adults and Communities,Other Agencies - Third Party P,90000764,JEWISH CARE,"2,285.72",26/05/2017,,
Delivery Units,Adults and Communities,Other Agencies - Third Party P,90000765,JEWISH CARE,"2,741.06",26/05/2017,,
Delivery Units,Adults and Communities,Other Agencies - Third Party P,90000766,JEWISH CARE,"1,501.43",26/05/2017,,
Delivery Units,Adults and Communities,Other Agencies - Third Party P,90000767,JEWISH CARE,"2,700.00",26/05/2017,,
Delivery Units,Adults and Communities,Other Agencies - Third Party P,90000768,JEWISH CARE,"2,428.57",26/05/2017,,
Delivery Units,Adults and Communities,Other Agencies - Third Party P,90000769,JEWISH CARE,"1,523.83",26/05/2017,,
Delivery Units,Adults and Communities,Other Agencies - Third Party P,90000770,JEWISH CARE,"1,658.86",26/05/2017,,
Delivery Units,Adults and Communities,Other Agencies - Third Party P,90000771,JEWISH CARE,"1,658.86",26/05/2017,,
Delivery Units,Adults and Communities,Other Agencies - Third Party P,90000772,JEWISH CARE,"1,658.86",26/05/2017,,
Delivery Units,Adults and Communities,Other Agencies - Third Party P,90000773,JEWISH CARE,"1,658.86",26/05/2017,,
Delivery Units,Adults and Communities,Other Agencies - Third Party P,90000774,JEWISH CARE,"1,658.86",26/05/2017,,
Delivery Units,Adults and Communities,Other Agencies - Third Party P,90000775,JEWISH CARE,"1,523.83",26/05/2017,,
Delivery Units,Adults and Communities,Other Agencies - Third Party P,90000776,JEWISH CARE,"1,524.17",26/05/2017,,
Delivery Units,Adults and Communities,Other Agencies - Third Party P,90000777,JEWISH CARE,"1,523.83",26/05/2017,,
Delivery Units,Adults and Communities,Other Agencies - Third Party P,90000778,JEWISH CARE,"1,658.86",26/05/2017,,
Delivery Units,Adults and Communities,Other Agencies - Third Party P,90000779,JEWISH CARE,"1,658.86",26/05/2017,,
Delivery Units,Adults and Communities,Other Agencies - Third Party P,90000780,JEWISH CARE,"1,523.83",26/05/2017,,
Delivery Units,Adults and Communities,Other Agencies - Third Party P,90000781,JEWISH CARE,"1,658.86",26/05/2017,,
Delivery Units,Adults and Communities,Other Agencies - Third Party P,90000782,JEWISH CARE,"1,523.83",26/05/2017,,
Delivery Units,Adults and Communities,Other Agencies - Third Party P,90000783,JEWISH CARE,"1,523.83",26/05/2017,,
Delivery Units,Adults and Communities,Other Agencies - Third Party P,90000784,JEWISH CARE,"1,658.86",26/05/2017,,
Delivery Units,Adults and Communities,Other Agencies - Third Party P,90000785,JEWISH CARE,"1,658.86",26/05/2017,,
Delivery Units,Adults and Communities,Other Agencies - Third Party P,90000786,JEWISH CARE,"1,523.83",26/05/2017,,
Delivery Units,Adults and Communities,Other Agencies - Third Party P,90000787,JEWISH CARE,"1,523.83",26/05/2017,,
Delivery Units,Adults and Communities,Other Agencies - Third Party P,90000788,JEWISH CARE,"1,658.86",26/05/2017,,
Delivery Units,Adults and Communities,Other Agencies - Third Party P,90000789,JEWISH CARE,"1,523.83",26/05/2017,,
Delivery Units,Adults and Communities,Other Agencies - Third Party P,90000790,JEWISH CARE,"1,658.86",26/05/2017,,
Delivery Units,Adults and Communities,Other Agencies - Third Party P,90000791,JEWISH CARE,"1,658.86",26/05/2017,,
Delivery Units,Adults and Communities,Other Agencies - Third Party P,90000792,JEWISH CARE,"1,658.86",26/05/2017,,
Delivery Units,Adults and Communities,Other Agencies - Third Party P,90000793,JEWISH CARE,"2,322.40",26/05/2017,,
Delivery Units,Adults and Communities,Other Agencies - Third Party P,90000794,JEWISH CARE,"2,133.36",26/05/2017,,
Delivery Units,Adults and Communities,Other Agencies - Third Party P,90000795,JEWISH CARE,"2,322.40",26/05/2017,,
Delivery Units,Adults and Communities,Other Agencies - Third Party P,90000796,JEWISH CARE,"2,322.40",26/05/2017,,
Delivery Units,Adults and Communities,Other Agencies - Third Party P,90000797,JEWISH CARE,"2,133.36",26/05/2017,,
Delivery Units,Adults and Communities,Other Agencies - Third Party P,90000798,JEWISH CARE,"2,322.40",26/05/2017,,
Delivery Units,Adults and Communities,Other Agencies - Third Party P,90000799,JEWISH CARE,"2,322.40",26/05/2017,,
Delivery Units,Adults and Communities,Other Agencies - Third Party P,90000800,JEWISH CARE,"2,322.40",26/05/2017,,
Delivery Units,Adults and Communities,Other Agencies - Third Party P,90000801,JEWISH CARE,"2,322.40",26/05/2017,,
Delivery Units,Adults and Communities,Other Agencies - Third Party P,90000802,JEWISH CARE,"2,322.40",26/05/2017,,
Delivery Units,Adults and Communities,Other Agencies - Third Party P,90000803,JEWISH CARE,"2,133.36",26/05/2017,,
Delivery Units,Adults and Communities,Other Agencies - Third Party P,90000804,JEWISH CARE,"2,322.40",26/05/2017,,
Delivery Units,Adults and Communities,Other Agencies - Third Party P,90000805,JEWISH CARE,"2,322.40",26/05/2017,,
Delivery Units,Adults and Communities,Other Agencies - Third Party P,90000806,JEWISH CARE,"2,322.40",26/05/2017,,
Delivery Units,Adults and Communities,Other Agencies - Third Party P,90000807,JEWISH CARE,"2,133.36",26/05/2017,,
Delivery Units,Adults and Communities,Other Agencies - Third Party P,90000808,JEWISH CARE,"2,322.40",26/05/2017,,
Delivery Units,Adults and Communities,Other Agencies - Third Party P,90000809,JEWISH CARE,"2,133.36",26/05/2017,,
Delivery Units,Adults and Communities,Other Agencies - Third Party P,90000810,JEWISH CARE,"2,322.40",26/05/2017,,
Delivery Units,Adults and Communities,Other Agencies - Third Party P,90000811,JEWISH CARE,"2,322.40",26/05/2017,,
Delivery Units,Adults and Communities,Other Agencies - Third Party P,90000812,JEWISH CARE,"2,133.36",26/05/2017,,
Delivery Units,Adults and Communities,Other Agencies - Third Party P,90000813,JEWISH CARE,"2,133.36",26/05/2017,,
Delivery Units,Adults and Communities,Other Agencies - Third Party P,90000814,JEWISH CARE,"2,133.36",26/05/2017,,
Delivery Units,Adults and Communities,Other Agencies - Third Party P,90000815,JEWISH CARE,"2,133.36",26/05/2017,,
Delivery Units,Adults and Communities,Other Agencies - Third Party P,90000816,JEWISH CARE,"2,133.84",26/05/2017,,
Delivery Units,Adults and Communities,Other Agencies - Third Party P,90000817,JEWISH CARE,"2,273.96",26/05/2017,,
Delivery Units,Adults and Communities,Other Agencies - Third Party P,90000818,JEWISH CARE,"2,273.96",26/05/2017,,
Delivery Units,Adults and Communities,Other Agencies - Third Party P,90000819,JEWISH CARE,"2,518.48",26/05/2017,,
Delivery Units,Adults and Communities,Other Agencies - Third Party P,90000820,JEWISH CARE,"2,518.48",26/05/2017,,
Delivery Units,Adults and Communities,Other Agencies - Third Party P,90000821,JEWISH CARE,"2,273.96",26/05/2017,,
Delivery Units,Adults and Communities,Other Agencies - Third Party P,90000822,JEWISH CARE,"2,518.48",26/05/2017,,
Delivery Units,Adults and Communities,Other Agencies - Third Party P,90000823,JEWISH CARE,"2,518.48",26/05/2017,,
Delivery Units,Adults and Communities,Other Agencies - Third Party P,90000824,JEWISH CARE,"2,518.48",26/05/2017,,
Delivery Units,Adults and Communities,Other Agencies - Third Party P,90000825,JEWISH CARE,"2,518.48",26/05/2017,,
Delivery Units,Adults and Communities,Other Agencies - Third Party P,90000826,JEWISH CARE,"2,273.96",26/05/2017,,
Delivery Units,Adults and Communities,Other Agencies - Third Party P,90000827,JEWISH CARE,"2,273.96",26/05/2017,,
Delivery Units,Adults and Communities,Other Agencies - Third Party P,90000828,JEWISH CARE,"2,273.96",26/05/2017,,
Delivery Units,Adults and Communities,Other Agencies - Third Party P,90000829,JEWISH CARE,"2,273.96",26/05/2017,,
Delivery Units,Adults and Communities,Other Agencies - Third Party P,90000830,JEWISH CARE,"2,273.96",26/05/2017,,
Delivery Units,Adults and Communities,Other Agencies - Third Party P,90000831,JEWISH CARE,"2,273.96",26/05/2017,,
Delivery Units,Adults and Communities,Other Agencies - Third Party P,90000832,JEWISH CARE,"2,273.96",26/05/2017,,
Delivery Units,Adults and Communities,Other Agencies - Third Party P,90000833,JEWISH CARE,"2,518.48",26/05/2017,,
Delivery Units,Adults and Communities,Other Agencies - Third Party P,90000834,JEWISH CARE,"2,518.48",26/05/2017,,
Delivery Units,Adults and Communities,Other Agencies - Third Party P,90000835,JEWISH CARE,"2,273.96",26/05/2017,,
Delivery Units,Adults and Communities,Other Agencies - Third Party P,90000836,JEWISH CARE,"2,518.48",26/05/2017,,
Delivery Units,Adults and Communities,Other Agencies - Third Party P,90000837,JEWISH CARE,"2,273.96",26/05/2017,,
Delivery Units,Adults and Communities,Other Agencies - Third Party P,90000838,JEWISH CARE,"2,518.48",26/05/2017,,
Delivery Units,Adults and Communities,Other Agencies - Third Party P,90000839,JEWISH CARE,"2,518.48",26/05/2017,,
Delivery Units,Adults and Communities,Other Agencies - Third Party P,90000840,JEWISH CARE,"2,273.96",26/05/2017,,
Delivery Units,Adults and Communities,Other Agencies - Third Party P,90000841,JEWISH CARE,"2,518.48",26/05/2017,,
Delivery Units,Adults and Communities,Other Agencies - Third Party P,90000842,JEWISH CARE,"1,798.91",26/05/2017,,
Delivery Units,Adults and Communities,Other Agencies - Third Party P,90000843,JEWISH CARE,"1,624.26",26/05/2017,,
Delivery Units,Adults and Communities,Other Agencies - Third Party P,90000844,JEWISH CARE,"1,798.91",26/05/2017,,
Delivery Units,Adults and Communities,Other Agencies - Third Party P,90000845,JEWISH CARE,"1,798.91",26/05/2017,,
Delivery Units,Adults and Communities,Other Agencies - Third Party P,90000846,JEWISH CARE,"1,624.26",26/05/2017,,
Delivery Units,Adults and Communities,Other Agencies - Third Party P,90000847,JEWISH CARE,"1,798.91",26/05/2017,,
Delivery Units,Adults and Communities,Other Agencies - Third Party P,90000848,JEWISH CARE,"1,798.91",26/05/2017,,
Delivery Units,Adults and Communities,Other Agencies - Third Party P,90000849,JEWISH CARE,"1,798.91",26/05/2017,,
Delivery Units,Adults and Communities,Other Agencies - Third Party P,90000850,JEWISH CARE,"1,624.26",26/05/2017,,
Delivery Units,Adults and Communities,Other Agencies - Third Party P,90000851,JEWISH CARE,"1,624.26",26/05/2017,,
Delivery Units,Adults and Communities,Other Agencies - Third Party P,90000852,JEWISH CARE,"1,624.26",26/05/2017,,
Delivery Units,Adults and Communities,Other Agencies - Third Party P,90000853,JEWISH CARE,"1,624.26",26/05/2017,,
Delivery Units,Adults and Communities,Other Agencies - Third Party P,90000854,JEWISH CARE,"1,624.26",26/05/2017,,
Delivery Units,Adults and Communities,Other Agencies - Third Party P,90000855,JEWISH CARE,"1,798.91",26/05/2017,,
Delivery Units,Adults and Communities,Other Agencies - Third Party P,90000856,JEWISH CARE,"1,624.26",26/05/2017,,
Delivery Units,Adults and Communities,Other Agencies - Third Party P,90000857,JEWISH CARE,"1,624.26",26/05/2017,,
Delivery Units,Adults and Communities,Other Agencies - Third Party P,90000858,JEWISH CARE,"1,798.91",26/05/2017,,
Delivery Units,Adults and Communities,Other Agencies - Third Party P,90000859,JEWISH CARE,"1,624.26",26/05/2017,,
Delivery Units,Adults and Communities,Other Agencies - Third Party P,90000860,JEWISH CARE,"1,798.91",26/05/2017,,
Delivery Units,Adults and Communities,Other Agencies - Third Party P,90000861,JEWISH CARE,"1,624.26",26/05/2017,,
Delivery Units,Adults and Communities,Other Agencies - Third Party P,90000862,JEWISH CARE,"1,798.91",26/05/2017,,
Delivery Units,Adults and Communities,Other Agencies - Third Party P,90000863,JEWISH CARE,"1,624.26",26/05/2017,,
Delivery Units,Adults and Communities,Other Agencies - Third Party P,90000864,JEWISH CARE,"1,798.91",26/05/2017,,
Delivery Units,Adults and Communities,Other Agencies - Third Party P,90000865,JEWISH CARE,"1,798.91",26/05/2017,,
Delivery Units,Adults and Communities,Other Agencies - Third Party P,90000866,JEWISH CARE,"1,624.26",26/05/2017,,
Delivery Units,Adults and Communities,Other Agencies - Third Party P,90000873,JEWISH CARE,"1,658.86",26/05/2017,,
Delivery Units,Adults and Communities,Other Agencies - Third Party P,90000874,JEWISH CARE,"1,658.86",26/05/2017,,
Delivery Units,Adults and Communities,Other Agencies - Third Party P,90000875,JEWISH CARE,"1,523.83",26/05/2017,,
Delivery Units,Adults and Communities,Other Agencies - Third Party P,90000876,JEWISH CARE,"1,658.86",26/05/2017,,
Delivery Units,Adults and Communities,Other Agencies - Third Party P,90000877,JEWISH CARE,"1,658.86",26/05/2017,,
Delivery Units,Adults and Communities,Other Agencies - Third Party P,90000878,JEWISH CARE,"1,658.86",26/05/2017,,
Delivery Units,Adults and Communities,Other Agencies - Third Party P,90000879,JEWISH CARE,"1,658.86",26/05/2017,,
Delivery Units,Adults and Communities,Other Agencies - Third Party P,90000880,JEWISH CARE,"1,658.86",26/05/2017,,
Delivery Units,Adults and Communities,Other Agencies - Third Party P,90000881,JEWISH CARE,"1,658.86",26/05/2017,,
Delivery Units,Adults and Communities,Other Agencies - Third Party P,90000882,JEWISH CARE,"1,658.86",26/05/2017,,
Delivery Units,Adults and Communities,Other Agencies - Third Party P,90000883,JEWISH CARE,"1,658.86",26/05/2017,,
Delivery Units,Adults and Communities,Other Agencies - Third Party P,90000884,JEWISH CARE,"1,658.86",26/05/2017,,
Delivery Units,Adults and Communities,Other Agencies - Third Party P,90000885,JEWISH CARE,"1,658.86",26/05/2017,,
Delivery Units,Adults and Communities,Other Agencies - Third Party P,90000886,JEWISH CARE,"1,658.86",26/05/2017,,
Delivery Units,Adults and Communities,Other Agencies - Third Party P,90000887,JEWISH CARE,"1,658.86",26/05/2017,,
Delivery Units,Adults and Communities,Other Agencies - Third Party P,90000888,JEWISH CARE,"1,658.86",26/05/2017,,
Delivery Units,Adults and Communities,Other Agencies - Third Party P,90000889,JEWISH CARE,"1,658.86",26/05/2017,,
Delivery Units,Adults and Communities,Other Agencies - Third Party P,90000890,JEWISH CARE,"1,658.86",26/05/2017,,
Delivery Units,Adults and Communities,Other Agencies - Third Party P,90000891,JEWISH CARE,"1,658.86",26/05/2017,,
Delivery Units,Adults and Communities,Other Agencies - Third Party P,90000892,JEWISH CARE,"1,523.83",26/05/2017,,
Delivery Units,Adults and Communities,Other Agencies - Third Party P,90000893,JEWISH CARE,"1,524.17",26/05/2017,,
Delivery Units,Adults and Communities,Other Agencies - Third Party P,90000894,JEWISH CARE,"1,658.86",26/05/2017,,
Delivery Units,Adults and Communities,Other Agencies - Third Party P,90000895,JEWISH CARE,"1,523.83",26/05/2017,,
Delivery Units,Adults and Communities,Other Agencies - Third Party P,90000896,JEWISH CARE,"1,658.86",26/05/2017,,
Delivery Units,Adults and Communities,Other Agencies - Third Party P,90000897,JEWISH CARE,"1,658.86",26/05/2017,,
Delivery Units,Adults and Communities,Other Agencies - Third Party P,90000898,JEWISH CARE,"1,523.83",26/05/2017,,
Delivery Units,Adults and Communities,Other Agencies - Third Party P,90000899,JEWISH CARE,"1,658.86",26/05/2017,,
Delivery Units,Adults and Communities,Other Agencies - Third Party P,90000900,JEWISH CARE,"1,658.86",26/05/2017,,
Delivery Units,Adults and Communities,Other Agencies - Third Party P,90000901,JEWISH CARE,"1,523.83",26/05/2017,,
Delivery Units,Adults and Communities,Other Agencies - Third Party P,90000902,JEWISH CARE,"1,658.86",26/05/2017,,
Delivery Units,Adults and Communities,Other Agencies - Third Party P,90000903,JEWISH CARE,"1,658.86",26/05/2017,,
Delivery Units,Adults and Communities,Other Agencies - Third Party P,90000904,JEWISH CARE,"1,658.86",26/05/2017,,
Delivery Units,Adults and Communities,Other Agencies - Third Party P,90000905,JEWISH CARE,"2,714.29",26/05/2017,,
Delivery Units,Adults and Communities,Other Agencies - Third Party P,90000906,JEWISH CARE,"2,285.71",26/05/2017,,
Delivery Units,Adults and Communities,Other Agencies - Third Party P,90000907,JEWISH CARE,"2,828.57",26/05/2017,,
Delivery Units,Adults and Communities,Other Agencies - Third Party P,90000908,JEWISH CARE,"1,658.86",26/05/2017,,
Delivery Units,Adults and Communities,Other Agencies - Third Party P,90000909,JEWISH CARE,"1,658.86",26/05/2017,,
Delivery Units,Adults and Communities,Other Agencies - Third Party P,90000910,JEWISH CARE,"1,658.86",26/05/2017,,
Delivery Units,Adults and Communities,Other Agencies - Third Party P,90000911,JEWISH CARE,"1,658.86",26/05/2017,,
Delivery Units,Adults and Communities,Other Agencies - Third Party P,90000912,JEWISH CARE,"1,658.86",26/05/2017,,
Delivery Units,Adults and Communities,Other Agencies - Third Party P,90000913,JEWISH CARE,"1,658.86",26/05/2017,,
Delivery Units,Adults and Communities,Other Agencies - Third Party P,90000914,JEWISH CARE,"1,658.86",26/05/2017,,
Delivery Units,Adults and Communities,Other Agencies - Third Party P,90000915,JEWISH CARE,"1,523.83",26/05/2017,,
Delivery Units,Adults and Communities,Other Agencies - Third Party P,90000916,JEWISH CARE,"1,658.86",26/05/2017,,
Delivery Units,Adults and Communities,Other Agencies - Third Party P,90000917,JEWISH CARE,"1,523.83",26/05/2017,,
Delivery Units,Adults and Communities,Other Agencies - Third Party P,90000918,JEWISH CARE,"1,523.83",26/05/2017,,
Delivery Units,Adults and Communities,Other Agencies - Third Party P,90000919,JEWISH CARE,"1,523.83",26/05/2017,,
Delivery Units,Adults and Communities,Other Agencies - Third Party P,90000920,JEWISH CARE,"1,658.86",26/05/2017,,
Delivery Units,Adults and Communities,Other Agencies - Third Party P,90000921,JEWISH CARE,"1,658.86",26/05/2017,,
Delivery Units,Adults and Communities,Other Agencies - Third Party P,90000922,JEWISH CARE,"1,658.86",26/05/2017,,
Delivery Units,Adults and Communities,Other Agencies - Third Party P,90000923,JEWISH CARE,"1,523.83",26/05/2017,,
Delivery Units,Adults and Communities,Other Agencies - Third Party P,90000924,JEWISH CARE,"1,658.86",26/05/2017,,
Delivery Units,Adults and Communities,Other Agencies - Third Party P,90000925,JEWISH CARE,"1,658.86",26/05/2017,,
Delivery Units,Adults and Communities,Other Agencies - Third Party P,90000926,JEWISH CARE,"1,658.86",26/05/2017,,
Delivery Units,Adults and Communities,Other Agencies - Third Party P,90000927,JEWISH CARE,"1,523.83",26/05/2017,,
Delivery Units,Adults and Communities,Other Agencies - Third Party P,90000928,JEWISH CARE,"1,523.83",26/05/2017,,
Delivery Units,Adults and Communities,Other Agencies - Third Party P,90000929,JEWISH CARE,"1,523.83",26/05/2017,,
Delivery Units,Adults and Communities,Other Agencies - Third Party P,90000930,JEWISH CARE,"1,523.83",26/05/2017,,
Delivery Units,Adults and Communities,Other Agencies - Third Party P,90000950,JEWISH CARE,"2,133.36",26/05/2017,,
Delivery Units,Adults and Communities,Other Agencies - Third Party P,90000965,JEWISH CARE,-974.55,26/05/2017,,
Delivery Units,Adults and Communities,Other Agencies - Third Party P,90001117,JEWISH CARE,708.00,26/05/2017,,
Delivery Units,Adults and Communities,Other Agencies - Third Party P,90001118,JEWISH CARE,354.00,26/05/2017,,
Delivery Units,Adults and Communities,Other Agencies - Third Party P,90001119,JEWISH CARE,293.00,26/05/2017,,
Delivery Units,Adults and Communities,Other Agencies - Third Party P,90001120,JEWISH CARE,586.00,26/05/2017,,
Delivery Units,Adults and Communities,Other Agencies - Third Party P,90000478,JIGSAW CREATIVE CARE LIMITED,"5,859.00",17/05/2017,,
Delivery Units,Adults and Communities,Other Agencies - Third Party P,90000479,JIGSAW CREATIVE CARE LIMITED,"3,021.76",17/05/2017,,
Delivery Units,Adults and Communities,Other Agencies - Third Party P,90000480,JIGSAW CREATIVE CARE LIMITED,"1,412.00",17/05/2017,,
Delivery Units,Adults and Communities,Other Agencies - Third Party P,90000481,JIGSAW CREATIVE CARE LIMITED,"2,534.61",17/05/2017,,
Delivery Units,Adults and Communities,Other Agencies - Third Party P,90000482,JIGSAW CREATIVE CARE LIMITED,"2,783.00",17/05/2017,,
Delivery Units,Adults and Communities,Other Agencies - Third Party P,90000483,JIGSAW CREATIVE CARE LIMITED,"3,021.76",17/05/2017,,
Delivery Units,Adults and Communities,Other Agencies - Third Party P,90000484,JIGSAW CREATIVE CARE LIMITED,"1,412.00",17/05/2017,,
Delivery Units,Adults and Communities,Other Agencies - Third Party P,90000485,JIGSAW CREATIVE CARE LIMITED,"2,534.61",17/05/2017,,
Delivery Units,Adults and Communities,Other Agencies - Third Party P,90000486,JIGSAW CREATIVE CARE LIMITED,"5,859.00",17/05/2017,,
Delivery Units,Adults and Communities,Other Agencies - Third Party P,90000487,JIGSAW CREATIVE CARE LIMITED,"2,783.00",17/05/2017,,
Delivery Units,Adults and Communities,Other Agencies - Third Party P,90000488,JIGSAW CREATIVE CARE LIMITED,"3,021.76",17/05/2017,,
Delivery Units,Adults and Communities,Other Agencies - Third Party P,90000489,JIGSAW CREATIVE CARE LIMITED,"2,534.61",17/05/2017,,
Delivery Units,Adults and Communities,Other Agencies - Third Party P,90000490,JIGSAW CREATIVE CARE LIMITED,"1,412.00",17/05/2017,,
Delivery Units,Adults and Communities,Other Agencies - Third Party P,90000491,JIGSAW CREATIVE CARE LIMITED,"2,783.00",17/05/2017,,
Delivery Units,Adults and Communities,Other Agencies - Third Party P,90000492,JIGSAW CREATIVE CARE LIMITED,"5,859.00",17/05/2017,,
Delivery Units,Adults and Communities,Other Agencies - Third Party P,90000493,JIGSAW CREATIVE CARE LIMITED,"3,021.76",17/05/2017,,
Delivery Units,Adults and Communities,Other Agencies - Third Party P,90000494,JIGSAW CREATIVE CARE LIMITED,"2,534.61",17/05/2017,,
Delivery Units,Adults and Communities,Other Agencies - Third Party P,90000495,JIGSAW CREATIVE CARE LIMITED,"1,412.00",17/05/2017,,
Delivery Units,Adults and Communities,Other Agencies - Third Party P,90000496,JIGSAW CREATIVE CARE LIMITED,"2,783.00",17/05/2017,,
Delivery Units,Adults and Communities,Other Agencies - Third Party P,90000497,JIGSAW CREATIVE CARE LIMITED,"5,859.00",17/05/2017,,
